Body Name,Body,Service Label,Service Code,CIPFA Detailed Expenditure Type,CIPFA Detailed Expenditure Code,Date,Transaction Number,Net Amount,Supplier Name,,,,,,,,#REF!
Nottinghamshire County Council,1111/1001,Surplus or Deficit from Trading Undertak,TRADING,Supplies & Services,DDA,03/11/2015,10-10001,"1,128.48",Hamelin Paperbrands Ltd,,,,,,,,
Nottinghamshire County Council,1111/1001,Surplus or Deficit from Trading Undertak,TRADING,Supplies & Services,DDA,06/11/2015,10-10001,"1,184.14",Hamelin Paperbrands Ltd,,,,,,,,
Nottinghamshire County Council,1111/1001,Surplus or Deficit from Trading Undertak,TRADING,Supplies & Services,DDA,24/11/2015,10-10001,"1,711.32",Hamelin Paperbrands Ltd,,,,,,,,
Nottinghamshire County Council,1111/1001,Surplus or Deficit from Trading Undertak,TRADING,Supplies & Services,DDA,04/11/2015,10-10001,524.10,Pukka Pads,,,,,,,,
Nottinghamshire County Council,1111/1001,Surplus or Deficit from Trading Undertak,TRADING,Supplies & Services,DDA,03/11/2015,10-10001,"1,807.86",Henkel Loctite Adhesives Ltd,,,,,,,,
Nottinghamshire County Council,1111/1001,Surplus or Deficit from Trading Undertak,TRADING,Supplies & Services,DDA,20/11/2015,10-10001,"3,731.60",Henkel Loctite Adhesives Ltd,,,,,,,,
Nottinghamshire County Council,1111/1001,Surplus or Deficit from Trading Undertak,TRADING,Supplies & Services,DDA,20/11/2015,10-10001,956.16,Henkel Loctite Adhesives Ltd,,,,,,,,
Nottinghamshire County Council,1111/1001,Surplus or Deficit from Trading Undertak,TRADING,Supplies & Services,DDA,24/11/2015,10-10001,861.52,Henkel Loctite Adhesives Ltd,,,,,,,,
Nottinghamshire County Council,1111/1001,Surplus or Deficit from Trading Undertak,TRADING,Supplies & Services,DDA,25/11/2015,10-10001,"3,932.00",Henkel Loctite Adhesives Ltd,,,,,,,,
Nottinghamshire County Council,1111/1001,Surplus or Deficit from Trading Undertak,TRADING,Supplies & Services,DDA,27/11/2015,10-10001,"1,356.60",Henkel Loctite Adhesives Ltd,,,,,,,,
Nottinghamshire County Council,1111/1001,Surplus or Deficit from Trading Undertak,TRADING,Supplies & Services,DAA,11/11/2015,10-10001,"1,548.00",Kb Packaging,,,,,,,,
Nottinghamshire County Council,1111/1001,Surplus or Deficit from Trading Undertak,TRADING,Supplies & Services,DAA,18/11/2015,10-10001,941.40,Reliance Medical Ltd,,,,,,,,
Nottinghamshire County Council,1111/1001,Surplus or Deficit from Trading Undertak,TRADING,Supplies & Services,DAA,24/11/2015,10-10001,523.05,Synergy Health (Uk) Ltd,,,,,,,,
Nottinghamshire County Council,1111/1001,Surplus or Deficit from Trading Undertak,TRADING,Supplies & Services,DFA,27/11/2015,10-10001,"1,616.00",Ebi Software Ltd,,,,,,,,
Nottinghamshire County Council,1111/1001,Surplus or Deficit from Trading Undertak,TRADING,Supplies & Services,DAA,03/11/2015,10-10001,657.60,Heritage Envelopes Ltd,,,,,,,,
Nottinghamshire County Council,1111/1001,Surplus or Deficit from Trading Undertak,TRADING,Supplies & Services,DAA,06/11/2015,10-10001,677.16,Heritage Envelopes Ltd,,,,,,,,
Nottinghamshire County Council,1111/1001,Surplus or Deficit from Trading Undertak,TRADING,Supplies & Services,DAA,18/11/2015,10-10001,576.00,Heritage Envelopes Ltd,,,,,,,,
Nottinghamshire County Council,1111/1001,Surplus or Deficit from Trading Undertak,TRADING,Supplies & Services,DAA,04/11/2015,10-10001,"1,101.20",Antalis Key Accounts,,,,,,,,
Nottinghamshire County Council,1111/1001,Surplus or Deficit from Trading Undertak,TRADING,Supplies & Services,DAA,18/11/2015,10-10001,772.15,Antalis Key Accounts,,,,,,,,
Nottinghamshire County Council,1111/1001,Surplus or Deficit from Trading Undertak,TRADING,Supplies & Services,DAA,24/11/2015,10-10001,"1,188.05",Antalis Key Accounts,,,,,,,,
Nottinghamshire County Council,1111/1001,Surplus or Deficit from Trading Undertak,TRADING,Supplies & Services,DAA,20/11/2015,10-10001,"1,459.80",Cbc,,,,,,,,
Nottinghamshire County Council,1111/1001,Surplus or Deficit from Trading Undertak,TRADING,Premises Related,BAA,11/11/2015,10-10001,513.24,Flexiform Business Furniture,,,,,,,,
Nottinghamshire County Council,1111/1001,Surplus or Deficit from Trading Undertak,TRADING,Premises Related,BAA,18/11/2015,10-10001,"1,350.80",Flexiform Business Furniture,,,,,,,,
Nottinghamshire County Council,1111/1001,Surplus or Deficit from Trading Undertak,TRADING,Premises Related,BAA,06/11/2015,10-10001,567.30,Avery Uk,,,,,,,,
Nottinghamshire County Council,1111/1001,Surplus or Deficit from Trading Undertak,TRADING,Premises Related,BAA,25/11/2015,10-10001,677.70,Avery Uk,,,,,,,,
Nottinghamshire County Council,1111/1001,Surplus or Deficit from Trading Undertak,TRADING,Premises Related,BJA,24/11/2015,10-10001,504.20,Freudenberg Household Products Lp,,,,,,,,
Nottinghamshire County Council,1111/1001,Surplus or Deficit from Trading Undertak,TRADING,Premises Related,BJA,27/11/2015,10-10001,881.00,Freudenberg Household Products Lp,,,,,,,,
Nottinghamshire County Council,1111/1001,Surplus or Deficit from Trading Undertak,TRADING,Premises Related,BJA,19/11/2015,10-10001,547.56,Polystar Plastics Ltd,,,,,,,,
Nottinghamshire County Council,1111/1001,Surplus or Deficit from Trading Undertak,TRADING,Premises Related,BJA,25/11/2015,10-10001,651.84,Polystar Plastics Ltd,,,,,,,,
Nottinghamshire County Council,1111/1001,Surplus or Deficit from Trading Undertak,TRADING,Premises Related,BJA,03/11/2015,10-10001,777.10,Kimberley Clark European Services Ltd,,,,,,,,
Nottinghamshire County Council,1111/1001,Surplus or Deficit from Trading Undertak,TRADING,Premises Related,BJA,04/11/2015,10-10001,"1,654.50",Kimberley Clark European Services Ltd,,,,,,,,
Nottinghamshire County Council,1111/1001,Surplus or Deficit from Trading Undertak,TRADING,Premises Related,BJA,06/11/2015,10-10001,"1,299.12",Kimberley Clark European Services Ltd,,,,,,,,
Nottinghamshire County Council,1111/1001,Surplus or Deficit from Trading Undertak,TRADING,Premises Related,BJA,25/11/2015,10-10001,"1,314.40",Kimberley Clark European Services Ltd,,,,,,,,
Nottinghamshire County Council,1111/1001,Surplus or Deficit from Trading Undertak,TRADING,Premises Related,BJA,25/11/2015,10-10001,"1,376.16",Kimberley Clark European Services Ltd,,,,,,,,
Nottinghamshire County Council,1111/1001,Surplus or Deficit from Trading Undertak,TRADING,Premises Related,BJA,20/11/2015,10-10001,"1,077.00",Cromwell Polythene Ltd,,,,,,,,
Nottinghamshire County Council,1111/1001,Surplus or Deficit from Trading Undertak,TRADING,Premises Related,BJA,12/11/2015,10-10001,529.38,Chemex International Ltd,,,,,,,,
Nottinghamshire County Council,1111/1001,Surplus or Deficit from Trading Undertak,TRADING,Premises Related,BJA,24/11/2015,10-10001,718.24,Midland Wiper Manufacturing Co Ltd,,,,,,,,
Nottinghamshire County Council,1111/1001,Surplus or Deficit from Trading Undertak,TRADING,Premises Related,BJA,11/11/2015,10-10001,668.52,3M (United Kingdom) Plc,,,,,,,,
Nottinghamshire County Council,1111/1001,Surplus or Deficit from Trading Undertak,TRADING,Premises Related,BJA,04/11/2015,10-10001,603.44,Evans Vanodine International Ltd,,,,,,,,
Nottinghamshire County Council,1111/1001,Surplus or Deficit from Trading Undertak,TRADING,Premises Related,BJA,04/11/2015,10-10001,"1,302.00",Johnson Diversey,,,,,,,,
Nottinghamshire County Council,1111/1001,Surplus or Deficit from Trading Undertak,TRADING,Premises Related,BJA,18/11/2015,10-10001,"1,072.50",Johnson Diversey,,,,,,,,
Nottinghamshire County Council,1111/1001,Surplus or Deficit from Trading Undertak,TRADING,Premises Related,BJA,25/11/2015,10-10001,"7,179.38",Johnson Diversey,,,,,,,,
Nottinghamshire County Council,1111/1001,Surplus or Deficit from Trading Undertak,TRADING,Premises Related,BJA,27/11/2015,10-10001,500.40,Johnson Diversey,,,,,,,,
Nottinghamshire County Council,1111/1001,Surplus or Deficit from Trading Undertak,TRADING,Premises Related,BJA,02/11/2015,10-10001,"5,921.87",Premiere Products (James Briggs Ltd),,,,,,,,
Nottinghamshire County Council,1111/1001,Surplus or Deficit from Trading Undertak,TRADING,Premises Related,BJA,06/11/2015,10-10001,575.74,Premiere Products (James Briggs Ltd),,,,,,,,
Nottinghamshire County Council,1111/1001,Surplus or Deficit from Trading Undertak,TRADING,Premises Related,BJA,12/11/2015,10-10001,630.44,Premiere Products (James Briggs Ltd),,,,,,,,
Nottinghamshire County Council,1111/1001,Surplus or Deficit from Trading Undertak,TRADING,Premises Related,BJA,03/11/2015,10-10001,854.50,Candor Services,,,,,,,,
Nottinghamshire County Council,1111/1001,Surplus or Deficit from Trading Undertak,TRADING,Premises Related,BJA,03/11/2015,10-10001,849.40,Candor Services,,,,,,,,
Nottinghamshire County Council,1111/1001,Surplus or Deficit from Trading Undertak,TRADING,Supplies & Services,DAA,06/11/2015,10-10001,554.56,W V Howe (Hardware) Ltd,,,,,,,,
Nottinghamshire County Council,1111/1001,Surplus or Deficit from Trading Undertak,TRADING,Supplies & Services,DAA,18/11/2015,10-10001,842.62,W V Howe (Hardware) Ltd,,,,,,,,
Nottinghamshire County Council,1111/1001,Surplus or Deficit from Trading Undertak,TRADING,Supplies & Services,DAA,27/11/2015,10-10001,835.29,W V Howe (Hardware) Ltd,,,,,,,,
Nottinghamshire County Council,1111/1001,Surplus or Deficit from Trading Undertak,TRADING,Supplies & Services,DAA,03/11/2015,10-10001,"1,383.60",Catering Supplies (Wakefield) Ltd,,,,,,,,
Nottinghamshire County Council,1111/1001,Surplus or Deficit from Trading Undertak,TRADING,Supplies & Services,DAA,04/11/2015,10-10001,585.00,Catering Supplies (Wakefield) Ltd,,,,,,,,
Nottinghamshire County Council,1111/1001,Surplus or Deficit from Trading Undertak,TRADING,Supplies & Services,DAA,20/11/2015,10-10001,908.00,Catering Supplies (Wakefield) Ltd,,,,,,,,
Nottinghamshire County Council,1111/1001,Surplus or Deficit from Trading Undertak,TRADING,Supplies & Services,DAA,24/11/2015,10-10001,791.12,Catering Supplies (Wakefield) Ltd,,,,,,,,
Nottinghamshire County Council,1111/1001,Surplus or Deficit from Trading Undertak,TRADING,Supplies & Services,DAA,03/11/2015,10-10001,"1,466.59",Sca Hygiene,,,,,,,,
Nottinghamshire County Council,1111/1001,Surplus or Deficit from Trading Undertak,TRADING,Supplies & Services,DAA,04/11/2015,10-10001,"3,152.14",Sca Hygiene,,,,,,,,
Nottinghamshire County Council,1111/1001,Surplus or Deficit from Trading Undertak,TRADING,Supplies & Services,DAA,06/11/2015,10-10001,"5,378.68",Sca Hygiene,,,,,,,,
Nottinghamshire County Council,1111/1001,Surplus or Deficit from Trading Undertak,TRADING,Supplies & Services,DAA,11/11/2015,10-10001,"2,592.95",Sca Hygiene,,,,,,,,
Nottinghamshire County Council,1111/1001,Surplus or Deficit from Trading Undertak,TRADING,Supplies & Services,DAA,11/11/2015,10-10001,"2,070.48",Sca Hygiene,,,,,,,,
Nottinghamshire County Council,1111/1001,Surplus or Deficit from Trading Undertak,TRADING,Supplies & Services,DAA,11/11/2015,10-10001,"8,533.66",Sca Hygiene,,,,,,,,
Nottinghamshire County Council,1111/1001,Surplus or Deficit from Trading Undertak,TRADING,Supplies & Services,DAA,24/11/2015,10-10001,"6,620.97",Sca Hygiene,,,,,,,,
Nottinghamshire County Council,1111/1001,Surplus or Deficit from Trading Undertak,TRADING,Supplies & Services,DAA,27/11/2015,10-10001,"1,558.02",Sca Hygiene,,,,,,,,
Nottinghamshire County Council,1111/1001,Surplus or Deficit from Trading Undertak,TRADING,Supplies & Services,DAA,06/11/2015,10-10001,"1,097.88",Dualit Ltd,,,,,,,,
Nottinghamshire County Council,1111/1001,Surplus or Deficit from Trading Undertak,TRADING,Supplies & Services,DCA,04/11/2015,10-10001,983.53,Shermond,,,,,,,,
Nottinghamshire County Council,1111/1001,Surplus or Deficit from Trading Undertak,TRADING,Supplies & Services,DCA,12/11/2015,10-10001,946.23,Shermond,,,,,,,,
Nottinghamshire County Council,1111/1001,Surplus or Deficit from Trading Undertak,TRADING,Supplies & Services,DCA,06/11/2015,10-10001,575.11,Arco East Midlands,,,,,,,,
Nottinghamshire County Council,1111/1001,Surplus or Deficit from Trading Undertak,TRADING,Supplies & Services,DKA,03/11/2015,10-10001,"1,041.11",Bunzl Cleaning & Hygiene Supplies,,,,,,,,
Nottinghamshire County Council,1111/1001,Surplus or Deficit from Trading Undertak,TRADING,Supplies & Services,DKA,11/11/2015,10-10001,553.05,Bunzl Cleaning & Hygiene Supplies,,,,,,,,
Nottinghamshire County Council,1111/1001,Surplus or Deficit from Trading Undertak,TRADING,Supplies & Services,DAA,02/11/2015,10-10001,939.40,R Scott & Sons Ltd,,,,,,,,
Nottinghamshire County Council,1111/1001,Surplus or Deficit from Trading Undertak,TRADING,Supplies & Services,DAA,02/11/2015,10-10001,"2,438.10",R Scott & Sons Ltd,,,,,,,,
Nottinghamshire County Council,1111/1001,Surplus or Deficit from Trading Undertak,TRADING,Supplies & Services,DAA,06/11/2015,10-10001,"2,865.00",R Scott & Sons Ltd,,,,,,,,
Nottinghamshire County Council,1111/1001,Surplus or Deficit from Trading Undertak,TRADING,Supplies & Services,DAA,19/11/2015,10-10001,"1,242.00",R Scott & Sons Ltd,,,,,,,,
Nottinghamshire County Council,1111/1001,Surplus or Deficit from Trading Undertak,TRADING,Supplies & Services,DAA,24/11/2015,10-10001,"2,705.50",R Scott & Sons Ltd,,,,,,,,
Nottinghamshire County Council,1111/1001,Surplus or Deficit from Trading Undertak,TRADING,Supplies & Services,DAA,06/11/2015,10-10001,978.03,Office Innovations,,,,,,,,
Nottinghamshire County Council,1111/1001,Surplus or Deficit from Trading Undertak,TRADING,Supplies & Services,DAA,11/11/2015,10-10001,"5,964.10",Office Innovations,,,,,,,,
Nottinghamshire County Council,1111/1001,Surplus or Deficit from Trading Undertak,TRADING,Supplies & Services,DAA,27/11/2015,10-10001,931.00,Office Innovations,,,,,,,,
Nottinghamshire County Council,1111/1001,Surplus or Deficit from Trading Undertak,TRADING,Supplies & Services,DAA,27/11/2015,10-10001,"2,980.86",Office Innovations,,,,,,,,
Nottinghamshire County Council,1111/1001,Surplus or Deficit from Trading Undertak,TRADING,Supplies & Services,DAA,04/11/2015,10-10001,791.00,Principal Furniture,,,,,,,,
Nottinghamshire County Council,1111/1001,Surplus or Deficit from Trading Undertak,TRADING,Supplies & Services,DAA,20/11/2015,10-10001,524.25,Principal Furniture,,,,,,,,
Nottinghamshire County Council,1111/1001,Surplus or Deficit from Trading Undertak,TRADING,Supplies & Services,DAA,20/11/2015,10-10001,798.40,Principal Furniture,,,,,,,,
Nottinghamshire County Council,1111/1001,Surplus or Deficit from Trading Undertak,TRADING,Supplies & Services,DAA,11/11/2015,10-10001,628.02,Helmsman,,,,,,,,
Nottinghamshire County Council,1111/1001,Surplus or Deficit from Trading Undertak,TRADING,Supplies & Services,DAA,12/11/2015,10-10001,726.97,Advanced Moulds Ltd,,,,,,,,
Nottinghamshire County Council,1111/1001,Surplus or Deficit from Trading Undertak,TRADING,Supplies & Services,DAA,25/11/2015,10-10001,"1,088.80",Advanced Moulds Ltd,,,,,,,,
Nottinghamshire County Council,1111/1001,Surplus or Deficit from Trading Undertak,TRADING,Supplies & Services,DAA,27/11/2015,10-10001,623.92,Niels Larsen Ltd,,,,,,,,
Nottinghamshire County Council,1111/1001,Surplus or Deficit from Trading Undertak,TRADING,Supplies & Services,DAA,27/11/2015,10-10001,"1,267.01",Combined Office Interiors Ltd,,,,,,,,
Nottinghamshire County Council,1111/1001,Surplus or Deficit from Trading Undertak,TRADING,Supplies & Services,DAA,04/11/2015,10-10001,"1,057.28",Hille Education Products Ltd,,,,,,,,
Nottinghamshire County Council,1111/1001,Surplus or Deficit from Trading Undertak,TRADING,Supplies & Services,DAA,11/11/2015,10-10001,727.50,Hille Education Products Ltd,,,,,,,,
Nottinghamshire County Council,1111/1001,Surplus or Deficit from Trading Undertak,TRADING,Supplies & Services,DAA,04/11/2015,10-10001,520.90,Denis Rawlins Ltd,,,,,,,,
Nottinghamshire County Council,1111/1001,Surplus or Deficit from Trading Undertak,TRADING,Supplies & Services,DAA,11/11/2015,10-10001,664.77,Gopak Ltd,,,,,,,,
Nottinghamshire County Council,1111/1001,Surplus or Deficit from Trading Undertak,TRADING,Supplies & Services,DAA,11/11/2015,10-10001,622.96,Gopak Ltd,,,,,,,,
Nottinghamshire County Council,1111/1001,Surplus or Deficit from Trading Undertak,TRADING,Supplies & Services,DAA,20/11/2015,10-10001,727.92,Gopak Ltd,,,,,,,,
Nottinghamshire County Council,1111/1001,Surplus or Deficit from Trading Undertak,TRADING,Supplies & Services,DAA,03/11/2015,10-10001,539.22,Gratnells Ltd,,,,,,,,
Nottinghamshire County Council,1111/1001,Surplus or Deficit from Trading Undertak,TRADING,Supplies & Services,DAA,25/11/2015,10-10001,"1,840.00",Magiboards Ltd,,,,,,,,
Nottinghamshire County Council,1111/1001,Surplus or Deficit from Trading Undertak,TRADING,Supplies & Services,DAA,12/11/2015,10-10001,813.67,Metroplan Limited,,,,,,,,
Nottinghamshire County Council,1111/1001,Surplus or Deficit from Trading Undertak,TRADING,Supplies & Services,DAA,03/11/2015,10-10001,646.00,Kent County Supplies,,,,,,,,
Nottinghamshire County Council,1111/1001,Surplus or Deficit from Trading Undertak,TRADING,Supplies & Services,DAA,03/11/2015,10-10001,670.50,Kent County Supplies,,,,,,,,
Nottinghamshire County Council,1111/1001,Surplus or Deficit from Trading Undertak,TRADING,Supplies & Services,DAA,03/11/2015,10-10001,"2,031.48",Kent County Supplies,,,,,,,,
Nottinghamshire County Council,1111/1001,Surplus or Deficit from Trading Undertak,TRADING,Supplies & Services,DAA,12/11/2015,10-10001,604.78,Kent County Supplies,,,,,,,,
Nottinghamshire County Council,1111/1001,Surplus or Deficit from Trading Undertak,TRADING,Supplies & Services,DAA,20/11/2015,10-10001,"1,070.10",Kent County Supplies,,,,,,,,
Nottinghamshire County Council,1111/1001,Surplus or Deficit from Trading Undertak,TRADING,Supplies & Services,DAA,25/11/2015,10-10001,"1,580.04",Kent County Supplies,,,,,,,,
Nottinghamshire County Council,1111/1001,Surplus or Deficit from Trading Undertak,TRADING,Supplies & Services,DAA,25/11/2015,10-10001,977.10,Grosvenor House Papers Ltd,,,,,,,,
Nottinghamshire County Council,1111/1001,Surplus or Deficit from Trading Undertak,TRADING,Supplies & Services,DAA,24/11/2015,10-10001,880.28,Newell Rubbermaid,,,,,,,,
Nottinghamshire County Council,1111/1001,Surplus or Deficit from Trading Undertak,TRADING,Supplies & Services,DAA,12/11/2015,10-10001,"1,240.35",Acco-Rexel Ltd,,,,,,,,
Nottinghamshire County Council,1111/1001,Surplus or Deficit from Trading Undertak,TRADING,Supplies & Services,DAA,06/11/2015,10-10001,"1,077.30",Staedtler (Uk) Ltd,,,,,,,,
Nottinghamshire County Council,1111/1001,Surplus or Deficit from Trading Undertak,TRADING,Supplies & Services,DAA,27/11/2015,10-10001,764.52,Staedtler (Uk) Ltd,,,,,,,,
Nottinghamshire County Council,1111/1001,Surplus or Deficit from Trading Undertak,TRADING,Supplies & Services,DAA,24/11/2015,10-10001,605.80,Edding Uk Ltd,,,,,,,,
Nottinghamshire County Council,1111/1001,Surplus or Deficit from Trading Undertak,TRADING,Supplies & Services,DAA,04/11/2015,10-10001,778.49,Allen Glenold Ltd,,,,,,,,
Nottinghamshire County Council,1111/1001,Surplus or Deficit from Trading Undertak,TRADING,Supplies & Services,DAA,04/11/2015,10-10001,"1,002.48",Allen Glenold Ltd,,,,,,,,
Nottinghamshire County Council,1111/1001,Surplus or Deficit from Trading Undertak,TRADING,Supplies & Services,DAA,24/11/2015,10-10001,546.64,Allen Glenold Ltd,,,,,,,,
Nottinghamshire County Council,1111/1001,Surplus or Deficit from Trading Undertak,TRADING,Supplies & Services,DAA,27/11/2015,10-10001,909.98,Allen Glenold Ltd,,,,,,,,
Nottinghamshire County Council,1111/1001,Surplus or Deficit from Trading Undertak,TRADING,Supplies & Services,DAA,20/11/2015,10-10001,"2,314.24",Higher Kings Mill Ltd,,,,,,,,
Nottinghamshire County Council,1111/1001,Surplus or Deficit from Trading Undertak,TRADING,Supplies & Services,DAA,27/11/2015,10-10001,"2,404.45",Higher Kings Mill Ltd,,,,,,,,
Nottinghamshire County Council,1111/1001,Surplus or Deficit from Trading Undertak,TRADING,Supplies & Services,DAA,30/11/2015,10-10001,775.95,Slater Harrison & Co Ltd,,,,,,,,
Nottinghamshire County Council,1111/1001,Surplus or Deficit from Trading Undertak,TRADING,Supplies & Services,DAA,30/11/2015,10-10001,683.81,Slater Harrison & Co Ltd,,,,,,,,
Nottinghamshire County Council,1111/1001,Surplus or Deficit from Trading Undertak,TRADING,Supplies & Services,DAA,25/11/2015,10-10001,551.12,E V Naish Ltd,,,,,,,,
Nottinghamshire County Council,1111/1001,Surplus or Deficit from Trading Undertak,TRADING,Supplies & Services,DAA,03/11/2015,10-10001,805.70,Creativity International Ltd,,,,,,,,
Nottinghamshire County Council,1111/1001,Surplus or Deficit from Trading Undertak,TRADING,Supplies & Services,DAA,03/11/2015,10-10001,700.94,Creativity International Ltd,,,,,,,,
Nottinghamshire County Council,1111/1001,Surplus or Deficit from Trading Undertak,TRADING,Supplies & Services,DAA,24/11/2015,10-10001,689.69,Creativity International Ltd,,,,,,,,
Nottinghamshire County Council,1111/1001,Surplus or Deficit from Trading Undertak,TRADING,Supplies & Services,DAA,24/11/2015,10-10001,849.35,Creativity International Ltd,,,,,,,,
Nottinghamshire County Council,1111/1001,Surplus or Deficit from Trading Undertak,TRADING,Supplies & Services,DAA,03/11/2015,10-10001,755.76,Bright Ideas Marketing Ltd,,,,,,,,
Nottinghamshire County Council,1111/1001,Surplus or Deficit from Trading Undertak,TRADING,Supplies & Services,DAA,11/11/2015,10-10001,528.02,Bright Ideas Marketing Ltd,,,,,,,,
Nottinghamshire County Council,1111/1001,Surplus or Deficit from Trading Undertak,TRADING,Supplies & Services,DAA,04/11/2015,10-10001,744.66,Kit For Kids Ltd,,,,,,,,
Nottinghamshire County Council,1111/1001,Surplus or Deficit from Trading Undertak,TRADING,Supplies & Services,DAA,11/11/2015,10-10001,549.75,John Crane Ltd,,,,,,,,
Nottinghamshire County Council,1111/1001,Surplus or Deficit from Trading Undertak,TRADING,Supplies & Services,DAA,06/11/2015,10-10001,"1,705.58",Brian Clegg (Educational Products) Ltd,,,,,,,,
Nottinghamshire County Council,1111/1001,Surplus or Deficit from Trading Undertak,TRADING,Supplies & Services,DAA,12/11/2015,10-10001,540.42,Brian Clegg (Educational Products) Ltd,,,,,,,,
Nottinghamshire County Council,1111/1001,Surplus or Deficit from Trading Undertak,TRADING,Supplies & Services,DAA,17/11/2015,10-10001,845.70,Brian Clegg (Educational Products) Ltd,,,,,,,,
Nottinghamshire County Council,1111/1001,Surplus or Deficit from Trading Undertak,TRADING,Supplies & Services,DAA,24/11/2015,10-10001,903.16,Brian Clegg (Educational Products) Ltd,,,,,,,,
Nottinghamshire County Council,1111/1001,Surplus or Deficit from Trading Undertak,TRADING,Supplies & Services,DAA,24/11/2015,10-10001,632.88,Brian Clegg (Educational Products) Ltd,,,,,,,,
Nottinghamshire County Council,1111/1001,Surplus or Deficit from Trading Undertak,TRADING,Supplies & Services,DAA,12/11/2015,10-10001,659.50,Commotion Technology Supplies,,,,,,,,
Nottinghamshire County Council,1111/1001,Surplus or Deficit from Trading Undertak,TRADING,Supplies & Services,DAA,03/11/2015,10-10001,655.26,Profile Education Ltd,,,,,,,,
Nottinghamshire County Council,1111/1001,Surplus or Deficit from Trading Undertak,TRADING,Supplies & Services,DAA,06/11/2015,10-10001,780.12,Monarch Computer Furniture,,,,,,,,
Nottinghamshire County Council,1111/1001,Surplus or Deficit from Trading Undertak,TRADING,Supplies & Services,DAA,25/11/2015,10-10001,609.93,Monarch Computer Furniture,,,,,,,,
Nottinghamshire County Council,1111/1001,Surplus or Deficit from Trading Undertak,TRADING,Supplies & Services,DAA,25/11/2015,10-10001,"1,153.04",Monarch Computer Furniture,,,,,,,,
Nottinghamshire County Council,1111/1001,Surplus or Deficit from Trading Undertak,TRADING,Supplies & Services,DAA,25/11/2015,10-10001,728.60,Monarch Computer Furniture,,,,,,,,
Nottinghamshire County Council,1111/1001,Surplus or Deficit from Trading Undertak,TRADING,Employee Related,AAA,13/11/2015,10-10001,962.89,A&T Active Recruitment,,,,,,,,
Nottinghamshire County Council,1111/1001,Surplus or Deficit from Trading Undertak,TRADING,Employee Related,AAA,13/11/2015,10-10001,817.45,A&T Active Recruitment,,,,,,,,
Nottinghamshire County Council,1111/1001,Surplus or Deficit from Trading Undertak,TRADING,Employee Related,AAA,19/11/2015,10-10001,"1,083.23",A&T Active Recruitment,,,,,,,,
Nottinghamshire County Council,1111/1001,Surplus or Deficit from Trading Undertak,TRADING,Employee Related,AAA,27/11/2015,10-10001,962.87,A&T Active Recruitment,,,,,,,,
Nottinghamshire County Council,1111/1001,Children and Young People,CYP,Employee Related,ABA,23/11/2015,10-16385,600.00,Fountaindale Special School,,,,,,,,
Nottinghamshire County Council,1111/1001,Children and Young People,CYP,Premises Related,BDA,03/11/2015,10-10001,3674.72,Making It! Enterprises Ltd,,,,,,,,
Nottinghamshire County Council,1111/1001,Children and Young People,CYP,Premises Related,BDA,03/11/2015,10-10002,5862.49,Making It! Enterprises Ltd,,,,,,,,
Nottinghamshire County Council,1111/1001,Children and Young People,CYP,Premises Related,BDA,03/11/2015,10-10003,1099.99,Nottingham City Council,,,,,,,,
Nottinghamshire County Council,1111/1001,Children and Young People,CYP,Premises Related,BDA,03/11/2015,10-10004,4768.26,Making It! Enterprises Ltd,,,,,,,,
Nottinghamshire County Council,1111/1001,Children and Young People,CYP,Premises Related,BDA,03/11/2015,10-10005,528.00,Derbyshire Dales District Council,,,,,,,,
Nottinghamshire County Council,1111/1001,Children and Young People,CYP,Premises Related,BDA,03/11/2015,10-10007,606.67,J Sedoo t/a Sedoo Investments,,,,,,,,
Nottinghamshire County Council,1111/1001,Children and Young People,CYP,Premises Related,BDA,03/11/2015,10-10008,606.67,J Sedoo t/a Sedoo Investments,,,,,,,,
Nottinghamshire County Council,1111/1001,Children and Young People,CYP,Premises Related,BDA,03/11/2015,10-10009,606.67,J Sedoo t/a Sedoo Investments,,,,,,,,
Nottinghamshire County Council,1111/1001,Children and Young People,CYP,Premises Related,BDA,03/11/2015,10-10013,1750.00,Park Lodge Project,,,,,,,,
Nottinghamshire County Council,1111/1001,Children and Young People,CYP,Premises Related,BDA,03/11/2015,10-10015,2846.42,Making It! Enterprises Ltd,,,,,,,,
Nottinghamshire County Council,1111/1001,Children and Young People,CYP,Premises Related,BDA,04/11/2015,10-10014,675.00,W J & S S Waterworth,,,,,,,,
Nottinghamshire County Council,1111/1001,Children and Young People,CYP,Premises Related,BDA,12/11/2015,10-16104,2203.86,Everyone Active (HO),,,,,,,,
Nottinghamshire County Council,1111/1001,Children and Young People,CYP,Premises Related,BDA,19/11/2015,10-16253,2792.08,Harworth & Bircotes Town Council,,,,,,,,
Nottinghamshire County Council,1111/1001,Children and Young People,CYP,Premises Related,BDA,20/11/2015,10-16296,1143.10,Alfred Mcalpine Business Services L,,,,,,,,
Nottinghamshire County Council,1111/1001,Children and Young People,CYP,Premises Related,BDA,23/11/2015,10-16382,1140.66,Bestwood Lodge Hotel,,,,,,,,
Nottinghamshire County Council,1111/1001,Children and Young People,CYP,Premises Related,BDA,25/11/2015,10-16409,867.46,Alfred Mcalpine Business Services L,,,,,,,,
Nottinghamshire County Council,1111/1001,Children and Young People,CYP,Premises Related,BDA,25/11/2015,10-16416,4000.00,Peter Hook Associates,,,,,,,,
Nottinghamshire County Council,1111/1001,Children and Young People,CYP,Premises Related,BDA,25/11/2015,10-16430,668.04,Alfred Mcalpine Business Services L,,,,,,,,
Nottinghamshire County Council,1111/1001,Children and Young People,CYP,Premises Related,BDA,27/11/2015,10-16572,1050.00,Ashlea Special School,,,,,,,,
Nottinghamshire County Council,1111/1001,Children and Young People,CYP,Premises Related,BDA,30/11/2015,10-16387,12640.00,The Nottingham Gateway Hotel,,,,,,,,
Nottinghamshire County Council,1111/1001,Children and Young People,CYP,Premises Related,BFA,18/11/2015,10-15374,1127.53,Severn Trent Water Ltd,,,,,,,,
Nottinghamshire County Council,1111/1001,Children and Young People,CYP,Premises Related,BFA,30/11/2015,10-16578,633.00,Forever Fuels Ltd,,,,,,,,
Nottinghamshire County Council,1111/1001,Children and Young People,CYP,Transport Related,CCA,02/11/2015,10-10063,1948.20,I Can Charity,,,,,,,,
Nottinghamshire County Council,1111/1001,Children and Young People,CYP,Transport Related,CCA,03/11/2015,10-12930,1953.20,6 Five 2s,,,,,,,,
Nottinghamshire County Council,1111/1001,Children and Young People,CYP,Transport Related,CCA,03/11/2015,10-12931,2044.00,6 Five 2s,,,,,,,,
Nottinghamshire County Council,1111/1001,Children and Young People,CYP,Transport Related,CCA,03/11/2015,10-12932,4553.43,BN Gibson Ltd,,,,,,,,
Nottinghamshire County Council,1111/1001,Children and Young People,CYP,Transport Related,CCA,03/11/2015,10-13076,612.00,Alert Cars Ltd,,,,,,,,
Nottinghamshire County Council,1111/1001,Children and Young People,CYP,Transport Related,CCA,03/11/2015,10-13078,1701.00,Ace Cars,,,,,,,,
Nottinghamshire County Council,1111/1001,Children and Young People,CYP,Transport Related,CCA,03/11/2015,10-13079,1412.25,Ace Cars,,,,,,,,
Nottinghamshire County Council,1111/1001,Children and Young People,CYP,Transport Related,CCA,03/11/2015,10-13081,2142.00,Ace Cars,,,,,,,,
Nottinghamshire County Council,1111/1001,Children and Young People,CYP,Transport Related,CCA,03/11/2015,10-13082,598.50,Ace Cars,,,,,,,,
Nottinghamshire County Council,1111/1001,Children and Young People,CYP,Transport Related,CCA,03/11/2015,10-13083,1324.40,Ace Cars,,,,,,,,
Nottinghamshire County Council,1111/1001,Children and Young People,CYP,Transport Related,CCA,05/11/2015,10-13306,2448.00,Taxicover Uk Ltd,,,,,,,,
Nottinghamshire County Council,1111/1001,Children and Young People,CYP,Transport Related,CCA,05/11/2015,10-13307,2686.00,Taxicover Uk Ltd,,,,,,,,
Nottinghamshire County Council,1111/1001,Children and Young People,CYP,Transport Related,CCA,05/11/2015,10-13308,3196.00,Taxicover Uk Ltd,,,,,,,,
Nottinghamshire County Council,1111/1001,Children and Young People,CYP,Transport Related,CCA,05/11/2015,10-13309,3152.00,Taxicover Uk Ltd,,,,,,,,
Nottinghamshire County Council,1111/1001,Children and Young People,CYP,Transport Related,CCA,05/11/2015,10-13310,2887.62,Taxicover Uk Ltd,,,,,,,,
Nottinghamshire County Council,1111/1001,Children and Young People,CYP,Transport Related,CCA,05/11/2015,10-13311,3046.74,Taxicover Uk Ltd,,,,,,,,
Nottinghamshire County Council,1111/1001,Children and Young People,CYP,Transport Related,CCA,05/11/2015,10-13312,3205.35,Taxicover Uk Ltd,,,,,,,,
Nottinghamshire County Council,1111/1001,Children and Young People,CYP,Transport Related,CCA,05/11/2015,10-13313,2733.77,Taxicover Uk Ltd,,,,,,,,
Nottinghamshire County Council,1111/1001,Children and Young People,CYP,Transport Related,CCA,05/11/2015,10-13314,2465.00,Taxicover Uk Ltd,,,,,,,,
Nottinghamshire County Council,1111/1001,Children and Young People,CYP,Transport Related,CCA,05/11/2015,10-13315,2635.00,Taxicover Uk Ltd,,,,,,,,
Nottinghamshire County Council,1111/1001,Children and Young People,CYP,Transport Related,CCA,05/11/2015,10-13316,2363.00,Taxicover Uk Ltd,,,,,,,,
Nottinghamshire County Council,1111/1001,Children and Young People,CYP,Transport Related,CCA,05/11/2015,10-13317,2516.00,Taxicover Uk Ltd,,,,,,,,
Nottinghamshire County Council,1111/1001,Children and Young People,CYP,Transport Related,CCA,05/11/2015,10-13318,2856.00,Taxicover Uk Ltd,,,,,,,,
Nottinghamshire County Council,1111/1001,Children and Young People,CYP,Transport Related,CCA,05/11/2015,10-13319,2652.00,Taxicover Uk Ltd,,,,,,,,
Nottinghamshire County Council,1111/1001,Children and Young People,CYP,Transport Related,CCA,05/11/2015,10-13321,955.00,Southside Cars,,,,,,,,
Nottinghamshire County Council,1111/1001,Children and Young People,CYP,Transport Related,CCA,05/11/2015,10-13322,1150.80,Southside Cars,,,,,,,,
Nottinghamshire County Council,1111/1001,Children and Young People,CYP,Transport Related,CCA,05/11/2015,10-13323,1066.00,Southside Cars,,,,,,,,
Nottinghamshire County Council,1111/1001,Children and Young People,CYP,Transport Related,CCA,05/11/2015,10-13324,1766.40,Southside Cars,,,,,,,,
Nottinghamshire County Council,1111/1001,Children and Young People,CYP,Transport Related,CCA,05/11/2015,10-13325,1840.00,Southside Cars,,,,,,,,
Nottinghamshire County Council,1111/1001,Children and Young People,CYP,Transport Related,CCA,05/11/2015,10-13326,604.50,Southside Cars,,,,,,,,
Nottinghamshire County Council,1111/1001,Children and Young People,CYP,Transport Related,CCA,05/11/2015,10-13331,1020.00,6 Five 2s,,,,,,,,
Nottinghamshire County Council,1111/1001,Children and Young People,CYP,Transport Related,CCA,05/11/2015,10-13332,1496.00,6 Five 2s,,,,,,,,
Nottinghamshire County Council,1111/1001,Children and Young People,CYP,Transport Related,CCA,05/11/2015,10-13333,1533.12,6 Five 2s,,,,,,,,
Nottinghamshire County Council,1111/1001,Children and Young People,CYP,Transport Related,CCA,05/11/2015,10-13334,660.96,6 Five 2s,,,,,,,,
Nottinghamshire County Council,1111/1001,Children and Young People,CYP,Transport Related,CCA,05/11/2015,10-13335,1447.04,6 Five 2s,,,,,,,,
Nottinghamshire County Council,1111/1001,Children and Young People,CYP,Transport Related,CCA,05/11/2015,10-13336,1747.60,6 Five 2s,,,,,,,,
Nottinghamshire County Council,1111/1001,Children and Young People,CYP,Transport Related,CCA,05/11/2015,10-13337,1737.40,6 Five 2s,,,,,,,,
Nottinghamshire County Council,1111/1001,Children and Young People,CYP,Transport Related,CCA,05/11/2015,10-13338,1504.00,6 Five 2s,,,,,,,,
Nottinghamshire County Council,1111/1001,Children and Young People,CYP,Transport Related,CCA,05/11/2015,10-13339,952.00,6 Five 2s,,,,,,,,
Nottinghamshire County Council,1111/1001,Children and Young People,CYP,Transport Related,CCA,05/11/2015,10-13340,665.92,6 Five 2s,,,,,,,,
Nottinghamshire County Council,1111/1001,Children and Young People,CYP,Transport Related,CCA,05/11/2015,10-13342,1895.16,D G Private Hire Ltd,,,,,,,,
Nottinghamshire County Council,1111/1001,Children and Young People,CYP,Transport Related,CCA,05/11/2015,10-13343,480.00,D G Private Hire Ltd,,,,,,,,
Nottinghamshire County Council,1111/1001,Children and Young People,CYP,Transport Related,CCA,05/11/2015,10-13345,2140.13,D G Private Hire Ltd,,,,,,,,
Nottinghamshire County Council,1111/1001,Children and Young People,CYP,Transport Related,CCA,05/11/2015,10-13347,1008.00,Headland Taxi Services,,,,,,,,
Nottinghamshire County Council,1111/1001,Children and Young People,CYP,Transport Related,CCA,05/11/2015,10-13348,1503.82,Ja Travel Ltd,,,,,,,,
Nottinghamshire County Council,1111/1001,Children and Young People,CYP,Transport Related,CCA,05/11/2015,10-13349,2762.50,Ja Travel Ltd,,,,,,,,
Nottinghamshire County Council,1111/1001,Children and Young People,CYP,Transport Related,CCA,05/11/2015,10-13350,2720.00,Ja Travel Ltd,,,,,,,,
Nottinghamshire County Council,1111/1001,Children and Young People,CYP,Transport Related,CCA,05/11/2015,10-13354,2340.90,F & J Marriott T/A Unity Coaches,,,,,,,,
Nottinghamshire County Council,1111/1001,Children and Young People,CYP,Transport Related,CCA,05/11/2015,10-13355,2340.90,F & J Marriott T/A Unity Coaches,,,,,,,,
Nottinghamshire County Council,1111/1001,Children and Young People,CYP,Transport Related,CCA,05/11/2015,10-13356,2411.62,F & J Marriott T/A Unity Coaches,,,,,,,,
Nottinghamshire County Council,1111/1001,Children and Young People,CYP,Transport Related,CCA,05/11/2015,10-13363,2143.26,BN Gibson Ltd,,,,,,,,
Nottinghamshire County Council,1111/1001,Children and Young People,CYP,Transport Related,CCA,05/11/2015,10-13364,3436.40,BN Gibson Ltd,,,,,,,,
Nottinghamshire County Council,1111/1001,Children and Young People,CYP,Transport Related,CCA,05/11/2015,10-13365,2201.50,K & S Coaches,,,,,,,,
Nottinghamshire County Council,1111/1001,Children and Young People,CYP,Transport Related,CCA,05/11/2015,10-13366,2261.00,D G Private Hire Ltd,,,,,,,,
Nottinghamshire County Council,1111/1001,Children and Young People,CYP,Transport Related,CCA,05/11/2015,10-13367,1136.16,D G Private Hire Ltd,,,,,,,,
Nottinghamshire County Council,1111/1001,Children and Young People,CYP,Transport Related,CCA,05/11/2015,10-13368,560.00,D G Private Hire Ltd,,,,,,,,
Nottinghamshire County Council,1111/1001,Children and Young People,CYP,Transport Related,CCA,05/11/2015,10-13369,910.00,D G Private Hire Ltd,,,,,,,,
Nottinghamshire County Council,1111/1001,Children and Young People,CYP,Transport Related,CCA,05/11/2015,10-13370,1280.00,D G Private Hire Ltd,,,,,,,,
Nottinghamshire County Council,1111/1001,Children and Young People,CYP,Transport Related,CCA,05/11/2015,10-13371,1312.16,D G Private Hire Ltd,,,,,,,,
Nottinghamshire County Council,1111/1001,Children and Young People,CYP,Transport Related,CCA,05/11/2015,10-13372,1360.00,D G Private Hire Ltd,,,,,,,,
Nottinghamshire County Council,1111/1001,Children and Young People,CYP,Transport Related,CCA,05/11/2015,10-13392,2370.14,Travel Wright Ltd,,,,,,,,
Nottinghamshire County Council,1111/1001,Children and Young People,CYP,Transport Related,CCA,05/11/2015,10-13394,1298.80,Travel Wright Ltd,,,,,,,,
Nottinghamshire County Council,1111/1001,Children and Young People,CYP,Transport Related,CCA,05/11/2015,10-13412,2653.00,Freeway Coaches Ltd,,,,,,,,
Nottinghamshire County Council,1111/1001,Children and Young People,CYP,Transport Related,CCA,05/11/2015,10-13413,3168.00,Freeway Coaches Ltd,,,,,,,,
Nottinghamshire County Council,1111/1001,Children and Young People,CYP,Transport Related,CCA,05/11/2015,10-13427,1606.50,Ace Cars,,,,,,,,
Nottinghamshire County Council,1111/1001,Children and Young People,CYP,Transport Related,CCA,05/11/2015,10-13428,593.40,Ace Cars,,,,,,,,
Nottinghamshire County Council,1111/1001,Children and Young People,CYP,Transport Related,CCA,05/11/2015,10-13429,1521.50,Ace Cars,,,,,,,,
Nottinghamshire County Council,1111/1001,Children and Young People,CYP,Transport Related,CCA,05/11/2015,10-13430,1075.50,Ace Cars,,,,,,,,
Nottinghamshire County Council,1111/1001,Children and Young People,CYP,Transport Related,CCA,05/11/2015,10-13431,2031.50,Ace Cars,,,,,,,,
Nottinghamshire County Council,1111/1001,Children and Young People,CYP,Transport Related,CCA,05/11/2015,10-13433,1293.50,Ace Cars,,,,,,,,
Nottinghamshire County Council,1111/1001,Children and Young People,CYP,Transport Related,CCA,05/11/2015,10-13434,1513.60,Ace Cars,,,,,,,,
Nottinghamshire County Council,1111/1001,Children and Young People,CYP,Transport Related,CCA,05/11/2015,10-13435,1833.60,Ace Cars,,,,,,,,
Nottinghamshire County Council,1111/1001,Children and Young People,CYP,Transport Related,CCA,05/11/2015,10-13436,1731.20,Ace Cars,,,,,,,,
Nottinghamshire County Council,1111/1001,Children and Young People,CYP,Transport Related,CCA,05/11/2015,10-13437,952.00,Ace Cars,,,,,,,,
Nottinghamshire County Council,1111/1001,Children and Young People,CYP,Transport Related,CCA,05/11/2015,10-13438,954.00,Ace Cars,,,,,,,,
Nottinghamshire County Council,1111/1001,Children and Young People,CYP,Transport Related,CCA,05/11/2015,10-13440,1143.25,Ace Cars,,,,,,,,
Nottinghamshire County Council,1111/1001,Children and Young People,CYP,Transport Related,CCA,05/11/2015,10-13442,2031.50,Ace Cars,,,,,,,,
Nottinghamshire County Council,1111/1001,Children and Young People,CYP,Transport Related,CCA,05/11/2015,10-13443,1606.50,Ace Cars,,,,,,,,
Nottinghamshire County Council,1111/1001,Children and Young People,CYP,Transport Related,CCA,05/11/2015,10-13444,1436.50,Ace Cars,,,,,,,,
Nottinghamshire County Council,1111/1001,Children and Young People,CYP,Transport Related,CCA,05/11/2015,10-13445,1931.20,Ace Cars,,,,,,,,
Nottinghamshire County Council,1111/1001,Children and Young People,CYP,Transport Related,CCA,05/11/2015,10-13446,2499.00,Ace Cars,,,,,,,,
Nottinghamshire County Council,1111/1001,Children and Young People,CYP,Transport Related,CCA,05/11/2015,10-13447,946.00,Ace Cars,,,,,,,,
Nottinghamshire County Council,1111/1001,Children and Young People,CYP,Transport Related,CCA,05/11/2015,10-13448,1396.50,Ace Cars,,,,,,,,
Nottinghamshire County Council,1111/1001,Children and Young People,CYP,Transport Related,CCA,05/11/2015,10-13451,1511.25,Nottingham Coaches,,,,,,,,
Nottinghamshire County Council,1111/1001,Children and Young People,CYP,Transport Related,CCA,05/11/2015,10-13456,1700.00,Trevor Bailey t/a Trevor Bailey Tra,,,,,,,,
Nottinghamshire County Council,1111/1001,Children and Young People,CYP,Transport Related,CCA,06/11/2015,10-13543,2207.45,Midfield Travel,,,,,,,,
Nottinghamshire County Council,1111/1001,Children and Young People,CYP,Transport Related,CCA,06/11/2015,10-13563,1473.25,All Wayz Travel,,,,,,,,
Nottinghamshire County Council,1111/1001,Children and Young People,CYP,Transport Related,CCA,06/11/2015,10-13567,1081.50,Cabline Uk Ltd,,,,,,,,
Nottinghamshire County Council,1111/1001,Children and Young People,CYP,Transport Related,CCA,06/11/2015,10-13573,2167.50,Johnson Bros Tours Ltd,,,,,,,,
Nottinghamshire County Council,1111/1001,Children and Young People,CYP,Transport Related,CCA,06/11/2015,10-13579,1064.00,200 Cars Ltd,,,,,,,,
Nottinghamshire County Council,1111/1001,Children and Young People,CYP,Transport Related,CCA,06/11/2015,10-13580,722.00,200 Cars Ltd,,,,,,,,
Nottinghamshire County Council,1111/1001,Children and Young People,CYP,Transport Related,CCA,06/11/2015,10-13581,800.00,Alpha Cars,,,,,,,,
Nottinghamshire County Council,1111/1001,Children and Young People,CYP,Transport Related,CCA,06/11/2015,10-13582,988.00,Alpha Cars,,,,,,,,
Nottinghamshire County Council,1111/1001,Children and Young People,CYP,Transport Related,CCA,06/11/2015,10-13583,1498.00,Alpha Cars,,,,,,,,
Nottinghamshire County Council,1111/1001,Children and Young People,CYP,Transport Related,CCA,06/11/2015,10-13584,1893.12,Arrow Specialised Transport Ltd,,,,,,,,
Nottinghamshire County Council,1111/1001,Children and Young People,CYP,Transport Related,CCA,06/11/2015,10-13585,1680.00,Arrow Specialised Transport Ltd,,,,,,,,
Nottinghamshire County Council,1111/1001,Children and Young People,CYP,Transport Related,CCA,06/11/2015,10-13586,1568.00,Arrow Specialised Transport Ltd,,,,,,,,
Nottinghamshire County Council,1111/1001,Children and Young People,CYP,Transport Related,CCA,06/11/2015,10-13588,2080.00,Arrow Specialised Transport Ltd,,,,,,,,
Nottinghamshire County Council,1111/1001,Children and Young People,CYP,Transport Related,CCA,06/11/2015,10-13589,1632.00,Arrow Specialised Transport Ltd,,,,,,,,
Nottinghamshire County Council,1111/1001,Children and Young People,CYP,Transport Related,CCA,06/11/2015,10-13590,2320.00,Arrow Specialised Transport Ltd,,,,,,,,
Nottinghamshire County Council,1111/1001,Children and Young People,CYP,Transport Related,CCA,06/11/2015,10-13591,2320.00,Arrow Specialised Transport Ltd,,,,,,,,
Nottinghamshire County Council,1111/1001,Children and Young People,CYP,Transport Related,CCA,06/11/2015,10-13592,1819.00,Arrow Specialised Transport Ltd,,,,,,,,
Nottinghamshire County Council,1111/1001,Children and Young People,CYP,Transport Related,CCA,06/11/2015,10-13593,2011.44,Arrow Specialised Transport Ltd,,,,,,,,
Nottinghamshire County Council,1111/1001,Children and Young People,CYP,Transport Related,CCA,06/11/2015,10-13594,1381.44,Arrow Specialised Transport Ltd,,,,,,,,
Nottinghamshire County Council,1111/1001,Children and Young People,CYP,Transport Related,CCA,06/11/2015,10-13595,1520.00,Arrow Specialised Transport Ltd,,,,,,,,
Nottinghamshire County Council,1111/1001,Children and Young People,CYP,Transport Related,CCA,06/11/2015,10-13596,1744.00,Arrow Specialised Transport Ltd,,,,,,,,
Nottinghamshire County Council,1111/1001,Children and Young People,CYP,Transport Related,CCA,06/11/2015,10-13597,2160.00,Arrow Specialised Transport Ltd,,,,,,,,
Nottinghamshire County Council,1111/1001,Children and Young People,CYP,Transport Related,CCA,06/11/2015,10-13598,1520.00,Arrow Specialised Transport Ltd,,,,,,,,
Nottinghamshire County Council,1111/1001,Children and Young People,CYP,Transport Related,CCA,06/11/2015,10-13599,1264.00,Arrow Specialised Transport Ltd,,,,,,,,
Nottinghamshire County Council,1111/1001,Children and Young People,CYP,Transport Related,CCA,06/11/2015,10-13600,2859.91,Arrow Specialised Transport Ltd,,,,,,,,
Nottinghamshire County Council,1111/1001,Children and Young People,CYP,Transport Related,CCA,06/11/2015,10-13601,2479.62,Arrow Specialised Transport Ltd,,,,,,,,
Nottinghamshire County Council,1111/1001,Children and Young People,CYP,Transport Related,CCA,06/11/2015,10-13602,869.89,Arrow Specialised Transport Ltd,,,,,,,,
Nottinghamshire County Council,1111/1001,Children and Young People,CYP,Transport Related,CCA,06/11/2015,10-13603,1510.96,Arrow Specialised Transport Ltd,,,,,,,,
Nottinghamshire County Council,1111/1001,Children and Young People,CYP,Transport Related,CCA,06/11/2015,10-13604,2017.22,Arrow Specialised Transport Ltd,,,,,,,,
Nottinghamshire County Council,1111/1001,Children and Young People,CYP,Transport Related,CCA,06/11/2015,10-13605,1757.63,Arrow Specialised Transport Ltd,,,,,,,,
Nottinghamshire County Council,1111/1001,Children and Young People,CYP,Transport Related,CCA,06/11/2015,10-13606,1621.80,Arrow Specialised Transport Ltd,,,,,,,,
Nottinghamshire County Council,1111/1001,Children and Young People,CYP,Transport Related,CCA,06/11/2015,10-13607,1966.90,Arrow Specialised Transport Ltd,,,,,,,,
Nottinghamshire County Council,1111/1001,Children and Young People,CYP,Transport Related,CCA,06/11/2015,10-13608,2415.53,Arrow Specialised Transport Ltd,,,,,,,,
Nottinghamshire County Council,1111/1001,Children and Young People,CYP,Transport Related,CCA,06/11/2015,10-13609,2812.65,Arrow Specialised Transport Ltd,,,,,,,,
Nottinghamshire County Council,1111/1001,Children and Young People,CYP,Transport Related,CCA,06/11/2015,10-13610,1737.40,Arrow Specialised Transport Ltd,,,,,,,,
Nottinghamshire County Council,1111/1001,Children and Young People,CYP,Transport Related,CCA,06/11/2015,10-13611,1857.08,Arrow Specialised Transport Ltd,,,,,,,,
Nottinghamshire County Council,1111/1001,Children and Young People,CYP,Transport Related,CCA,06/11/2015,10-13612,1546.88,Arrow Specialised Transport Ltd,,,,,,,,
Nottinghamshire County Council,1111/1001,Children and Young People,CYP,Transport Related,CCA,06/11/2015,10-13613,1581.00,Arrow Specialised Transport Ltd,,,,,,,,
Nottinghamshire County Council,1111/1001,Children and Young People,CYP,Transport Related,CCA,06/11/2015,10-13614,1776.50,Arrow Specialised Transport Ltd,,,,,,,,
Nottinghamshire County Council,1111/1001,Children and Young People,CYP,Transport Related,CCA,06/11/2015,10-13615,1751.00,Arrow Specialised Transport Ltd,,,,,,,,
Nottinghamshire County Council,1111/1001,Children and Young People,CYP,Transport Related,CCA,06/11/2015,10-13616,1785.00,Arrow Specialised Transport Ltd,,,,,,,,
Nottinghamshire County Council,1111/1001,Children and Young People,CYP,Transport Related,CCA,06/11/2015,10-13617,1768.00,Arrow Specialised Transport Ltd,,,,,,,,
Nottinghamshire County Council,1111/1001,Children and Young People,CYP,Transport Related,CCA,06/11/2015,10-13618,2139.45,Arrow Specialised Transport Ltd,,,,,,,,
Nottinghamshire County Council,1111/1001,Children and Young People,CYP,Transport Related,CCA,06/11/2015,10-13619,1972.00,Arrow Specialised Transport Ltd,,,,,,,,
Nottinghamshire County Council,1111/1001,Children and Young People,CYP,Transport Related,CCA,06/11/2015,10-13620,1632.00,Arrow Specialised Transport Ltd,,,,,,,,
Nottinghamshire County Council,1111/1001,Children and Young People,CYP,Transport Related,CCA,06/11/2015,10-13621,2040.00,Arrow Specialised Transport Ltd,,,,,,,,
Nottinghamshire County Council,1111/1001,Children and Young People,CYP,Transport Related,CCA,06/11/2015,10-13622,2040.00,Arrow Specialised Transport Ltd,,,,,,,,
Nottinghamshire County Council,1111/1001,Children and Young People,CYP,Transport Related,CCA,06/11/2015,10-13623,2176.00,Arrow Specialised Transport Ltd,,,,,,,,
Nottinghamshire County Council,1111/1001,Children and Young People,CYP,Transport Related,CCA,06/11/2015,10-13624,1751.00,Arrow Specialised Transport Ltd,,,,,,,,
Nottinghamshire County Council,1111/1001,Children and Young People,CYP,Transport Related,CCA,06/11/2015,10-13625,2233.60,Arrow Specialised Transport Ltd,,,,,,,,
Nottinghamshire County Council,1111/1001,Children and Young People,CYP,Transport Related,CCA,06/11/2015,10-13626,1547.00,Arrow Specialised Transport Ltd,,,,,,,,
Nottinghamshire County Council,1111/1001,Children and Young People,CYP,Transport Related,CCA,06/11/2015,10-13627,1768.00,Arrow Specialised Transport Ltd,,,,,,,,
Nottinghamshire County Council,1111/1001,Children and Young People,CYP,Transport Related,CCA,06/11/2015,10-13628,5384.06,Arrow Specialised Transport Ltd,,,,,,,,
Nottinghamshire County Council,1111/1001,Children and Young People,CYP,Transport Related,CCA,06/11/2015,10-13629,2193.00,Arrow Specialised Transport Ltd,,,,,,,,
Nottinghamshire County Council,1111/1001,Children and Young People,CYP,Transport Related,CCA,06/11/2015,10-13630,2160.00,Arrow Specialised Transport Ltd,,,,,,,,
Nottinghamshire County Council,1111/1001,Children and Young People,CYP,Transport Related,CCA,06/11/2015,10-13631,2293.38,Arrow Specialised Transport Ltd,,,,,,,,
Nottinghamshire County Council,1111/1001,Children and Young People,CYP,Transport Related,CCA,06/11/2015,10-13633,988.80,Arrow Specialised Transport Ltd,,,,,,,,
Nottinghamshire County Council,1111/1001,Children and Young People,CYP,Transport Related,CCA,06/11/2015,10-13635,2237.20,Arrow Specialised Transport Ltd,,,,,,,,
Nottinghamshire County Council,1111/1001,Children and Young People,CYP,Transport Related,CCA,06/11/2015,10-13636,1683.00,Arrow Specialised Transport Ltd,,,,,,,,
Nottinghamshire County Council,1111/1001,Children and Young People,CYP,Transport Related,CCA,06/11/2015,10-13637,2023.00,Arrow Specialised Transport Ltd,,,,,,,,
Nottinghamshire County Council,1111/1001,Children and Young People,CYP,Transport Related,CCA,06/11/2015,10-13638,741.96,Arrow Specialised Transport Ltd,,,,,,,,
Nottinghamshire County Council,1111/1001,Children and Young People,CYP,Transport Related,CCA,06/11/2015,10-13640,907.80,Arrow Specialised Transport Ltd,,,,,,,,
Nottinghamshire County Council,1111/1001,Children and Young People,CYP,Transport Related,CCA,06/11/2015,10-13641,2358.24,Arrow Specialised Transport Ltd,,,,,,,,
Nottinghamshire County Council,1111/1001,Children and Young People,CYP,Transport Related,CCA,06/11/2015,10-13642,1870.00,Arrow Specialised Transport Ltd,,,,,,,,
Nottinghamshire County Council,1111/1001,Children and Young People,CYP,Transport Related,CCA,06/11/2015,10-13643,1821.89,Arrow Specialised Transport Ltd,,,,,,,,
Nottinghamshire County Council,1111/1001,Children and Young People,CYP,Transport Related,CCA,06/11/2015,10-13644,2227.00,Arrow Specialised Transport Ltd,,,,,,,,
Nottinghamshire County Council,1111/1001,Children and Young People,CYP,Transport Related,CCA,06/11/2015,10-13645,1193.44,Arrow Specialised Transport Ltd,,,,,,,,
Nottinghamshire County Council,1111/1001,Children and Young People,CYP,Transport Related,CCA,06/11/2015,10-13646,2040.00,Arrow Specialised Transport Ltd,,,,,,,,
Nottinghamshire County Council,1111/1001,Children and Young People,CYP,Transport Related,CCA,06/11/2015,10-13647,1452.48,Arrow Specialised Transport Ltd,,,,,,,,
Nottinghamshire County Council,1111/1001,Children and Young People,CYP,Transport Related,CCA,06/11/2015,10-13648,1075.59,Arrow Specialised Transport Ltd,,,,,,,,
Nottinghamshire County Council,1111/1001,Children and Young People,CYP,Transport Related,CCA,06/11/2015,10-13649,2048.00,Arrow Specialised Transport Ltd,,,,,,,,
Nottinghamshire County Council,1111/1001,Children and Young People,CYP,Transport Related,CCA,06/11/2015,10-13650,1361.92,Arrow Specialised Transport Ltd,,,,,,,,
Nottinghamshire County Council,1111/1001,Children and Young People,CYP,Transport Related,CCA,06/11/2015,10-13651,609.44,Arrow Specialised Transport Ltd,,,,,,,,
Nottinghamshire County Council,1111/1001,Children and Young People,CYP,Transport Related,CCA,06/11/2015,10-13653,1429.12,Arrow Specialised Transport Ltd,,,,,,,,
Nottinghamshire County Council,1111/1001,Children and Young People,CYP,Transport Related,CCA,06/11/2015,10-13654,1577.92,Arrow Specialised Transport Ltd,,,,,,,,
Nottinghamshire County Council,1111/1001,Children and Young People,CYP,Transport Related,CCA,06/11/2015,10-13655,1591.04,Arrow Specialised Transport Ltd,,,,,,,,
Nottinghamshire County Council,1111/1001,Children and Young People,CYP,Transport Related,CCA,06/11/2015,10-13656,1155.36,Arrow Specialised Transport Ltd,,,,,,,,
Nottinghamshire County Council,1111/1001,Children and Young People,CYP,Transport Related,CCA,06/11/2015,10-13658,1929.33,Arrow Specialised Transport Ltd,,,,,,,,
Nottinghamshire County Council,1111/1001,Children and Young People,CYP,Transport Related,CCA,06/11/2015,10-13659,2007.53,Arrow Specialised Transport Ltd,,,,,,,,
Nottinghamshire County Council,1111/1001,Children and Young People,CYP,Transport Related,CCA,06/11/2015,10-13660,2516.00,Arrow Specialised Transport Ltd,,,,,,,,
Nottinghamshire County Council,1111/1001,Children and Young People,CYP,Transport Related,CCA,06/11/2015,10-13661,1683.00,Arrow Specialised Transport Ltd,,,,,,,,
Nottinghamshire County Council,1111/1001,Children and Young People,CYP,Transport Related,CCA,06/11/2015,10-13662,1870.00,Arrow Specialised Transport Ltd,,,,,,,,
Nottinghamshire County Council,1111/1001,Children and Young People,CYP,Transport Related,CCA,06/11/2015,10-13663,1904.00,Arrow Specialised Transport Ltd,,,,,,,,
Nottinghamshire County Council,1111/1001,Children and Young People,CYP,Transport Related,CCA,06/11/2015,10-13665,2036.48,Arrow Specialised Transport Ltd,,,,,,,,
Nottinghamshire County Council,1111/1001,Children and Young People,CYP,Transport Related,CCA,06/11/2015,10-13667,1039.55,Arrow Specialised Transport Ltd,,,,,,,,
Nottinghamshire County Council,1111/1001,Children and Young People,CYP,Transport Related,CCA,06/11/2015,10-13670,2688.00,Arrow Specialised Transport Ltd,,,,,,,,
Nottinghamshire County Council,1111/1001,Children and Young People,CYP,Transport Related,CCA,06/11/2015,10-13678,1253.00,Bridges Transport Services,,,,,,,,
Nottinghamshire County Council,1111/1001,Children and Young People,CYP,Transport Related,CCA,06/11/2015,10-13681,1700.00,Bridges Transport Services,,,,,,,,
Nottinghamshire County Council,1111/1001,Children and Young People,CYP,Transport Related,CCA,06/11/2015,10-13682,2142.00,Bridges Transport Services,,,,,,,,
Nottinghamshire County Council,1111/1001,Children and Young People,CYP,Transport Related,CCA,06/11/2015,10-13683,1360.00,Bridges Transport Services,,,,,,,,
Nottinghamshire County Council,1111/1001,Children and Young People,CYP,Transport Related,CCA,06/11/2015,10-13684,1076.00,Bridges Transport Services,,,,,,,,
Nottinghamshire County Council,1111/1001,Children and Young People,CYP,Transport Related,CCA,06/11/2015,10-13685,1320.00,Bridges Transport Services,,,,,,,,
Nottinghamshire County Council,1111/1001,Children and Young People,CYP,Transport Related,CCA,06/11/2015,10-13686,1028.96,Bridges Transport Services,,,,,,,,
Nottinghamshire County Council,1111/1001,Children and Young People,CYP,Transport Related,CCA,06/11/2015,10-13687,776.05,Bridges Transport Services,,,,,,,,
Nottinghamshire County Council,1111/1001,Children and Young People,CYP,Transport Related,CCA,06/11/2015,10-13688,979.20,Bridges Transport Services,,,,,,,,
Nottinghamshire County Council,1111/1001,Children and Young People,CYP,Transport Related,CCA,06/11/2015,10-13689,2441.44,Bridges Transport Services,,,,,,,,
Nottinghamshire County Council,1111/1001,Children and Young People,CYP,Transport Related,CCA,06/11/2015,10-13690,1176.80,Bridges Transport Services,,,,,,,,
Nottinghamshire County Council,1111/1001,Children and Young People,CYP,Transport Related,CCA,06/11/2015,10-13691,3329.12,Bridges Transport Services,,,,,,,,
Nottinghamshire County Council,1111/1001,Children and Young People,CYP,Transport Related,CCA,06/11/2015,10-13692,1755.76,Bridges Transport Services,,,,,,,,
Nottinghamshire County Council,1111/1001,Children and Young People,CYP,Transport Related,CCA,06/11/2015,10-13693,2375.24,Bridges Transport Services,,,,,,,,
Nottinghamshire County Council,1111/1001,Children and Young People,CYP,Transport Related,CCA,06/11/2015,10-13694,2434.57,Bridges Transport Services,,,,,,,,
Nottinghamshire County Council,1111/1001,Children and Young People,CYP,Transport Related,CCA,06/11/2015,10-13695,1247.80,Bridges Transport Services,,,,,,,,
Nottinghamshire County Council,1111/1001,Children and Young People,CYP,Transport Related,CCA,06/11/2015,10-13696,871.13,Bridges Transport Services,,,,,,,,
Nottinghamshire County Council,1111/1001,Children and Young People,CYP,Transport Related,CCA,06/11/2015,10-13698,900.00,Bridges Transport Services,,,,,,,,
Nottinghamshire County Council,1111/1001,Children and Young People,CYP,Transport Related,CCA,06/11/2015,10-13699,1584.00,Bridges Transport Services,,,,,,,,
Nottinghamshire County Council,1111/1001,Children and Young People,CYP,Transport Related,CCA,06/11/2015,10-13700,1934.43,Bridges Transport Services,,,,,,,,
Nottinghamshire County Council,1111/1001,Children and Young People,CYP,Transport Related,CCA,06/11/2015,10-13701,1912.00,Bridges Transport Services,,,,,,,,
Nottinghamshire County Council,1111/1001,Children and Young People,CYP,Transport Related,CCA,06/11/2015,10-13702,2194.24,Bridges Transport Services,,,,,,,,
Nottinghamshire County Council,1111/1001,Children and Young People,CYP,Transport Related,CCA,06/11/2015,10-13705,1627.50,Fozcabs Newark Taxis,,,,,,,,
Nottinghamshire County Council,1111/1001,Children and Young People,CYP,Transport Related,CCA,06/11/2015,10-13706,1020.00,Fozcabs Newark Taxis,,,,,,,,
Nottinghamshire County Council,1111/1001,Children and Young People,CYP,Transport Related,CCA,06/11/2015,10-13707,1648.00,Fozcabs Newark Taxis,,,,,,,,
Nottinghamshire County Council,1111/1001,Children and Young People,CYP,Transport Related,CCA,06/11/2015,10-13708,782.00,Fozcabs Newark Taxis,,,,,,,,
Nottinghamshire County Council,1111/1001,Children and Young People,CYP,Transport Related,CCA,06/11/2015,10-13710,1125.00,Fozcabs Newark Taxis,,,,,,,,
Nottinghamshire County Council,1111/1001,Children and Young People,CYP,Transport Related,CCA,06/11/2015,10-13711,3017.60,Galaxy Cabs,,,,,,,,
Nottinghamshire County Council,1111/1001,Children and Young People,CYP,Transport Related,CCA,06/11/2015,10-13712,1040.40,Galaxy Cabs,,,,,,,,
Nottinghamshire County Council,1111/1001,Children and Young People,CYP,Transport Related,CCA,06/11/2015,10-13714,855.00,Galaxy Cabs,,,,,,,,
Nottinghamshire County Council,1111/1001,Children and Young People,CYP,Transport Related,CCA,06/11/2015,10-13715,1870.00,Horizon Travel,,,,,,,,
Nottinghamshire County Council,1111/1001,Children and Young People,CYP,Transport Related,CCA,06/11/2015,10-13716,2148.46,Horizon Travel,,,,,,,,
Nottinghamshire County Council,1111/1001,Children and Young People,CYP,Transport Related,CCA,06/11/2015,10-13719,2525.40,Sprays Transport Ltd,,,,,,,,
Nottinghamshire County Council,1111/1001,Children and Young People,CYP,Transport Related,CCA,06/11/2015,10-13721,1568.00,Sprays Transport Ltd,,,,,,,,
Nottinghamshire County Council,1111/1001,Children and Young People,CYP,Transport Related,CCA,06/11/2015,10-13722,1733.32,Sprays Transport Ltd,,,,,,,,
Nottinghamshire County Council,1111/1001,Children and Young People,CYP,Transport Related,CCA,06/11/2015,10-13723,2006.00,Sprays Transport Ltd,,,,,,,,
Nottinghamshire County Council,1111/1001,Children and Young People,CYP,Transport Related,CCA,06/11/2015,10-13724,1595.28,Sprays Transport Ltd,,,,,,,,
Nottinghamshire County Council,1111/1001,Children and Young People,CYP,Transport Related,CCA,06/11/2015,10-13725,1513.12,Sprays Transport Ltd,,,,,,,,
Nottinghamshire County Council,1111/1001,Children and Young People,CYP,Transport Related,CCA,06/11/2015,10-13726,1647.30,Sprays Transport Ltd,,,,,,,,
Nottinghamshire County Council,1111/1001,Children and Young People,CYP,Transport Related,CCA,06/11/2015,10-13727,1870.00,Sprays Transport Ltd,,,,,,,,
Nottinghamshire County Council,1111/1001,Children and Young People,CYP,Transport Related,CCA,06/11/2015,10-13728,1785.00,Sprays Transport Ltd,,,,,,,,
Nottinghamshire County Council,1111/1001,Children and Young People,CYP,Transport Related,CCA,06/11/2015,10-13729,1836.00,Sprays Transport Ltd,,,,,,,,
Nottinghamshire County Council,1111/1001,Children and Young People,CYP,Transport Related,CCA,06/11/2015,10-13731,948.84,Sprays Transport Ltd,,,,,,,,
Nottinghamshire County Council,1111/1001,Children and Young People,CYP,Transport Related,CCA,06/11/2015,10-13732,1840.00,Sprays Transport Ltd,,,,,,,,
Nottinghamshire County Council,1111/1001,Children and Young People,CYP,Transport Related,CCA,06/11/2015,10-13733,1610.00,Sprays Transport Ltd,,,,,,,,
Nottinghamshire County Council,1111/1001,Children and Young People,CYP,Transport Related,CCA,06/11/2015,10-13735,1728.00,Sprays Transport Ltd,,,,,,,,
Nottinghamshire County Council,1111/1001,Children and Young People,CYP,Transport Related,CCA,06/11/2015,10-13736,1863.00,Sprays Transport Ltd,,,,,,,,
Nottinghamshire County Council,1111/1001,Children and Young People,CYP,Transport Related,CCA,06/11/2015,10-13738,1200.00,Sprays Transport Ltd,,,,,,,,
Nottinghamshire County Council,1111/1001,Children and Young People,CYP,Transport Related,CCA,06/11/2015,10-13739,1586.00,Sprays Transport Ltd,,,,,,,,
Nottinghamshire County Council,1111/1001,Children and Young People,CYP,Transport Related,CCA,06/11/2015,10-13743,1105.00,Abacus Cars,,,,,,,,
Nottinghamshire County Council,1111/1001,Children and Young People,CYP,Transport Related,CCA,06/11/2015,10-13751,1700.00,Abacus Cars,,,,,,,,
Nottinghamshire County Council,1111/1001,Children and Young People,CYP,Transport Related,CCA,06/11/2015,10-13754,1190.00,Abacus Cars,,,,,,,,
Nottinghamshire County Council,1111/1001,Children and Young People,CYP,Transport Related,CCA,06/11/2015,10-13759,1224.00,Abacus Cars,,,,,,,,
Nottinghamshire County Council,1111/1001,Children and Young People,CYP,Transport Related,CCA,06/11/2015,10-13761,1360.00,Abacus Cars,,,,,,,,
Nottinghamshire County Council,1111/1001,Children and Young People,CYP,Transport Related,CCA,06/11/2015,10-13762,1190.00,Abacus Cars,,,,,,,,
Nottinghamshire County Council,1111/1001,Children and Young People,CYP,Transport Related,CCA,06/11/2015,10-13766,1132.20,Abacus Cars,,,,,,,,
Nottinghamshire County Council,1111/1001,Children and Young People,CYP,Transport Related,CCA,06/11/2015,10-13789,2312.00,K Matthews Travel,,,,,,,,
Nottinghamshire County Council,1111/1001,Children and Young People,CYP,Transport Related,CCA,06/11/2015,10-13790,928.00,Town Cars (UK) Ltd,,,,,,,,
Nottinghamshire County Council,1111/1001,Children and Young People,CYP,Transport Related,CCA,06/11/2015,10-13792,1450.00,Town Cars (UK) Ltd,,,,,,,,
Nottinghamshire County Council,1111/1001,Children and Young People,CYP,Transport Related,CCA,06/11/2015,10-13793,612.00,Town Cars (UK) Ltd,,,,,,,,
Nottinghamshire County Council,1111/1001,Children and Young People,CYP,Transport Related,CCA,06/11/2015,10-13794,2905.13,L A Travel,,,,,,,,
Nottinghamshire County Council,1111/1001,Children and Young People,CYP,Transport Related,CCA,06/11/2015,10-13799,3718.65,Target Taxis,,,,,,,,
Nottinghamshire County Council,1111/1001,Children and Young People,CYP,Transport Related,CCA,06/11/2015,10-13800,505.60,Forest Cars,,,,,,,,
Nottinghamshire County Council,1111/1001,Children and Young People,CYP,Transport Related,CCA,06/11/2015,10-13801,1088.00,Forest Cars,,,,,,,,
Nottinghamshire County Council,1111/1001,Children and Young People,CYP,Transport Related,CCA,06/11/2015,10-13802,1258.00,Forest Cars,,,,,,,,
Nottinghamshire County Council,1111/1001,Children and Young People,CYP,Transport Related,CCA,06/11/2015,10-13803,1120.00,Sean's Taxi Services,,,,,,,,
Nottinghamshire County Council,1111/1001,Children and Young People,CYP,Transport Related,CCA,10/11/2015,10-14420,2245.87,Martins Travel,,,,,,,,
Nottinghamshire County Council,1111/1001,Children and Young People,CYP,Transport Related,CCA,10/11/2015,10-14421,2074.00,Martins Travel,,,,,,,,
Nottinghamshire County Council,1111/1001,Children and Young People,CYP,Transport Related,CCA,10/11/2015,10-14424,2638.74,CBC Taxis Ltd,,,,,,,,
Nottinghamshire County Council,1111/1001,Children and Young People,CYP,Transport Related,CCA,10/11/2015,10-14426,876.00,CBC Taxis Ltd,,,,,,,,
Nottinghamshire County Council,1111/1001,Children and Young People,CYP,Transport Related,CCA,10/11/2015,10-14428,960.00,CBC Taxis Ltd,,,,,,,,
Nottinghamshire County Council,1111/1001,Children and Young People,CYP,Transport Related,CCA,10/11/2015,10-14429,799.20,CBC Taxis Ltd,,,,,,,,
Nottinghamshire County Council,1111/1001,Children and Young People,CYP,Transport Related,CCA,10/11/2015,10-14433,780.00,Ace Of Mansfield Ltd,,,,,,,,
Nottinghamshire County Council,1111/1001,Children and Young People,CYP,Transport Related,CCA,10/11/2015,10-14436,1650.00,Ace Of Mansfield Ltd,,,,,,,,
Nottinghamshire County Council,1111/1001,Children and Young People,CYP,Transport Related,CCA,10/11/2015,10-14439,1426.00,Ace Of Mansfield Ltd,,,,,,,,
Nottinghamshire County Council,1111/1001,Children and Young People,CYP,Transport Related,CCA,10/11/2015,10-14440,1564.00,Ace Of Mansfield Ltd,,,,,,,,
Nottinghamshire County Council,1111/1001,Children and Young People,CYP,Transport Related,CCA,10/11/2015,10-14441,1440.00,Ace Of Mansfield Ltd,,,,,,,,
Nottinghamshire County Council,1111/1001,Children and Young People,CYP,Transport Related,CCA,10/11/2015,10-14443,12602.44,Erewash Community Transport,,,,,,,,
Nottinghamshire County Council,1111/1001,Children and Young People,CYP,Transport Related,CCA,10/11/2015,10-14444,1911.99,Erewash Community Transport,,,,,,,,
Nottinghamshire County Council,1111/1001,Children and Young People,CYP,Transport Related,CCA,10/11/2015,10-14449,630.00,Ng11 Cars,,,,,,,,
Nottinghamshire County Council,1111/1001,Children and Young People,CYP,Transport Related,CCA,10/11/2015,10-14450,1320.00,Ng11 Cars,,,,,,,,
Nottinghamshire County Council,1111/1001,Children and Young People,CYP,Transport Related,CCA,10/11/2015,10-14452,612.00,Ng11 Cars,,,,,,,,
Nottinghamshire County Council,1111/1001,Children and Young People,CYP,Transport Related,CCA,10/11/2015,10-14453,775.00,Ng11 Cars,,,,,,,,
Nottinghamshire County Council,1111/1001,Children and Young People,CYP,Transport Related,CCA,10/11/2015,10-14455,1120.00,Ng11 Cars,,,,,,,,
Nottinghamshire County Council,1111/1001,Children and Young People,CYP,Transport Related,CCA,10/11/2015,10-14456,1343.00,Shelleys Taxis Ltd,,,,,,,,
Nottinghamshire County Council,1111/1001,Children and Young People,CYP,Transport Related,CCA,10/11/2015,10-14457,2890.00,Vallances Coaches,,,,,,,,
Nottinghamshire County Council,1111/1001,Children and Young People,CYP,Transport Related,CCA,10/11/2015,10-14459,2516.00,Vallances Coaches,,,,,,,,
Nottinghamshire County Council,1111/1001,Children and Young People,CYP,Transport Related,CCA,10/11/2015,10-14460,2143.52,Vallances Coaches,,,,,,,,
Nottinghamshire County Council,1111/1001,Children and Young People,CYP,Transport Related,CCA,10/11/2015,10-14478,2901.22,Marshalls Of Sutton On Trent Ltd,,,,,,,,
Nottinghamshire County Council,1111/1001,Children and Young People,CYP,Transport Related,CCA,10/11/2015,10-14487,1744.80,Nunns Cars,,,,,,,,
Nottinghamshire County Council,1111/1001,Children and Young People,CYP,Transport Related,CCA,10/11/2015,10-14488,680.00,Nunns Cars,,,,,,,,
Nottinghamshire County Council,1111/1001,Children and Young People,CYP,Transport Related,CCA,10/11/2015,10-14495,2361.30,Rio Cabs,,,,,,,,
Nottinghamshire County Council,1111/1001,Children and Young People,CYP,Transport Related,CCA,10/11/2015,10-14496,594.93,Rio Cabs,,,,,,,,
Nottinghamshire County Council,1111/1001,Children and Young People,CYP,Transport Related,CCA,10/11/2015,10-14506,1056.00,Eurocab 2000 Ltd,,,,,,,,
Nottinghamshire County Council,1111/1001,Children and Young People,CYP,Transport Related,CCA,10/11/2015,10-14508,1840.00,Eurocab 2000 Ltd,,,,,,,,
Nottinghamshire County Council,1111/1001,Children and Young People,CYP,Transport Related,CCA,11/11/2015,10-14566,849.00,Mars Cars Ltd,,,,,,,,
Nottinghamshire County Council,1111/1001,Children and Young People,CYP,Transport Related,CCA,11/11/2015,10-14578,900.00,Sharpes Of Nottingham,,,,,,,,
Nottinghamshire County Council,1111/1001,Children and Young People,CYP,Transport Related,CCA,11/11/2015,10-14579,1806.25,F4Control Ltd (t/a First4care),,,,,,,,
Nottinghamshire County Council,1111/1001,Children and Young People,CYP,Transport Related,CCA,11/11/2015,10-14580,1664.81,F4Control Ltd (t/a First4care),,,,,,,,
Nottinghamshire County Council,1111/1001,Children and Young People,CYP,Transport Related,CCA,11/11/2015,10-14581,2035.41,F4Control Ltd (t/a First4care),,,,,,,,
Nottinghamshire County Council,1111/1001,Children and Young People,CYP,Transport Related,CCA,11/11/2015,10-14582,2596.92,F4Control Ltd (t/a First4care),,,,,,,,
Nottinghamshire County Council,1111/1001,Children and Young People,CYP,Transport Related,CCA,11/11/2015,10-14583,2062.44,F4Control Ltd (t/a First4care),,,,,,,,
Nottinghamshire County Council,1111/1001,Children and Young People,CYP,Transport Related,CCA,11/11/2015,10-14584,1839.68,F4Control Ltd (t/a First4care),,,,,,,,
Nottinghamshire County Council,1111/1001,Children and Young People,CYP,Transport Related,CCA,11/11/2015,10-14585,1913.60,F4Control Ltd (t/a First4care),,,,,,,,
Nottinghamshire County Council,1111/1001,Children and Young People,CYP,Transport Related,CCA,11/11/2015,10-14587,1999.20,F4Control Ltd (t/a First4care),,,,,,,,
Nottinghamshire County Council,1111/1001,Children and Young People,CYP,Transport Related,CCA,11/11/2015,10-14588,2133.60,F4Control Ltd (t/a First4care),,,,,,,,
Nottinghamshire County Council,1111/1001,Children and Young People,CYP,Transport Related,CCA,11/11/2015,10-14589,2281.40,F4Control Ltd (t/a First4care),,,,,,,,
Nottinghamshire County Council,1111/1001,Children and Young People,CYP,Transport Related,CCA,11/11/2015,10-14590,1259.85,F4Control Ltd (t/a First4care),,,,,,,,
Nottinghamshire County Council,1111/1001,Children and Young People,CYP,Transport Related,CCA,11/11/2015,10-14592,2006.00,F4Control Ltd (t/a First4care),,,,,,,,
Nottinghamshire County Council,1111/1001,Children and Young People,CYP,Transport Related,CCA,11/11/2015,10-14593,2023.00,F4Control Ltd (t/a First4care),,,,,,,,
Nottinghamshire County Council,1111/1001,Children and Young People,CYP,Transport Related,CCA,11/11/2015,10-14594,1904.00,F4Control Ltd (t/a First4care),,,,,,,,
Nottinghamshire County Council,1111/1001,Children and Young People,CYP,Transport Related,CCA,11/11/2015,10-14595,2047.20,F4Control Ltd (t/a First4care),,,,,,,,
Nottinghamshire County Council,1111/1001,Children and Young People,CYP,Transport Related,CCA,11/11/2015,10-14596,2205.41,F4Control Ltd (t/a First4care),,,,,,,,
Nottinghamshire County Council,1111/1001,Children and Young People,CYP,Transport Related,CCA,11/11/2015,10-14597,1916.41,F4Control Ltd (t/a First4care),,,,,,,,
Nottinghamshire County Council,1111/1001,Children and Young People,CYP,Transport Related,CCA,11/11/2015,10-14599,3380.00,Butler Brothers Ltd,,,,,,,,
Nottinghamshire County Council,1111/1001,Children and Young People,CYP,Transport Related,CCA,11/11/2015,10-14602,1530.00,Mct Uk Ltd,,,,,,,,
Nottinghamshire County Council,1111/1001,Children and Young People,CYP,Transport Related,CCA,11/11/2015,10-14603,850.00,Mct Uk Ltd,,,,,,,,
Nottinghamshire County Council,1111/1001,Children and Young People,CYP,Transport Related,CCA,11/11/2015,10-14605,2121.60,Shelleys Taxis Ltd,,,,,,,,
Nottinghamshire County Council,1111/1001,Children and Young People,CYP,Transport Related,CCA,11/11/2015,10-14606,952.00,Shelleys Taxis Ltd,,,,,,,,
Nottinghamshire County Council,1111/1001,Children and Young People,CYP,Transport Related,CCA,11/11/2015,10-14607,1530.00,Shelleys Taxis Ltd,,,,,,,,
Nottinghamshire County Council,1111/1001,Children and Young People,CYP,Transport Related,CCA,11/11/2015,10-14608,500.00,Shelleys Taxis Ltd,,,,,,,,
Nottinghamshire County Council,1111/1001,Children and Young People,CYP,Transport Related,CCA,11/11/2015,10-14609,800.00,Shelleys Taxis Ltd,,,,,,,,
Nottinghamshire County Council,1111/1001,Children and Young People,CYP,Transport Related,CCA,11/11/2015,10-14610,1530.00,Shelleys Taxis Ltd,,,,,,,,
Nottinghamshire County Council,1111/1001,Children and Young People,CYP,Transport Related,CCA,11/11/2015,10-14611,1190.00,Shelleys Taxis Ltd,,,,,,,,
Nottinghamshire County Council,1111/1001,Children and Young People,CYP,Transport Related,CCA,11/11/2015,10-14612,1160.00,Shelleys Taxis Ltd,,,,,,,,
Nottinghamshire County Council,1111/1001,Children and Young People,CYP,Transport Related,CCA,11/11/2015,10-14613,986.00,Shelleys Taxis Ltd,,,,,,,,
Nottinghamshire County Council,1111/1001,Children and Young People,CYP,Transport Related,CCA,11/11/2015,10-14615,765.00,Shelleys Taxis Ltd,,,,,,,,
Nottinghamshire County Council,1111/1001,Children and Young People,CYP,Transport Related,CCA,11/11/2015,10-14616,806.40,Shelleys Taxis Ltd,,,,,,,,
Nottinghamshire County Council,1111/1001,Children and Young People,CYP,Transport Related,CCA,11/11/2015,10-14617,4316.40,BN Gibson Ltd,,,,,,,,
Nottinghamshire County Council,1111/1001,Children and Young People,CYP,Transport Related,CCA,11/11/2015,10-14618,4492.40,BN Gibson Ltd,,,,,,,,
Nottinghamshire County Council,1111/1001,Children and Young People,CYP,Transport Related,CCA,11/11/2015,10-14620,6579.80,BN Gibson Ltd,,,,,,,,
Nottinghamshire County Council,1111/1001,Children and Young People,CYP,Transport Related,CCA,11/11/2015,10-14621,4789.40,BN Gibson Ltd,,,,,,,,
Nottinghamshire County Council,1111/1001,Children and Young People,CYP,Transport Related,CCA,11/11/2015,10-14622,3608.64,BN Gibson Ltd,,,,,,,,
Nottinghamshire County Council,1111/1001,Children and Young People,CYP,Transport Related,CCA,11/11/2015,10-14623,3608.64,BN Gibson Ltd,,,,,,,,
Nottinghamshire County Council,1111/1001,Children and Young People,CYP,Transport Related,CCA,11/11/2015,10-14624,1236.00,Skills Motor Coaches Ltd,,,,,,,,
Nottinghamshire County Council,1111/1001,Children and Young People,CYP,Transport Related,CCA,11/11/2015,10-14625,1032.00,Skills Motor Coaches Ltd,,,,,,,,
Nottinghamshire County Council,1111/1001,Children and Young People,CYP,Transport Related,CCA,11/11/2015,10-14626,1800.00,Skills Motor Coaches Ltd,,,,,,,,
Nottinghamshire County Council,1111/1001,Children and Young People,CYP,Transport Related,CCA,11/11/2015,10-14627,1770.00,Skills Motor Coaches Ltd,,,,,,,,
Nottinghamshire County Council,1111/1001,Children and Young People,CYP,Transport Related,CCA,11/11/2015,10-14628,2375.00,Silverdale Tours Nottm Ltd,,,,,,,,
Nottinghamshire County Council,1111/1001,Children and Young People,CYP,Transport Related,CCA,11/11/2015,10-14629,1968.75,Silverdale Tours Nottm Ltd,,,,,,,,
Nottinghamshire County Council,1111/1001,Children and Young People,CYP,Transport Related,CCA,11/11/2015,10-14633,607.41,Bassetlaw Action Centre,,,,,,,,
Nottinghamshire County Council,1111/1001,Children and Young People,CYP,Transport Related,CCA,11/11/2015,10-14634,629.28,Bassetlaw Action Centre,,,,,,,,
Nottinghamshire County Council,1111/1001,Children and Young People,CYP,Transport Related,CCA,11/11/2015,10-14635,567.00,Town Cars (UK) Ltd,,,,,,,,
Nottinghamshire County Council,1111/1001,Children and Young People,CYP,Transport Related,CCA,11/11/2015,10-14638,575.00,Diamond Cars,,,,,,,,
Nottinghamshire County Council,1111/1001,Children and Young People,CYP,Transport Related,CCA,11/11/2015,10-14639,952.00,Eurocab 2000 Ltd,,,,,,,,
Nottinghamshire County Council,1111/1001,Children and Young People,CYP,Transport Related,CCA,11/11/2015,10-14641,680.00,A2B Licensed Taxis,,,,,,,,
Nottinghamshire County Council,1111/1001,Children and Young People,CYP,Transport Related,CCA,13/11/2015,10-14753,578.00,Alert Cars Ltd,,,,,,,,
Nottinghamshire County Council,1111/1001,Children and Young People,CYP,Transport Related,CCA,13/11/2015,10-14755,652.86,Alert Cars Ltd,,,,,,,,
Nottinghamshire County Council,1111/1001,Children and Young People,CYP,Transport Related,CCA,13/11/2015,10-14756,13685.00,Sharpes Of Nottingham,,,,,,,,
Nottinghamshire County Council,1111/1001,Children and Young People,CYP,Transport Related,CCA,13/11/2015,10-14757,850.00,Southside Cars,,,,,,,,
Nottinghamshire County Council,1111/1001,Children and Young People,CYP,Transport Related,CCA,13/11/2015,10-14758,1944.80,6 Five 2s,,,,,,,,
Nottinghamshire County Council,1111/1001,Children and Young People,CYP,Transport Related,CCA,13/11/2015,10-14759,1487.16,Central Cars Nottm Ltd,,,,,,,,
Nottinghamshire County Council,1111/1001,Children and Young People,CYP,Transport Related,CCA,13/11/2015,10-14761,1503.31,Central Cars Nottm Ltd,,,,,,,,
Nottinghamshire County Council,1111/1001,Children and Young People,CYP,Transport Related,CCA,13/11/2015,10-14762,1768.68,Central Cars Nottm Ltd,,,,,,,,
Nottinghamshire County Council,1111/1001,Children and Young People,CYP,Transport Related,CCA,13/11/2015,10-14763,1101.60,Central Cars Nottm Ltd,,,,,,,,
Nottinghamshire County Council,1111/1001,Children and Young People,CYP,Transport Related,CCA,13/11/2015,10-14764,1631.49,F4Control Ltd (t/a First4care),,,,,,,,
Nottinghamshire County Council,1111/1001,Children and Young People,CYP,Transport Related,CCA,13/11/2015,10-14765,2161.28,Johnson Bros Tours Ltd,,,,,,,,
Nottinghamshire County Council,1111/1001,Children and Young People,CYP,Transport Related,CCA,13/11/2015,10-14766,1670.08,Johnson Bros Tours Ltd,,,,,,,,
Nottinghamshire County Council,1111/1001,Children and Young People,CYP,Transport Related,CCA,13/11/2015,10-14769,2937.60,Johnson Bros Tours Ltd,,,,,,,,
Nottinghamshire County Council,1111/1001,Children and Young People,CYP,Transport Related,CCA,13/11/2015,10-14770,2774.40,Johnson Bros Tours Ltd,,,,,,,,
Nottinghamshire County Council,1111/1001,Children and Young People,CYP,Transport Related,CCA,13/11/2015,10-14771,971.50,Acorn Contracts,,,,,,,,
Nottinghamshire County Council,1111/1001,Children and Young People,CYP,Transport Related,CCA,13/11/2015,10-14775,1692.00,Ng11 Cars,,,,,,,,
Nottinghamshire County Council,1111/1001,Children and Young People,CYP,Transport Related,CCA,13/11/2015,10-14776,500.00,Shelleys Taxis Ltd,,,,,,,,
Nottinghamshire County Council,1111/1001,Children and Young People,CYP,Transport Related,CCA,13/11/2015,10-14777,1807.78,Sprays Transport Ltd,,,,,,,,
Nottinghamshire County Council,1111/1001,Children and Young People,CYP,Transport Related,CCA,13/11/2015,10-14778,1808.00,Sprays Transport Ltd,,,,,,,,
Nottinghamshire County Council,1111/1001,Children and Young People,CYP,Transport Related,CCA,13/11/2015,10-14781,4336.80,BN Gibson Ltd,,,,,,,,
Nottinghamshire County Council,1111/1001,Children and Young People,CYP,Transport Related,CCA,13/11/2015,10-14782,3831.52,BN Gibson Ltd,,,,,,,,
Nottinghamshire County Council,1111/1001,Children and Young People,CYP,Transport Related,CCA,13/11/2015,10-14783,2560.00,Abacus Cars,,,,,,,,
Nottinghamshire County Council,1111/1001,Children and Young People,CYP,Transport Related,CCA,13/11/2015,10-14784,1360.00,Abacus Cars,,,,,,,,
Nottinghamshire County Council,1111/1001,Children and Young People,CYP,Transport Related,CCA,13/11/2015,10-14785,4945.47,Gem Mini Travel Ltd,,,,,,,,
Nottinghamshire County Council,1111/1001,Children and Young People,CYP,Transport Related,CCA,13/11/2015,10-14786,760.50,Gem Mini Travel Ltd,,,,,,,,
Nottinghamshire County Council,1111/1001,Children and Young People,CYP,Transport Related,CCA,13/11/2015,10-14832,1820.70,Ace Cars,,,,,,,,
Nottinghamshire County Council,1111/1001,Children and Young People,CYP,Transport Related,CCA,13/11/2015,10-14833,1584.00,Eurocab 2000 Ltd,,,,,,,,
Nottinghamshire County Council,1111/1001,Children and Young People,CYP,Transport Related,CCA,13/11/2015,10-14834,515.20,Forest Cars,,,,,,,,
Nottinghamshire County Council,1111/1001,Children and Young People,CYP,Transport Related,CCA,16/11/2015,10-14872,518.92,F4Control Ltd (t/a First4care),,,,,,,,
Nottinghamshire County Council,1111/1001,Children and Young People,CYP,Transport Related,CCA,18/11/2015,10-15406,1020.00,SJW (Muskham) Ltd T/A Z Cars,,,,,,,,
Nottinghamshire County Council,1111/1001,Children and Young People,CYP,Transport Related,CCA,18/11/2015,10-15409,1050.00,SJW (Muskham) Ltd T/A Z Cars,,,,,,,,
Nottinghamshire County Council,1111/1001,Children and Young People,CYP,Transport Related,CCA,18/11/2015,10-15411,846.60,SJW (Muskham) Ltd T/A Z Cars,,,,,,,,
Nottinghamshire County Council,1111/1001,Children and Young People,CYP,Transport Related,CCA,18/11/2015,10-15412,800.00,Acorn Contracts,,,,,,,,
Nottinghamshire County Council,1111/1001,Children and Young People,CYP,Transport Related,CCA,18/11/2015,10-15413,2244.00,Bridges Transport Services,,,,,,,,
Nottinghamshire County Council,1111/1001,Children and Young People,CYP,Transport Related,CCA,18/11/2015,10-15422,550.00,D G Private Hire Ltd,,,,,,,,
Nottinghamshire County Council,1111/1001,Children and Young People,CYP,Transport Related,CCA,18/11/2015,10-15423,580.00,D G Private Hire Ltd,,,,,,,,
Nottinghamshire County Council,1111/1001,Children and Young People,CYP,Transport Related,CCA,18/11/2015,10-15427,640.00,D G Private Hire Ltd,,,,,,,,
Nottinghamshire County Council,1111/1001,Children and Young People,CYP,Transport Related,CCA,18/11/2015,10-15428,990.00,D G Private Hire Ltd,,,,,,,,
Nottinghamshire County Council,1111/1001,Children and Young People,CYP,Transport Related,CCA,18/11/2015,10-15436,1870.00,AAA Cabs,,,,,,,,
Nottinghamshire County Council,1111/1001,Children and Young People,CYP,Transport Related,CCA,18/11/2015,10-15438,575.00,Diamond Cars,,,,,,,,
Nottinghamshire County Council,1111/1001,Children and Young People,CYP,Transport Related,CCA,20/11/2015,10-15587,840.00,Shelleys Taxis Ltd,,,,,,,,
Nottinghamshire County Council,1111/1001,Children and Young People,CYP,Transport Related,CCA,23/11/2015,10-15634,876.69,I Can Charity,,,,,,,,
Nottinghamshire County Council,1111/1001,Children and Young People,CYP,Transport Related,CCA,23/11/2015,10-15635,2511.58,BN Gibson Ltd,,,,,,,,
Nottinghamshire County Council,1111/1001,Children and Young People,CYP,Transport Related,CCA,23/11/2015,10-15636,3227.11,BN Gibson Ltd,,,,,,,,
Nottinghamshire County Council,1111/1001,Children and Young People,CYP,Transport Related,CCA,23/11/2015,10-15637,2964.63,BN Gibson Ltd,,,,,,,,
Nottinghamshire County Council,1111/1001,Children and Young People,CYP,Transport Related,CCA,23/11/2015,10-15639,2920.94,BN Gibson Ltd,,,,,,,,
Nottinghamshire County Council,1111/1001,Children and Young People,CYP,Transport Related,CCA,23/11/2015,10-15640,3695.29,BN Gibson Ltd,,,,,,,,
Nottinghamshire County Council,1111/1001,Children and Young People,CYP,Transport Related,CCA,23/11/2015,10-15641,3976.98,BN Gibson Ltd,,,,,,,,
Nottinghamshire County Council,1111/1001,Children and Young People,CYP,Transport Related,CCA,23/11/2015,10-15642,3337.61,BN Gibson Ltd,,,,,,,,
Nottinghamshire County Council,1111/1001,Children and Young People,CYP,Transport Related,CCA,23/11/2015,10-15643,3117.29,BN Gibson Ltd,,,,,,,,
Nottinghamshire County Council,1111/1001,Children and Young People,CYP,Transport Related,CCA,23/11/2015,10-15644,2693.14,BN Gibson Ltd,,,,,,,,
Nottinghamshire County Council,1111/1001,Children and Young People,CYP,Transport Related,CCA,23/11/2015,10-15645,2125.68,BN Gibson Ltd,,,,,,,,
Nottinghamshire County Council,1111/1001,Children and Young People,CYP,Transport Related,CCA,23/11/2015,10-15646,1999.37,BN Gibson Ltd,,,,,,,,
Nottinghamshire County Council,1111/1001,Children and Young People,CYP,Transport Related,CCA,23/11/2015,10-15647,2555.04,BN Gibson Ltd,,,,,,,,
Nottinghamshire County Council,1111/1001,Children and Young People,CYP,Transport Related,CCA,23/11/2015,10-15648,2127.36,BN Gibson Ltd,,,,,,,,
Nottinghamshire County Council,1111/1001,Children and Young People,CYP,Transport Related,CCA,23/11/2015,10-15649,1318.38,BN Gibson Ltd,,,,,,,,
Nottinghamshire County Council,1111/1001,Children and Young People,CYP,Transport Related,CCA,23/11/2015,10-15650,2475.20,BN Gibson Ltd,,,,,,,,
Nottinghamshire County Council,1111/1001,Children and Young People,CYP,Transport Related,CCA,23/11/2015,10-15651,1906.55,BN Gibson Ltd,,,,,,,,
Nottinghamshire County Council,1111/1001,Children and Young People,CYP,Transport Related,CCA,23/11/2015,10-15654,2244.34,BN Gibson Ltd,,,,,,,,
Nottinghamshire County Council,1111/1001,Children and Young People,CYP,Transport Related,CCA,23/11/2015,10-15657,1280.00,P & P Taxis,,,,,,,,
Nottinghamshire County Council,1111/1001,Children and Young People,CYP,Transport Related,CCA,25/11/2015,10-15536,1200.00,Arrow Specialised Transport Ltd,,,,,,,,
Nottinghamshire County Council,1111/1001,Children and Young People,CYP,Transport Related,CCA,25/11/2015,10-15803,3655.76,BN Gibson Ltd,,,,,,,,
Nottinghamshire County Council,1111/1001,Children and Young People,CYP,Transport Related,CCA,25/11/2015,10-15804,3413.20,BN Gibson Ltd,,,,,,,,
Nottinghamshire County Council,1111/1001,Children and Young People,CYP,Transport Related,CCA,25/11/2015,10-15805,2297.96,BN Gibson Ltd,,,,,,,,
Nottinghamshire County Council,1111/1001,Children and Young People,CYP,Transport Related,CCA,25/11/2015,10-15806,793.76,BN Gibson Ltd,,,,,,,,
Nottinghamshire County Council,1111/1001,Children and Young People,CYP,Transport Related,CCA,25/11/2015,10-15807,1495.15,BN Gibson Ltd,,,,,,,,
Nottinghamshire County Council,1111/1001,Children and Young People,CYP,Transport Related,CCA,25/11/2015,10-15808,575.00,Diamond Cars,,,,,,,,
Nottinghamshire County Council,1111/1001,Children and Young People,CYP,Transport Related,CCA,25/11/2015,10-15822,1599.84,Arrow Specialised Transport Ltd,,,,,,,,
Nottinghamshire County Council,1111/1001,Children and Young People,CYP,Transport Related,CCA,25/11/2015,10-15860,1828.08,F4Control Ltd (t/a First4care),,,,,,,,
Nottinghamshire County Council,1111/1001,Children and Young People,CYP,Transport Related,CCA,25/11/2015,10-15864,2447.61,BN Gibson Ltd,,,,,,,,
Nottinghamshire County Council,1111/1001,Children and Young People,CYP,Transport Related,CCA,25/11/2015,10-15865,3017.04,BN Gibson Ltd,,,,,,,,
Nottinghamshire County Council,1111/1001,Children and Young People,CYP,Transport Related,CCA,25/11/2015,10-15866,2024.19,BN Gibson Ltd,,,,,,,,
Nottinghamshire County Council,1111/1001,Children and Young People,CYP,Transport Related,CCA,25/11/2015,10-15867,1751.49,BN Gibson Ltd,,,,,,,,
Nottinghamshire County Council,1111/1001,Children and Young People,CYP,Transport Related,CCA,25/11/2015,10-15868,3939.24,BN Gibson Ltd,,,,,,,,
Nottinghamshire County Council,1111/1001,Children and Young People,CYP,Transport Related,CCA,25/11/2015,10-15869,2953.17,BN Gibson Ltd,,,,,,,,
Nottinghamshire County Council,1111/1001,Children and Young People,CYP,Transport Related,CCA,25/11/2015,10-15870,1160.17,BN Gibson Ltd,,,,,,,,
Nottinghamshire County Council,1111/1001,Children and Young People,CYP,Transport Related,CCA,25/11/2015,10-15871,1645.91,BN Gibson Ltd,,,,,,,,
Nottinghamshire County Council,1111/1001,Children and Young People,CYP,Transport Related,CCA,25/11/2015,10-15872,2011.96,BN Gibson Ltd,,,,,,,,
Nottinghamshire County Council,1111/1001,Children and Young People,CYP,Transport Related,CCA,25/11/2015,10-15873,2144.00,Ace Cars,,,,,,,,
Nottinghamshire County Council,1111/1001,Children and Young People,CYP,Transport Related,CCA,26/11/2015,10-15916,1890.00,Arrow Specialised Transport Ltd,,,,,,,,
Nottinghamshire County Council,1111/1001,Children and Young People,CYP,Transport Related,CDA,05/11/2015,10-13326,170.50,Southside Cars,,,,,,,,
Nottinghamshire County Council,1111/1001,Children and Young People,CYP,Transport Related,CDA,05/11/2015,10-13343,480.00,D G Private Hire Ltd,,,,,,,,
Nottinghamshire County Council,1111/1001,Children and Young People,CYP,Transport Related,CDA,05/11/2015,10-13373,2706.00,AOT Coaches,,,,,,,,
Nottinghamshire County Council,1111/1001,Children and Young People,CYP,Transport Related,CDA,05/11/2015,10-13374,1683.00,AOT Coaches,,,,,,,,
Nottinghamshire County Council,1111/1001,Children and Young People,CYP,Transport Related,CDA,05/11/2015,10-13375,1383.80,AOT Coaches,,,,,,,,
Nottinghamshire County Council,1111/1001,Children and Young People,CYP,Transport Related,CDA,05/11/2015,10-13383,2380.00,Nottingham Minibuses & Coaches,,,,,,,,
Nottinghamshire County Council,1111/1001,Children and Young People,CYP,Transport Related,CDA,05/11/2015,10-13384,2080.00,Nottingham Minibuses & Coaches,,,,,,,,
Nottinghamshire County Council,1111/1001,Children and Young People,CYP,Transport Related,CDA,05/11/2015,10-13385,1615.00,Nottingham Minibuses & Coaches,,,,,,,,
Nottinghamshire County Council,1111/1001,Children and Young People,CYP,Transport Related,CDA,05/11/2015,10-13386,2125.00,Nottingham Minibuses & Coaches,,,,,,,,
Nottinghamshire County Council,1111/1001,Children and Young People,CYP,Transport Related,CDA,05/11/2015,10-13388,2380.00,Nottingham Minibuses & Coaches,,,,,,,,
Nottinghamshire County Council,1111/1001,Children and Young People,CYP,Transport Related,CDA,05/11/2015,10-13389,2210.00,Nottingham Minibuses & Coaches,,,,,,,,
Nottinghamshire County Council,1111/1001,Children and Young People,CYP,Transport Related,CDA,06/11/2015,10-13586,224.00,Arrow Specialised Transport Ltd,,,,,,,,
Nottinghamshire County Council,1111/1001,Children and Young People,CYP,Transport Related,CDA,06/11/2015,10-13639,863.76,Arrow Specialised Transport Ltd,,,,,,,,
Nottinghamshire County Council,1111/1001,Children and Young People,CYP,Transport Related,CDA,06/11/2015,10-13656,1155.36,Arrow Specialised Transport Ltd,,,,,,,,
Nottinghamshire County Council,1111/1001,Children and Young People,CYP,Transport Related,CDA,06/11/2015,10-13696,435.49,Bridges Transport Services,,,,,,,,
Nottinghamshire County Council,1111/1001,Children and Young People,CYP,Transport Related,CDA,06/11/2015,10-13708,782.00,Fozcabs Newark Taxis,,,,,,,,
Nottinghamshire County Council,1111/1001,Children and Young People,CYP,Transport Related,CDA,06/11/2015,10-13712,1040.40,Galaxy Cabs,,,,,,,,
Nottinghamshire County Council,1111/1001,Children and Young People,CYP,Transport Related,CDA,06/11/2015,10-13716,265.54,Horizon Travel,,,,,,,,
Nottinghamshire County Council,1111/1001,Children and Young People,CYP,Transport Related,CDA,06/11/2015,10-13729,204.00,Sprays Transport Ltd,,,,,,,,
Nottinghamshire County Council,1111/1001,Children and Young People,CYP,Transport Related,CDA,06/11/2015,10-13736,207.00,Sprays Transport Ltd,,,,,,,,
Nottinghamshire County Council,1111/1001,Children and Young People,CYP,Transport Related,CDA,06/11/2015,10-13740,2383.40,Sprays Transport Ltd,,,,,,,,
Nottinghamshire County Council,1111/1001,Children and Young People,CYP,Transport Related,CDA,06/11/2015,10-13755,980.00,Abacus Cars,,,,,,,,
Nottinghamshire County Council,1111/1001,Children and Young People,CYP,Transport Related,CDA,06/11/2015,10-13763,774.00,Abacus Cars,,,,,,,,
Nottinghamshire County Council,1111/1001,Children and Young People,CYP,Transport Related,CDA,10/11/2015,10-14437,1090.85,Ace Of Mansfield Ltd,,,,,,,,
Nottinghamshire County Council,1111/1001,Children and Young People,CYP,Transport Related,CDA,10/11/2015,10-14451,2139.00,Ng11 Cars,,,,,,,,
Nottinghamshire County Council,1111/1001,Children and Young People,CYP,Transport Related,CDA,10/11/2015,10-14454,1020.00,Ng11 Cars,,,,,,,,
Nottinghamshire County Council,1111/1001,Children and Young People,CYP,Transport Related,CDA,10/11/2015,10-14504,1235.00,Eurocab 2000 Ltd,,,,,,,,
Nottinghamshire County Council,1111/1001,Children and Young People,CYP,Transport Related,CDA,10/11/2015,10-14505,1615.00,Eurocab 2000 Ltd,,,,,,,,
Nottinghamshire County Council,1111/1001,Children and Young People,CYP,Transport Related,CDA,10/11/2015,10-14507,2040.00,Eurocab 2000 Ltd,,,,,,,,
Nottinghamshire County Council,1111/1001,Children and Young People,CYP,Transport Related,CDA,11/11/2015,10-14630,726.24,P & P Taxis,,,,,,,,
Nottinghamshire County Council,1111/1001,Children and Young People,CYP,Transport Related,CDA,13/11/2015,10-14759,165.24,Central Cars Nottm Ltd,,,,,,,,
Nottinghamshire County Council,1111/1001,Children and Young People,CYP,Transport Related,CDA,13/11/2015,10-14773,799.00,Acorn Contracts,,,,,,,,
Nottinghamshire County Council,1111/1001,Children and Young People,CYP,Transport Related,CDA,13/11/2015,10-14774,800.00,Alpha Cars,,,,,,,,
Nottinghamshire County Council,1111/1001,Children and Young People,CYP,Transport Related,CDA,16/11/2015,10-15117,5410.08,Paul S Winson Coaches,,,,,,,,
Nottinghamshire County Council,1111/1001,Children and Young People,CYP,Transport Related,CDA,18/11/2015,10-15407,797.50,SJW (Muskham) Ltd T/A Z Cars,,,,,,,,
Nottinghamshire County Council,1111/1001,Children and Young People,CYP,Transport Related,CDA,18/11/2015,10-15417,2490.00,Ng11 Cars,,,,,,,,
Nottinghamshire County Council,1111/1001,Children and Young People,CYP,Transport Related,CDA,18/11/2015,10-15429,800.00,D G Private Hire Ltd,,,,,,,,
Nottinghamshire County Council,1111/1001,Children and Young People,CYP,Transport Related,CDA,18/11/2015,10-15430,1387.20,D G Private Hire Ltd,,,,,,,,
Nottinghamshire County Council,1111/1001,Children and Young People,CYP,Transport Related,CDA,18/11/2015,10-15434,1428.00,P & P Taxis,,,,,,,,
Nottinghamshire County Council,1111/1001,Children and Young People,CYP,Transport Related,CDA,18/11/2015,10-15439,1445.00,Eurocab 2000 Ltd,,,,,,,,
Nottinghamshire County Council,1111/1001,Children and Young People,CYP,Transport Related,CDA,18/11/2015,10-15440,500.00,Eurocab 2000 Ltd,,,,,,,,
Nottinghamshire County Council,1111/1001,Children and Young People,CYP,Supplies & Services,DAA,18/11/2015,10-16223,1108.39,Howarth Timber Merchants Ltd,,,,,,,,
Nottinghamshire County Council,1111/1001,Children and Young People,CYP,Supplies & Services,DAA,25/11/2015,10-15820,3778.17,Real Education Ltd,,,,,,,,
Nottinghamshire County Council,1111/1001,Children and Young People,CYP,Supplies & Services,DAA,26/11/2015,10-15821,24627.69,St Joseph's RC Primary Academy,,,,,,,,
Nottinghamshire County Council,1111/1001,Children and Young People,CYP,Supplies & Services,DAA,26/11/2015,10-15920,50000.00,Flying High Trust Beeston Fields Pr,,,,,,,,
Nottinghamshire County Council,1111/1001,Children and Young People,CYP,Supplies & Services,DBA,03/11/2015,10-12973,287.04,Hallam Country Fresh Foods Ltd,,,,,,,,
Nottinghamshire County Council,1111/1001,Children and Young People,CYP,Supplies & Services,DBA,03/11/2015,10-12977,242.41,Hallam Country Fresh Foods Ltd,,,,,,,,
Nottinghamshire County Council,1111/1001,Children and Young People,CYP,Supplies & Services,DBA,09/11/2015,10-13823,212.99,Brake Bros Ltd,,,,,,,,
Nottinghamshire County Council,1111/1001,Children and Young People,CYP,Supplies & Services,DBA,09/11/2015,10-13826,153.23,Brake Bros Ltd,,,,,,,,
Nottinghamshire County Council,1111/1001,Children and Young People,CYP,Supplies & Services,DBA,09/11/2015,10-13843,167.16,Brake Bros Ltd,,,,,,,,
Nottinghamshire County Council,1111/1001,Children and Young People,CYP,Supplies & Services,DBA,09/11/2015,10-13847,594.94,Brake Bros Ltd,,,,,,,,
Nottinghamshire County Council,1111/1001,Children and Young People,CYP,Supplies & Services,DBA,11/11/2015,10-14549,240.45,Hallam Country Fresh Foods Ltd,,,,,,,,
Nottinghamshire County Council,1111/1001,Children and Young People,CYP,Supplies & Services,DBA,12/11/2015,10-14715,294.81,Brake Bros Ltd,,,,,,,,
Nottinghamshire County Council,1111/1001,Children and Young People,CYP,Supplies & Services,DBA,12/11/2015,10-14722,95.72,M Maloney Country Butchers & B Ltd,,,,,,,,
Nottinghamshire County Council,1111/1001,Children and Young People,CYP,Supplies & Services,DBA,12/11/2015,10-14726,87.00,M Maloney Country Butchers & B Ltd,,,,,,,,
Nottinghamshire County Council,1111/1001,Children and Young People,CYP,Supplies & Services,DBA,12/11/2015,10-14733,129.28,Brake Bros Ltd,,,,,,,,
Nottinghamshire County Council,1111/1001,Children and Young People,CYP,Supplies & Services,DBA,17/11/2015,10-15264,353.82,Brake Bros Ltd,,,,,,,,
Nottinghamshire County Council,1111/1001,Children and Young People,CYP,Supplies & Services,DBA,17/11/2015,10-15266,372.48,Brake Bros Ltd,,,,,,,,
Nottinghamshire County Council,1111/1001,Children and Young People,CYP,Supplies & Services,DBA,17/11/2015,10-15269,242.26,Brake Bros Ltd,,,,,,,,
Nottinghamshire County Council,1111/1001,Children and Young People,CYP,Supplies & Services,DBA,17/11/2015,10-15272,656.77,Brake Bros Ltd,,,,,,,,
Nottinghamshire County Council,1111/1001,Children and Young People,CYP,Supplies & Services,DBA,17/11/2015,10-16174,583.33,Notts County Cricket Club,,,,,,,,
Nottinghamshire County Council,1111/1001,Children and Young People,CYP,Supplies & Services,DBA,18/11/2015,10-15396,246.73,Hallam Country Fresh Foods Ltd,,,,,,,,
Nottinghamshire County Council,1111/1001,Children and Young People,CYP,Supplies & Services,DBA,25/11/2015,10-15816,292.54,Hallam Country Fresh Foods Ltd,,,,,,,,
Nottinghamshire County Council,1111/1001,Children and Young People,CYP,Supplies & Services,DBA,25/11/2015,10-15844,259.94,Brake Bros Ltd,,,,,,,,
Nottinghamshire County Council,1111/1001,Children and Young People,CYP,Supplies & Services,DBA,25/11/2015,10-15847,299.70,Brake Bros Ltd,,,,,,,,
Nottinghamshire County Council,1111/1001,Children and Young People,CYP,Supplies & Services,DBA,25/11/2015,10-15851,59.98,Brake Bros Ltd,,,,,,,,
Nottinghamshire County Council,1111/1001,Children and Young People,CYP,Supplies & Services,DBA,25/11/2015,10-15854,386.33,Brake Bros Ltd,,,,,,,,
Nottinghamshire County Council,1111/1001,Children and Young People,CYP,Supplies & Services,DEA,12/11/2015,10-14697,617.15,AJC Educational Consultancy Ltd,,,,,,,,
Nottinghamshire County Council,1111/1001,Children and Young People,CYP,Supplies & Services,DEA,19/11/2015,10-16277,2670.00,J F J Training Ltd,,,,,,,,
Nottinghamshire County Council,1111/1001,Children and Young People,CYP,Supplies & Services,DEA,19/11/2015,10-16292,3950.00,Casy,,,,,,,,
Nottinghamshire County Council,1111/1001,Children and Young People,CYP,Supplies & Services,DEA,23/11/2015,10-16336,3825.00,[Redacted],,,,,,,,
Nottinghamshire County Council,1111/1001,Children and Young People,CYP,Supplies & Services,DEA,23/11/2015,10-16392,4049.00,Ofsted,,,,,,,,
Nottinghamshire County Council,1111/1001,Children and Young People,CYP,Supplies & Services,DEA,24/11/2015,10-16405,900.00,E Learning Team Ltd,,,,,,,,
Nottinghamshire County Council,1111/1001,Children and Young People,CYP,Supplies & Services,DEA,24/11/2015,10-16407,1515.00,Education Development Trust,,,,,,,,
Nottinghamshire County Council,1111/1001,Children and Young People,CYP,Supplies & Services,DEA,25/11/2015,10-15666,568.80,Nursery Care Uk Ltd,,,,,,,,
Nottinghamshire County Council,1111/1001,Children and Young People,CYP,Supplies & Services,DEA,25/11/2015,10-16274,1358.00,Stoke on Trent City Council,,,,,,,,
Nottinghamshire County Council,1111/1001,Children and Young People,CYP,Supplies & Services,DEA,25/11/2015,10-16397,30500.00,"Futures Advice, Skills & Employment",,,,,,,,
Nottinghamshire County Council,1111/1001,Children and Young People,CYP,Supplies & Services,DEA,26/11/2015,10-16494,618.00,Complement Genomics Ltd,,,,,,,,
Nottinghamshire County Council,1111/1001,Children and Young People,CYP,Supplies & Services,DEA,26/11/2015,10-16512,876.80,The Local Therapy Company Ltd,,,,,,,,
Nottinghamshire County Council,1111/1001,Children and Young People,CYP,Supplies & Services,DEA,27/11/2015,10-16105,1125.00,Jo Sharpe Education Consultant,,,,,,,,
Nottinghamshire County Council,1111/1001,Children and Young People,CYP,Supplies & Services,DEA,27/11/2015,10-16106,1125.00,Jo Sharpe Education Consultant,,,,,,,,
Nottinghamshire County Council,1111/1001,Children and Young People,CYP,Supplies & Services,DEA,27/11/2015,10-16520,1067.20,APW Consultancy Service Ltd,,,,,,,,
Nottinghamshire County Council,1111/1001,Children and Young People,CYP,Supplies & Services,DEA,27/11/2015,10-16564,600.00,The Wright Initiative Ltd,,,,,,,,
Nottinghamshire County Council,1111/1001,Children and Young People,CYP,Supplies & Services,DFA,03/11/2015,10-13084,589.31,Lantec Services Ltd,,,,,,,,
Nottinghamshire County Council,1111/1001,Children and Young People,CYP,Supplies & Services,DFA,06/11/2015,10-13522,843.00,Lantec Services Ltd,,,,,,,,
Nottinghamshire County Council,1111/1001,Children and Young People,CYP,Supplies & Services,DFA,10/11/2015,10-14521,1415.91,Lantec Services Ltd,,,,,,,,
Nottinghamshire County Council,1111/1001,Children and Young People,CYP,Supplies & Services,DFA,25/11/2015,10-16411,3384.59,H22 Solutions Ltd,,,,,,,,
Nottinghamshire County Council,1111/1001,Children and Young People,CYP,Supplies & Services,DHA,26/11/2015,10-16500,529.00,Assoc of Employment & Learning Prov,,,,,,,,
Nottinghamshire County Council,1111/1001,Children and Young People,CYP,Supplies & Services,DHA,27/11/2015,10-16010,8379.00,The Lime Trees,,,,,,,,
Nottinghamshire County Council,1111/1001,Children and Young People,CYP,Supplies & Services,DKA,02/11/2015,10-10071,920.00,Butlin Property Services Ltd,,,,,,,,
Nottinghamshire County Council,1111/1001,Children and Young People,CYP,Supplies & Services,DKA,23/11/2015,10-15609,23897.00,Newstead Primary School,,,,,,,,
Nottinghamshire County Council,1111/1001,Children and Young People,CYP,Supplies & Services,DKA,26/11/2015,10-16485,1828.30,Phs Group Plc,,,,,,,,
Nottinghamshire County Council,1111/1001,Children and Young People,CYP,Supplies & Services,DKA,27/11/2015,10-16008,1000.00,Muskham Primary School,,,,,,,,
Nottinghamshire County Council,1111/1001,Children and Young People,CYP,Supplies & Services,DKA,27/11/2015,10-16522,1086.40,Carefirst Services,,,,,,,,
Nottinghamshire County Council,1111/1001,Children and Young People,CYP,Supplies & Services,DKA,27/11/2015,10-16530,900.00,Cherubs Day Nursery Executive House,,,,,,,,
Nottinghamshire County Council,1111/1001,Children and Young People,CYP,Supplies & Services,DKA,30/11/2015,10-16034,1000.00,Leen Mills Primary School,,,,,,,,
Nottinghamshire County Council,1111/1001,Children and Young People,CYP,Supplies & Services,DKA,30/11/2015,10-16158,500.00,A Harris-Lock,,,,,,,,
Nottinghamshire County Council,1111/1001,Children and Young People,CYP,Supplies & Services,DKA,30/11/2015,10-16417,1152.32,Phs Group Plc,,,,,,,,
Nottinghamshire County Council,1111/1001,Children and Young People,CYP,Third Party Payments,EBA,20/11/2015,10-15595,3270.40,Derbyshire County Council,,,,,,,,
Nottinghamshire County Council,1111/1001,Children and Young People,CYP,Third Party Payments,EBA,20/11/2015,10-15596,2452.80,Derbyshire County Council,,,,,,,,
Nottinghamshire County Council,1111/1001,Children and Young People,CYP,Third Party Payments,EBA,25/11/2015,10-15824,17773.62,East Leake Schools Ltd,,,,,,,,
Nottinghamshire County Council,1111/1001,Children and Young People,CYP,Third Party Payments,EBA,25/11/2015,10-15827,1207.08,Transform Schools,,,,,,,,
Nottinghamshire County Council,1111/1001,Children and Young People,CYP,Third Party Payments,EBA,25/11/2015,10-15828,18081.95,Transform Schools,,,,,,,,
Nottinghamshire County Council,1111/1001,Children and Young People,CYP,Third Party Payments,EBA,25/11/2015,10-15829,3303.64,Transform Schools,,,,,,,,
Nottinghamshire County Council,1111/1001,Children and Young People,CYP,Third Party Payments,EBA,25/11/2015,10-15830,21139.11,Transform Schools,,,,,,,,
Nottinghamshire County Council,1111/1001,Children and Young People,CYP,Third Party Payments,EBA,25/11/2015,10-15831,42744.00,Transform Schools,,,,,,,,
Nottinghamshire County Council,1111/1001,Children and Young People,CYP,Third Party Payments,EBA,25/11/2015,10-15838,1483502.36,Transform Schools,,,,,,,,
Nottinghamshire County Council,1111/1001,Children and Young People,CYP,Third Party Payments,EBA,25/11/2015,10-15840,240534.57,East Leake Schools Ltd,,,,,,,,
Nottinghamshire County Council,1111/1001,Children and Young People,CYP,Third Party Payments,EBA,27/11/2015,10-16185,11025.00,North Yorkshire Timber Co Ltd,,,,,,,,
Nottinghamshire County Council,1111/1001,Children and Young People,CYP,Third Party Payments,EBA,27/11/2015,10-16448,895.00,North Yorkshire Timber Co Ltd,,,,,,,,
Nottinghamshire County Council,1111/1001,Children and Young People,CYP,Third Party Payments,EDA,04/11/2015,10-10047,18846.00,St Josephs Catholic Primary Sch Aca,,,,,,,,
Nottinghamshire County Council,1111/1001,Children and Young People,CYP,Third Party Payments,EDA,05/11/2015,10-10033,6038.00,Mansfield Primary Academy,,,,,,,,
Nottinghamshire County Council,1111/1001,Children and Young People,CYP,Third Party Payments,EDA,05/11/2015,10-10034,35707.00,The Brunts Academy,,,,,,,,
Nottinghamshire County Council,1111/1001,Children and Young People,CYP,Third Party Payments,EDA,05/11/2015,10-10035,15668.00,St Edmund Campion Voluntary Academy,,,,,,,,
Nottinghamshire County Council,1111/1001,Children and Young People,CYP,Third Party Payments,EDA,05/11/2015,10-10036,53666.00,The Becket Catholic Voluntary Acade,,,,,,,,
Nottinghamshire County Council,1111/1001,Children and Young People,CYP,Third Party Payments,EDA,05/11/2015,10-10037,65473.00,Sparken Hill Academy,,,,,,,,
Nottinghamshire County Council,1111/1001,Children and Young People,CYP,Third Party Payments,EDA,05/11/2015,10-10038,48847.00,Outwood Academy Portland,,,,,,,,
Nottinghamshire County Council,1111/1001,Children and Young People,CYP,Third Party Payments,EDA,05/11/2015,10-10039,23608.00,Norbridge Academy,,,,,,,,
Nottinghamshire County Council,1111/1001,Children and Young People,CYP,Third Party Payments,EDA,05/11/2015,10-10040,12073.00,Kingston Park Academy,,,,,,,,
Nottinghamshire County Council,1111/1001,Children and Young People,CYP,Third Party Payments,EDA,05/11/2015,10-10041,2544.00,The Bramcote School,,,,,,,,
Nottinghamshire County Council,1111/1001,Children and Young People,CYP,Third Party Payments,EDA,05/11/2015,10-10042,3500.00,The Kimberley School (Academy),,,,,,,,
Nottinghamshire County Council,1111/1001,Children and Young People,CYP,Third Party Payments,EDA,05/11/2015,10-10043,15975.00,Good Shephard Prim Catholic Vol Aca,,,,,,,,
Nottinghamshire County Council,1111/1001,Children and Young People,CYP,Third Party Payments,EDA,05/11/2015,10-10044,49125.00,Christ The King Catholic Voluntary,,,,,,,,
Nottinghamshire County Council,1111/1001,Children and Young People,CYP,Third Party Payments,EDA,05/11/2015,10-10045,1730.00,The Carlton Academy,,,,,,,,
Nottinghamshire County Council,1111/1001,Children and Young People,CYP,Third Party Payments,EDA,05/11/2015,10-10046,2885.00,Alderman White School,,,,,,,,
Nottinghamshire County Council,1111/1001,Children and Young People,CYP,Third Party Payments,EDA,10/11/2015,10-14522,5000.00,The Beech Academy,,,,,,,,
Nottinghamshire County Council,1111/1001,Children and Young People,CYP,Third Party Payments,EDA,10/11/2015,10-14523,51403.00,The Beech Academy,,,,,,,,
Nottinghamshire County Council,1111/1001,Children and Young People,CYP,Third Party Payments,EDA,10/11/2015,10-14524,1666.00,Foxwood Academy,,,,,,,,
Nottinghamshire County Council,1111/1001,Children and Young People,CYP,Third Party Payments,EDA,10/11/2015,10-14525,81710.00,Foxwood Academy,,,,,,,,
Nottinghamshire County Council,1111/1001,Children and Young People,CYP,Third Party Payments,EDA,24/11/2015,10-15673,917.70,Kingston Park Academy,,,,,,,,
Nottinghamshire County Council,1111/1001,Children and Young People,CYP,Third Party Payments,EDA,24/11/2015,10-15674,2753.10,Peafield Lane Academy,,,,,,,,
Nottinghamshire County Council,1111/1001,Children and Young People,CYP,Third Party Payments,EDA,24/11/2015,10-15675,3539.70,Leamington Primary & Nursery Academ,,,,,,,,
Nottinghamshire County Council,1111/1001,Children and Young People,CYP,Third Party Payments,EDA,24/11/2015,10-15676,1398.40,Birklands Primary (Academy),,,,,,,,
Nottinghamshire County Council,1111/1001,Children and Young People,CYP,Third Party Payments,EDA,24/11/2015,10-15677,1048.80,Sunnyside Spencer Academy,,,,,,,,
Nottinghamshire County Council,1111/1001,Children and Young People,CYP,Third Party Payments,EDA,24/11/2015,10-15678,3967.96,Norbridge Academy,,,,,,,,
Nottinghamshire County Council,1111/1001,Children and Young People,CYP,Third Party Payments,EDA,24/11/2015,10-15679,3146.40,Sparken Hill Academy,,,,,,,,
Nottinghamshire County Council,1111/1001,Children and Young People,CYP,Third Party Payments,EDA,24/11/2015,10-15680,1704.30,The Bramble Academy,,,,,,,,
Nottinghamshire County Council,1111/1001,Children and Young People,CYP,Third Party Payments,EDA,24/11/2015,10-15681,594.32,St Peters C of E Academy,,,,,,,,
Nottinghamshire County Council,1111/1001,Children and Young People,CYP,Third Party Payments,EDA,24/11/2015,10-15682,3233.80,Sir Donald Bailey Academy,,,,,,,,
Nottinghamshire County Council,1111/1001,Children and Young People,CYP,Third Party Payments,EDA,24/11/2015,10-15683,1302.26,Sacred Heart Catholic Voluntary Aca,,,,,,,,
Nottinghamshire County Council,1111/1001,Children and Young People,CYP,Third Party Payments,EDA,24/11/2015,10-15684,2648.22,Holy Trinity Catholic Voluntary Aca,,,,,,,,
Nottinghamshire County Council,1111/1001,Children and Young People,CYP,Third Party Payments,EDA,24/11/2015,10-15685,2010.20,St Patricks Catholic Voluntary Acad,,,,,,,,
Nottinghamshire County Council,1111/1001,Children and Young People,CYP,Third Party Payments,EDA,24/11/2015,10-15686,3181.36,St Philip Neri with St Bede Vol Aca,,,,,,,,
Nottinghamshire County Council,1111/1001,Children and Young People,CYP,Third Party Payments,EDA,24/11/2015,10-15687,1879.10,Arnbrook Primary Academy,,,,,,,,
Nottinghamshire County Council,1111/1001,Children and Young People,CYP,Third Party Payments,EDA,24/11/2015,10-15688,2936.64,Hillside Academy,,,,,,,,
Nottinghamshire County Council,1111/1001,Children and Young People,CYP,Third Party Payments,EDA,24/11/2015,10-15689,2316.10,The Flying High Academy,,,,,,,,
Nottinghamshire County Council,1111/1001,Children and Young People,CYP,Third Party Payments,EDA,24/11/2015,10-15690,1434.67,St Joseph's RC Primary Academy,,,,,,,,
Nottinghamshire County Council,1111/1001,Children and Young People,CYP,Third Party Payments,EDA,24/11/2015,10-15691,2097.60,St Josephs Catholic Primary Sch Aca,,,,,,,,
Nottinghamshire County Council,1111/1001,Children and Young People,CYP,Third Party Payments,EDA,24/11/2015,10-15692,2971.60,Serlby Park Academy,,,,,,,,
Nottinghamshire County Council,1111/1001,Children and Young People,CYP,Third Party Payments,EDA,24/11/2015,10-15693,3915.52,The Candleby Lane Academy,,,,,,,,
Nottinghamshire County Council,1111/1001,Children and Young People,CYP,Third Party Payments,EDA,24/11/2015,10-15790,3373.64,Barnby Road Academy Prim & Nursery,,,,,,,,
Nottinghamshire County Council,1111/1001,Children and Young People,CYP,Third Party Payments,EDA,24/11/2015,10-15791,1616.90,Tuxford Primary Academy,,,,,,,,
Nottinghamshire County Council,1111/1001,Children and Young People,CYP,Third Party Payments,EDA,24/11/2015,10-15792,2228.70,Bishop Alexander LEAD Academy,,,,,,,,
Nottinghamshire County Council,1111/1001,Children and Young People,CYP,Third Party Payments,EDA,24/11/2015,10-15793,2141.30,Mansfield Primary Academy,,,,,,,,
Nottinghamshire County Council,1111/1001,Children and Young People,CYP,Third Party Payments,EDA,25/11/2015,10-15802,2272.40,Wainwright Primary Academy,,,,,,,,
Nottinghamshire County Council,1111/1001,Children and Young People,CYP,Third Party Payments,EDA,27/11/2015,10-13213,10664.00,The Holgate Academy,,,,,,,,
Nottinghamshire County Council,1111/1001,Children and Young People,CYP,Third Party Payments,EDA,27/11/2015,10-13214,10908.00,All Saints Catholic Voluntary Acade,,,,,,,,
Nottinghamshire County Council,1111/1001,Children and Young People,CYP,Third Party Payments,EFA,09/11/2015,10-16061,870.00,First Class Tailored Solutions Ltd,,,,,,,,
Nottinghamshire County Council,1111/1001,Children and Young People,CYP,Third Party Payments,EFA,09/11/2015,10-16062,870.00,First Class Tailored Solutions Ltd,,,,,,,,
Nottinghamshire County Council,1111/1001,Children and Young People,CYP,Third Party Payments,EFA,11/11/2015,10-16090,870.00,First Class Tailored Solutions Ltd,,,,,,,,
Nottinghamshire County Council,1111/1001,Children and Young People,CYP,Third Party Payments,EFA,11/11/2015,10-16091,1209.36,Teaching Personnel Ltd,,,,,,,,
Nottinghamshire County Council,1111/1001,Children and Young People,CYP,Third Party Payments,EFA,13/11/2015,10-16115,870.00,First Class Tailored Solutions Ltd,,,,,,,,
Nottinghamshire County Council,1111/1001,Children and Young People,CYP,Third Party Payments,EFA,13/11/2015,10-16116,870.00,First Class Tailored Solutions Ltd,,,,,,,,
Nottinghamshire County Council,1111/1001,Children and Young People,CYP,Third Party Payments,EFA,13/11/2015,10-16117,870.00,First Class Tailored Solutions Ltd,,,,,,,,
Nottinghamshire County Council,1111/1001,Children and Young People,CYP,Third Party Payments,EFA,16/11/2015,10-16140,16267.00,Sutherland House Trading Ltd,,,,,,,,
Nottinghamshire County Council,1111/1001,Children and Young People,CYP,Third Party Payments,EFA,16/11/2015,10-16145,1209.36,Teaching Personnel Ltd,,,,,,,,
Nottinghamshire County Council,1111/1001,Children and Young People,CYP,Third Party Payments,EFA,16/11/2015,10-16148,54766.09,First Class Tailored Solutions Ltd,,,,,,,,
Nottinghamshire County Council,1111/1001,Children and Young People,CYP,Third Party Payments,EFA,18/11/2015,10-16129,4320.00,Rainbow Horses Learning Centre,,,,,,,,
Nottinghamshire County Council,1111/1001,Children and Young People,CYP,Third Party Payments,EFA,18/11/2015,10-16199,2360.00,Excel for Training @ Chesterfield C,,,,,,,,
Nottinghamshire County Council,1111/1001,Children and Young People,CYP,Third Party Payments,EFA,18/11/2015,10-16206,16267.00,Sutherland House Trading Ltd,,,,,,,,
Nottinghamshire County Council,1111/1001,Children and Young People,CYP,Third Party Payments,EFA,18/11/2015,10-16207,11632.00,Sutherland House Trading Ltd,,,,,,,,
Nottinghamshire County Council,1111/1001,Children and Young People,CYP,Third Party Payments,EFA,18/11/2015,10-16208,10337.00,Sutherland House Trading Ltd,,,,,,,,
Nottinghamshire County Council,1111/1001,Children and Young People,CYP,Third Party Payments,EFA,18/11/2015,10-16209,10337.00,Sutherland House Trading Ltd,,,,,,,,
Nottinghamshire County Council,1111/1001,Children and Young People,CYP,Third Party Payments,EFA,18/11/2015,10-16210,16267.00,Sutherland House Trading Ltd,,,,,,,,
Nottinghamshire County Council,1111/1001,Children and Young People,CYP,Third Party Payments,EFA,18/11/2015,10-16211,15907.00,Sutherland House Trading Ltd,,,,,,,,
Nottinghamshire County Council,1111/1001,Children and Young People,CYP,Third Party Payments,EFA,18/11/2015,10-16212,11272.00,Sutherland House Trading Ltd,,,,,,,,
Nottinghamshire County Council,1111/1001,Children and Young People,CYP,Third Party Payments,EFA,18/11/2015,10-16213,15907.00,Sutherland House Trading Ltd,,,,,,,,
Nottinghamshire County Council,1111/1001,Children and Young People,CYP,Third Party Payments,EFA,18/11/2015,10-16215,10337.00,Sutherland House Trading Ltd,,,,,,,,
Nottinghamshire County Council,1111/1001,Children and Young People,CYP,Third Party Payments,EFA,18/11/2015,10-16217,11272.00,Sutherland House Trading Ltd,,,,,,,,
Nottinghamshire County Council,1111/1001,Children and Young People,CYP,Third Party Payments,EFA,18/11/2015,10-16218,10337.00,Sutherland House Trading Ltd,,,,,,,,
Nottinghamshire County Council,1111/1001,Children and Young People,CYP,Third Party Payments,EFA,18/11/2015,10-16227,2138.60,Real Education Ltd,,,,,,,,
Nottinghamshire County Council,1111/1001,Children and Young People,CYP,Third Party Payments,EFA,18/11/2015,10-16228,1538.70,Real Education Ltd,,,,,,,,
Nottinghamshire County Council,1111/1001,Children and Young People,CYP,Third Party Payments,EFA,18/11/2015,10-16229,1333.85,Real Education Ltd,,,,,,,,
Nottinghamshire County Council,1111/1001,Children and Young People,CYP,Third Party Payments,EFA,18/11/2015,10-16235,10337.00,Sutherland House Trading Ltd,,,,,,,,
Nottinghamshire County Council,1111/1001,Children and Young People,CYP,Third Party Payments,EFA,18/11/2015,10-16236,11272.00,Sutherland House Trading Ltd,,,,,,,,
Nottinghamshire County Council,1111/1001,Children and Young People,CYP,Third Party Payments,EFA,18/11/2015,10-16237,11632.00,Sutherland House Trading Ltd,,,,,,,,
Nottinghamshire County Council,1111/1001,Children and Young People,CYP,Third Party Payments,EFA,18/11/2015,10-16238,11632.00,Sutherland House Trading Ltd,,,,,,,,
Nottinghamshire County Council,1111/1001,Children and Young People,CYP,Third Party Payments,EFA,18/11/2015,10-16239,11272.00,Sutherland House Trading Ltd,,,,,,,,
Nottinghamshire County Council,1111/1001,Children and Young People,CYP,Third Party Payments,EFA,18/11/2015,10-16240,16267.00,Sutherland House Trading Ltd,,,,,,,,
Nottinghamshire County Council,1111/1001,Children and Young People,CYP,Third Party Payments,EFA,18/11/2015,10-16241,11632.00,Sutherland House Trading Ltd,,,,,,,,
Nottinghamshire County Council,1111/1001,Children and Young People,CYP,Third Party Payments,EFA,18/11/2015,10-16242,11632.00,Sutherland House Trading Ltd,,,,,,,,
Nottinghamshire County Council,1111/1001,Children and Young People,CYP,Third Party Payments,EFA,18/11/2015,10-16243,11632.00,Sutherland House Trading Ltd,,,,,,,,
Nottinghamshire County Council,1111/1001,Children and Young People,CYP,Third Party Payments,EFA,18/11/2015,10-16244,6621.29,Sutherland House Trading Ltd,,,,,,,,
Nottinghamshire County Council,1111/1001,Children and Young People,CYP,Third Party Payments,EFA,18/11/2015,10-16247,10337.00,Sutherland House Trading Ltd,,,,,,,,
Nottinghamshire County Council,1111/1001,Children and Young People,CYP,Third Party Payments,EFA,18/11/2015,10-16248,10337.00,Sutherland House Trading Ltd,,,,,,,,
Nottinghamshire County Council,1111/1001,Children and Young People,CYP,Third Party Payments,EFA,18/11/2015,10-16249,6621.29,Sutherland House Trading Ltd,,,,,,,,
Nottinghamshire County Council,1111/1001,Children and Young People,CYP,Third Party Payments,EFA,18/11/2015,10-16250,11272.00,Sutherland House Trading Ltd,,,,,,,,
Nottinghamshire County Council,1111/1001,Children and Young People,CYP,Third Party Payments,EFA,18/11/2015,10-16251,15907.00,Sutherland House Trading Ltd,,,,,,,,
Nottinghamshire County Council,1111/1001,Children and Young People,CYP,Third Party Payments,EFA,18/11/2015,10-16257,1124.80,Real Education Ltd,,,,,,,,
Nottinghamshire County Council,1111/1001,Children and Young People,CYP,Third Party Payments,EFA,19/11/2015,10-16231,840.00,Alternative Programme Education Ltd,,,,,,,,
Nottinghamshire County Council,1111/1001,Children and Young People,CYP,Third Party Payments,EFA,19/11/2015,10-16279,16267.00,Sutherland House Trading Ltd,,,,,,,,
Nottinghamshire County Council,1111/1001,Children and Young People,CYP,Third Party Payments,EFA,19/11/2015,10-16290,1631.45,Real Education Ltd,,,,,,,,
Nottinghamshire County Council,1111/1001,Children and Young People,CYP,Third Party Payments,EFA,19/11/2015,10-16293,1914.60,Real Education Ltd,,,,,,,,
Nottinghamshire County Council,1111/1001,Children and Young People,CYP,Third Party Payments,EFA,19/11/2015,10-16294,1739.14,Real Education Ltd,,,,,,,,
Nottinghamshire County Council,1111/1001,Children and Young People,CYP,Third Party Payments,EFA,19/11/2015,10-16295,1130.80,Real Education Ltd,,,,,,,,
Nottinghamshire County Council,1111/1001,Children and Young People,CYP,Third Party Payments,EFA,19/11/2015,10-16316,2093.25,Real Education Ltd,,,,,,,,
Nottinghamshire County Council,1111/1001,Children and Young People,CYP,Third Party Payments,EFA,19/11/2015,10-16317,855.55,Real Education Ltd,,,,,,,,
Nottinghamshire County Council,1111/1001,Children and Young People,CYP,Third Party Payments,EFA,19/11/2015,10-16319,1590.45,Real Education Ltd,,,,,,,,
Nottinghamshire County Council,1111/1001,Children and Young People,CYP,Third Party Payments,EFA,20/11/2015,10-16321,1209.36,Teaching Personnel Ltd,,,,,,,,
Nottinghamshire County Council,1111/1001,Children and Young People,CYP,Third Party Payments,EFA,20/11/2015,10-16324,870.00,First Class Tailored Solutions Ltd,,,,,,,,
Nottinghamshire County Council,1111/1001,Children and Young People,CYP,Third Party Payments,EFA,20/11/2015,10-16327,870.00,First Class Tailored Solutions Ltd,,,,,,,,
Nottinghamshire County Council,1111/1001,Children and Young People,CYP,Third Party Payments,EFA,20/11/2015,10-16328,870.00,First Class Tailored Solutions Ltd,,,,,,,,
Nottinghamshire County Council,1111/1001,Children and Young People,CYP,Third Party Payments,EFA,20/11/2015,10-16329,870.00,First Class Tailored Solutions Ltd,,,,,,,,
Nottinghamshire County Council,1111/1001,Children and Young People,CYP,Third Party Payments,EFA,20/11/2015,10-16333,700.00,Tuxford Academy,,,,,,,,
Nottinghamshire County Council,1111/1001,Children and Young People,CYP,Third Party Payments,EFA,20/11/2015,10-16334,1723.35,Real Education Ltd,,,,,,,,
Nottinghamshire County Council,1111/1001,Children and Young People,CYP,Third Party Payments,EFA,20/11/2015,10-16335,1319.20,Real Education Ltd,,,,,,,,
Nottinghamshire County Council,1111/1001,Children and Young People,CYP,Third Party Payments,EFA,23/11/2015,10-16364,7200.00,Creative Family Solutions Ltd,,,,,,,,
Nottinghamshire County Council,1111/1001,Children and Young People,CYP,Third Party Payments,EFA,24/11/2015,10-16303,8752.00,Tring Park School,,,,,,,,
Nottinghamshire County Council,1111/1001,Children and Young People,CYP,Third Party Payments,EFA,24/11/2015,10-16304,7089.00,Tring Park School,,,,,,,,
Nottinghamshire County Council,1111/1001,Children and Young People,CYP,Third Party Payments,EFA,25/11/2015,10-16439,870.00,First Class Tailored Solutions Ltd,,,,,,,,
Nottinghamshire County Council,1111/1001,Children and Young People,CYP,Third Party Payments,EFA,25/11/2015,10-16451,700.00,Tuxford Academy,,,,,,,,
Nottinghamshire County Council,1111/1001,Children and Young People,CYP,Third Party Payments,EFA,26/11/2015,10-16497,11632.00,Sutherland House Trading Ltd,,,,,,,,
Nottinghamshire County Council,1111/1001,Children and Young People,CYP,Third Party Payments,EFA,26/11/2015,10-16498,18000.00,Sutherland House Trading Ltd,,,,,,,,
Nottinghamshire County Council,1111/1001,Children and Young People,CYP,Third Party Payments,EFA,27/11/2015,10-16536,11272.00,Sutherland House Trading Ltd,,,,,,,,
Nottinghamshire County Council,1111/1001,Children and Young People,CYP,Third Party Payments,EFA,27/11/2015,10-16566,2100.00,Priory Group,,,,,,,,
Nottinghamshire County Council,1111/1001,Children and Young People,CYP,Third Party Payments,EFA,27/11/2015,10-16567,2362.50,Priory Group,,,,,,,,
Nottinghamshire County Council,1111/1001,Children and Young People,CYP,Third Party Payments,EFA,30/11/2015,10-16575,1837.50,Priory Group,,,,,,,,
Nottinghamshire County Council,1111/1001,Children and Young People,CYP,Third Party Payments,EGA,02/11/2015,10-16041,1130074.33,Nottinghamshire Healthcare Nhs F Tr,,,,,,,,
Nottinghamshire County Council,1111/1001,Children and Young People,CYP,Third Party Payments,EGA,03/11/2015,10-13079,1412.25,Ace Cars,,,,,,,,
Nottinghamshire County Council,1111/1001,Children and Young People,CYP,Third Party Payments,EGA,04/11/2015,10-10053,6734.07,Townrow Tiny Tots Ltd,,,,,,,,
Nottinghamshire County Council,1111/1001,Children and Young People,CYP,Third Party Payments,EGA,05/11/2015,10-13440,1143.25,Ace Cars,,,,,,,,
Nottinghamshire County Council,1111/1001,Children and Young People,CYP,Third Party Payments,EGA,10/11/2015,10-14520,1740.90,Millgate Pre School,,,,,,,,
Nottinghamshire County Council,1111/1001,Children and Young People,CYP,Third Party Payments,EGA,12/11/2015,10-16096,2137.14,Twenty Four Seven HSA For Young Peo,,,,,,,,
Nottinghamshire County Council,1111/1001,Children and Young People,CYP,Third Party Payments,EGA,16/11/2015,10-14887,4946.20,Cherubs Ryton Park,,,,,,,,
Nottinghamshire County Council,1111/1001,Children and Young People,CYP,Third Party Payments,EGA,16/11/2015,10-14888,12470.01,Cherubs Childrens Centre Pleasley,,,,,,,,
Nottinghamshire County Council,1111/1001,Children and Young People,CYP,Third Party Payments,EGA,16/11/2015,10-14890,17364.79,Cherubs Childrens Centre Wynndale,,,,,,,,
Nottinghamshire County Council,1111/1001,Children and Young People,CYP,Third Party Payments,EGA,16/11/2015,10-14891,17931.06,Cherubs Childcare Centre Ladybrook,,,,,,,,
Nottinghamshire County Council,1111/1001,Children and Young People,CYP,Third Party Payments,EGA,16/11/2015,10-14892,23108.43,Cherubs Childcare Centre (Mansfield,,,,,,,,
Nottinghamshire County Council,1111/1001,Children and Young People,CYP,Third Party Payments,EGA,16/11/2015,10-14893,3191.96,Cheeky Monkeys Day Nursery,,,,,,,,
Nottinghamshire County Council,1111/1001,Children and Young People,CYP,Third Party Payments,EGA,16/11/2015,10-14894,5338.62,Cedar House Day Nursery,,,,,,,,
Nottinghamshire County Council,1111/1001,Children and Young People,CYP,Third Party Payments,EGA,16/11/2015,10-14895,2496.31,Carlton Hill Playgroup,,,,,,,,
Nottinghamshire County Council,1111/1001,Children and Young People,CYP,Third Party Payments,EGA,16/11/2015,10-14896,2896.32,Carlton & Gedling Day Nursery,,,,,,,,
Nottinghamshire County Council,1111/1001,Children and Young People,CYP,Third Party Payments,EGA,16/11/2015,10-14897,2340.87,Butterflies Nursery (West Notts Col,,,,,,,,
Nottinghamshire County Council,1111/1001,Children and Young People,CYP,Third Party Payments,EGA,16/11/2015,10-14898,6564.73,Busy Bees Pre-School (Sutton),,,,,,,,
Nottinghamshire County Council,1111/1001,Children and Young People,CYP,Third Party Payments,EGA,16/11/2015,10-14899,7232.81,Busy Bees Nursery,,,,,,,,
Nottinghamshire County Council,1111/1001,Children and Young People,CYP,Third Party Payments,EGA,16/11/2015,10-14900,5812.17,Busy Bees (Daybrook),,,,,,,,
Nottinghamshire County Council,1111/1001,Children and Young People,CYP,Third Party Payments,EGA,16/11/2015,10-14901,5261.02,Bircotes Pre-School,,,,,,,,
Nottinghamshire County Council,1111/1001,Children and Young People,CYP,Third Party Payments,EGA,16/11/2015,10-14902,3833.68,PSLA Newstead Childcare,,,,,,,,
Nottinghamshire County Council,1111/1001,Children and Young People,CYP,Third Party Payments,EGA,16/11/2015,10-14903,10371.60,PSLA Newstead Childcare,,,,,,,,
Nottinghamshire County Council,1111/1001,Children and Young People,CYP,Third Party Payments,EGA,16/11/2015,10-14904,2239.79,PSLA Newstead Childcare,,,,,,,,
Nottinghamshire County Council,1111/1001,Children and Young People,CYP,Third Party Payments,EGA,16/11/2015,10-14905,8874.82,PSLA Newstead Childcare,,,,,,,,
Nottinghamshire County Council,1111/1001,Children and Young People,CYP,Third Party Payments,EGA,16/11/2015,10-14906,6320.16,Stepping Stones II,,,,,,,,
Nottinghamshire County Council,1111/1001,Children and Young People,CYP,Third Party Payments,EGA,16/11/2015,10-14907,16005.99,Stapleford Day Nursery,,,,,,,,
Nottinghamshire County Council,1111/1001,Children and Young People,CYP,Third Party Payments,EGA,16/11/2015,10-14908,6505.07,St Mary's Pre-School,,,,,,,,
Nottinghamshire County Council,1111/1001,Children and Young People,CYP,Third Party Payments,EGA,16/11/2015,10-14909,12359.13,Awsworth Schoolhouse Day Nursery,,,,,,,,
Nottinghamshire County Council,1111/1001,Children and Young People,CYP,Third Party Payments,EGA,16/11/2015,10-14910,13570.32,Serendipity's Day Nursery,,,,,,,,
Nottinghamshire County Council,1111/1001,Children and Young People,CYP,Third Party Payments,EGA,16/11/2015,10-14911,12382.16,Serendipity's Day Nursery,,,,,,,,
Nottinghamshire County Council,1111/1001,Children and Young People,CYP,Third Party Payments,EGA,16/11/2015,10-14912,7717.81,Attenborough Day Nursery & Pre-Sch,,,,,,,,
Nottinghamshire County Council,1111/1001,Children and Young People,CYP,Third Party Payments,EGA,16/11/2015,10-14913,2142.54,Attenborough Church Pre-School,,,,,,,,
Nottinghamshire County Council,1111/1001,Children and Young People,CYP,Third Party Payments,EGA,16/11/2015,10-14914,13625.74,Arnold St Mary's Pre-School,,,,,,,,
Nottinghamshire County Council,1111/1001,Children and Young People,CYP,Third Party Payments,EGA,16/11/2015,10-14915,27201.30,Arnold House Day Nursery,,,,,,,,
Nottinghamshire County Council,1111/1001,Children and Young People,CYP,Third Party Payments,EGA,16/11/2015,10-14916,17098.79,Alphabet House Day Nursery Worksop,,,,,,,,
Nottinghamshire County Council,1111/1001,Children and Young People,CYP,Third Party Payments,EGA,16/11/2015,10-14917,962.01,Annekas Angels Childminding Service,,,,,,,,
Nottinghamshire County Council,1111/1001,Children and Young People,CYP,Third Party Payments,EGA,16/11/2015,10-14918,10361.79,Appleton Day Nursery,,,,,,,,
Nottinghamshire County Council,1111/1001,Children and Young People,CYP,Third Party Payments,EGA,16/11/2015,10-14919,6666.87,Alphabet House Day Nursery WB,,,,,,,,
Nottinghamshire County Council,1111/1001,Children and Young People,CYP,Third Party Payments,EGA,16/11/2015,10-14920,3227.91,Alphabet House Day Nursery,,,,,,,,
Nottinghamshire County Council,1111/1001,Children and Young People,CYP,Third Party Payments,EGA,16/11/2015,10-14921,11804.10,Bright Stars Childcare,,,,,,,,
Nottinghamshire County Council,1111/1001,Children and Young People,CYP,Third Party Payments,EGA,16/11/2015,10-14922,9644.50,Bright Sparks Day Nursery,,,,,,,,
Nottinghamshire County Council,1111/1001,Children and Young People,CYP,Third Party Payments,EGA,16/11/2015,10-14923,2781.60,Bramley Pips Nursery Ltd,,,,,,,,
Nottinghamshire County Council,1111/1001,Children and Young People,CYP,Third Party Payments,EGA,16/11/2015,10-14924,2748.60,[Redacted],,,,,,,,
Nottinghamshire County Council,1111/1001,Children and Young People,CYP,Third Party Payments,EGA,16/11/2015,10-14925,12571.31,Bizzy Kidz,,,,,,,,
Nottinghamshire County Council,1111/1001,Children and Young People,CYP,Third Party Payments,EGA,16/11/2015,10-14928,13265.34,PSLA Newstead Childcare,,,,,,,,
Nottinghamshire County Council,1111/1001,Children and Young People,CYP,Third Party Payments,EGA,16/11/2015,10-14929,5612.80,St Johns Playgroup,,,,,,,,
Nottinghamshire County Council,1111/1001,Children and Young People,CYP,Third Party Payments,EGA,16/11/2015,10-14930,13759.13,Serendipity's Day Nursery,,,,,,,,
Nottinghamshire County Council,1111/1001,Children and Young People,CYP,Third Party Payments,EGA,16/11/2015,10-14931,6790.50,Scotts Wood Private Day Nursery,,,,,,,,
Nottinghamshire County Council,1111/1001,Children and Young People,CYP,Third Party Payments,EGA,16/11/2015,10-14932,4295.30,Scottswood Pdn Ltd,,,,,,,,
Nottinghamshire County Council,1111/1001,Children and Young People,CYP,Third Party Payments,EGA,16/11/2015,10-14933,5457.90,Sconce Hills Pre-School Playgroup,,,,,,,,
Nottinghamshire County Council,1111/1001,Children and Young People,CYP,Third Party Payments,EGA,16/11/2015,10-14934,2035.53,Saville House School,,,,,,,,
Nottinghamshire County Council,1111/1001,Children and Young People,CYP,Third Party Payments,EGA,16/11/2015,10-15004,641.34,Tracey Streeter Childminding Servic,,,,,,,,
Nottinghamshire County Council,1111/1001,Children and Young People,CYP,Third Party Payments,EGA,16/11/2015,10-15005,561.46,[Redacted],,,,,,,,
Nottinghamshire County Council,1111/1001,Children and Young People,CYP,Third Party Payments,EGA,16/11/2015,10-15006,1894.29,Costock Pre School,,,,,,,,
Nottinghamshire County Council,1111/1001,Children and Young People,CYP,Third Party Payments,EGA,16/11/2015,10-15007,1429.05,Colston Bassett Preparatory School,,,,,,,,
Nottinghamshire County Council,1111/1001,Children and Young People,CYP,Third Party Payments,EGA,16/11/2015,10-15008,3864.71,Collingham & District Pre-School,,,,,,,,
Nottinghamshire County Council,1111/1001,Children and Young People,CYP,Third Party Payments,EGA,16/11/2015,10-15009,8540.70,Claremont Early Years Ltd,,,,,,,,
Nottinghamshire County Council,1111/1001,Children and Young People,CYP,Third Party Payments,EGA,16/11/2015,10-15010,9123.04,Christchurch Hall Pre-School Playgr,,,,,,,,
Nottinghamshire County Council,1111/1001,Children and Young People,CYP,Third Party Payments,EGA,16/11/2015,10-15011,10549.25,The Secret Garden Private Day Nurse,,,,,,,,
Nottinghamshire County Council,1111/1001,Children and Young People,CYP,Third Party Payments,EGA,16/11/2015,10-15012,9818.16,The Orange Tree Day Nursery,,,,,,,,
Nottinghamshire County Council,1111/1001,Children and Young People,CYP,Third Party Payments,EGA,16/11/2015,10-15014,5195.27,Wellin Lane Playgroup,,,,,,,,
Nottinghamshire County Council,1111/1001,Children and Young People,CYP,Third Party Payments,EGA,16/11/2015,10-15015,8605.77,Coteswood House School,,,,,,,,
Nottinghamshire County Council,1111/1001,Children and Young People,CYP,Third Party Payments,EGA,16/11/2015,10-15016,606.48,[Redacted],,,,,,,,
Nottinghamshire County Council,1111/1001,Children and Young People,CYP,Third Party Payments,EGA,16/11/2015,10-15017,22716.96,Early Years Playgroup,,,,,,,,
Nottinghamshire County Council,1111/1001,Children and Young People,CYP,Third Party Payments,EGA,16/11/2015,10-15018,11144.42,Early Learners Centre Day Nursery,,,,,,,,
Nottinghamshire County Council,1111/1001,Children and Young People,CYP,Third Party Payments,EGA,16/11/2015,10-15019,2174.97,[Redacted],,,,,,,,
Nottinghamshire County Council,1111/1001,Children and Young People,CYP,Third Party Payments,EGA,16/11/2015,10-15020,8001.32,Ashfield Plaza Day Nursery,,,,,,,,
Nottinghamshire County Council,1111/1001,Children and Young People,CYP,Third Party Payments,EGA,16/11/2015,10-15021,1772.10,Daisies Day Nursery,,,,,,,,
Nottinghamshire County Council,1111/1001,Children and Young People,CYP,Third Party Payments,EGA,16/11/2015,10-15022,2663.99,Daisies Day Nursery,,,,,,,,
Nottinghamshire County Council,1111/1001,Children and Young People,CYP,Third Party Payments,EGA,16/11/2015,10-15023,5040.00,Dagfa House School,,,,,,,,
Nottinghamshire County Council,1111/1001,Children and Young People,CYP,Third Party Payments,EGA,16/11/2015,10-15024,6220.20,Childrens House Childcare Ltd,,,,,,,,
Nottinghamshire County Council,1111/1001,Children and Young People,CYP,Third Party Payments,EGA,16/11/2015,10-15025,3084.37,Speckled Frogs Pre-School,,,,,,,,
Nottinghamshire County Council,1111/1001,Children and Young People,CYP,Third Party Payments,EGA,16/11/2015,10-15026,892.29,[Redacted],,,,,,,,
Nottinghamshire County Council,1111/1001,Children and Young People,CYP,Third Party Payments,EGA,16/11/2015,10-15027,8091.72,Beacon Hill Day Nursery,,,,,,,,
Nottinghamshire County Council,1111/1001,Children and Young People,CYP,Third Party Payments,EGA,16/11/2015,10-15028,3601.71,Sparkle Daycare,,,,,,,,
Nottinghamshire County Council,1111/1001,Children and Young People,CYP,Third Party Payments,EGA,16/11/2015,10-15029,3633.32,Southwell Pre-School,,,,,,,,
Nottinghamshire County Council,1111/1001,Children and Young People,CYP,Third Party Payments,EGA,16/11/2015,10-15030,5186.43,Southfields Pre-School,,,,,,,,
Nottinghamshire County Council,1111/1001,Children and Young People,CYP,Third Party Payments,EGA,16/11/2015,10-15031,755.66,Joanne Smith Childminding Service,,,,,,,,
Nottinghamshire County Council,1111/1001,Children and Young People,CYP,Third Party Payments,EGA,16/11/2015,10-15032,4845.50,Salterford House School,,,,,,,,
Nottinghamshire County Council,1111/1001,Children and Young People,CYP,Third Party Payments,EGA,16/11/2015,10-15033,16902.69,Safe Haven Day Nursery,,,,,,,,
Nottinghamshire County Council,1111/1001,Children and Young People,CYP,Third Party Payments,EGA,16/11/2015,10-15034,4760.76,Ruddington Nursery & Pre-School,,,,,,,,
Nottinghamshire County Council,1111/1001,Children and Young People,CYP,Third Party Payments,EGA,16/11/2015,10-15035,947.52,Rocking Horse Nursery Butlers Hill,,,,,,,,
Nottinghamshire County Council,1111/1001,Children and Young People,CYP,Third Party Payments,EGA,16/11/2015,10-15036,26858.12,The Rocking Horse Child Care Centre,,,,,,,,
Nottinghamshire County Council,1111/1001,Children and Young People,CYP,Third Party Payments,EGA,16/11/2015,10-15037,927.15,[Redacted],,,,,,,,
Nottinghamshire County Council,1111/1001,Children and Young People,CYP,Third Party Payments,EGA,16/11/2015,10-15040,1389.57,[Redacted],,,,,,,,
Nottinghamshire County Council,1111/1001,Children and Young People,CYP,Third Party Payments,EGA,16/11/2015,10-15041,6589.03,Ravenshead Pre-School Playgroup,,,,,,,,
Nottinghamshire County Council,1111/1001,Children and Young People,CYP,Third Party Payments,EGA,16/11/2015,10-15042,8237.63,Ranskill Nursery,,,,,,,,
Nottinghamshire County Council,1111/1001,Children and Young People,CYP,Third Party Payments,EGA,16/11/2015,10-15043,7986.51,Rainbows Day Nursery,,,,,,,,
Nottinghamshire County Council,1111/1001,Children and Young People,CYP,Third Party Payments,EGA,16/11/2015,10-15044,2218.65,Rainbow Day Nursery,,,,,,,,
Nottinghamshire County Council,1111/1001,Children and Young People,CYP,Third Party Payments,EGA,16/11/2015,10-15045,6022.20,Railway Children Playgroup,,,,,,,,
Nottinghamshire County Council,1111/1001,Children and Young People,CYP,Third Party Payments,EGA,16/11/2015,10-15046,1119.09,[Redacted],,,,,,,,
Nottinghamshire County Council,1111/1001,Children and Young People,CYP,Third Party Payments,EGA,16/11/2015,10-15047,1873.74,Pump Farm Day Nursery,,,,,,,,
Nottinghamshire County Council,1111/1001,Children and Young People,CYP,Third Party Payments,EGA,16/11/2015,10-15048,8075.76,Puddleducks Pre-School,,,,,,,,
Nottinghamshire County Council,1111/1001,Children and Young People,CYP,Third Party Payments,EGA,16/11/2015,10-15049,3247.16,Portland Place Pre-School,,,,,,,,
Nottinghamshire County Council,1111/1001,Children and Young People,CYP,Third Party Payments,EGA,16/11/2015,10-15050,1749.72,Happy Times,,,,,,,,
Nottinghamshire County Council,1111/1001,Children and Young People,CYP,Third Party Payments,EGA,16/11/2015,10-15051,18144.00,Plumtree School,,,,,,,,
Nottinghamshire County Council,1111/1001,Children and Young People,CYP,Third Party Payments,EGA,16/11/2015,10-15052,4260.20,Pippins Pre-School,,,,,,,,
Nottinghamshire County Council,1111/1001,Children and Young People,CYP,Third Party Payments,EGA,16/11/2015,10-15053,5957.70,Phoenix Farm Pre School,,,,,,,,
Nottinghamshire County Council,1111/1001,Children and Young People,CYP,Third Party Payments,EGA,16/11/2015,10-15054,3585.40,Pea Pod Day Nursery Ltd,,,,,,,,
Nottinghamshire County Council,1111/1001,Children and Young People,CYP,Third Party Payments,EGA,16/11/2015,10-15055,1710.24,[Redacted],,,,,,,,
Nottinghamshire County Council,1111/1001,Children and Young People,CYP,Third Party Payments,EGA,16/11/2015,10-15056,4279.60,Pre-School 345,,,,,,,,
Nottinghamshire County Council,1111/1001,Children and Young People,CYP,Third Party Payments,EGA,16/11/2015,10-15057,916.20,Paper Moon Nurseries,,,,,,,,
Nottinghamshire County Council,1111/1001,Children and Young People,CYP,Third Party Payments,EGA,16/11/2015,10-15058,45817.59,Papermoon Day Nursery Sutton In Ash,,,,,,,,
Nottinghamshire County Council,1111/1001,Children and Young People,CYP,Third Party Payments,EGA,16/11/2015,10-15059,18767.52,Papermoon Day Nursery,,,,,,,,
Nottinghamshire County Council,1111/1001,Children and Young People,CYP,Third Party Payments,EGA,16/11/2015,10-15060,4088.63,Noahs Ark Playgroup,,,,,,,,
Nottinghamshire County Council,1111/1001,Children and Young People,CYP,Third Party Payments,EGA,16/11/2015,10-15061,5758.79,Netherfield Pre School Ltd,,,,,,,,
Nottinghamshire County Council,1111/1001,Children and Young People,CYP,Third Party Payments,EGA,16/11/2015,10-15062,1354.71,[Redacted],,,,,,,,
Nottinghamshire County Council,1111/1001,Children and Young People,CYP,Third Party Payments,EGA,16/11/2015,10-15063,6946.17,Misson Pre-School,,,,,,,,
Nottinghamshire County Council,1111/1001,Children and Young People,CYP,Third Party Payments,EGA,16/11/2015,10-15064,6217.47,Millfield Nursery School,,,,,,,,
Nottinghamshire County Council,1111/1001,Children and Young People,CYP,Third Party Payments,EGA,16/11/2015,10-15065,582.08,[Redacted],,,,,,,,
Nottinghamshire County Council,1111/1001,Children and Young People,CYP,Third Party Payments,EGA,16/11/2015,10-15066,542.08,L McGoldrick (Childminding Service),,,,,,,,
Nottinghamshire County Council,1111/1001,Children and Young People,CYP,Third Party Payments,EGA,16/11/2015,10-15067,1996.05,Vicki's Childminding Service,,,,,,,,
Nottinghamshire County Council,1111/1001,Children and Young People,CYP,Third Party Payments,EGA,16/11/2015,10-15068,763.50,Lisa's Little Angels,,,,,,,,
Nottinghamshire County Council,1111/1001,Children and Young People,CYP,Third Party Payments,EGA,16/11/2015,10-15069,11446.40,Edwalton Day Nursery,,,,,,,,
Nottinghamshire County Council,1111/1001,Children and Young People,CYP,Third Party Payments,EGA,16/11/2015,10-15070,2830.95,East Leake Pre-School Playgroup,,,,,,,,
Nottinghamshire County Council,1111/1001,Children and Young People,CYP,Third Party Payments,EGA,16/11/2015,10-15071,3598.90,Elston Pre-school Playgroup Newark,,,,,,,,
Nottinghamshire County Council,1111/1001,Children and Young People,CYP,Third Party Payments,EGA,16/11/2015,10-15072,15914.73,St Peter's Early Years,,,,,,,,
Nottinghamshire County Council,1111/1001,Children and Young People,CYP,Third Party Payments,EGA,16/11/2015,10-15073,15591.08,Fernwood Day Nursery Ltd,,,,,,,,
Nottinghamshire County Council,1111/1001,Children and Young People,CYP,Third Party Payments,EGA,16/11/2015,10-15074,2523.01,Fledglings Playgroup,,,,,,,,
Nottinghamshire County Council,1111/1001,Children and Young People,CYP,Third Party Payments,EGA,16/11/2015,10-15075,8841.63,Westbourne House Nursery School,,,,,,,,
Nottinghamshire County Council,1111/1001,Children and Young People,CYP,Third Party Payments,EGA,16/11/2015,10-15076,2794.93,West Street Pre-School,,,,,,,,
Nottinghamshire County Council,1111/1001,Children and Young People,CYP,Third Party Payments,EGA,16/11/2015,10-15077,7721.65,West Bridgford Out Of School Care L,,,,,,,,
Nottinghamshire County Council,1111/1001,Children and Young People,CYP,Third Party Payments,EGA,16/11/2015,10-15078,8462.56,Wellow House School,,,,,,,,
Nottinghamshire County Council,1111/1001,Children and Young People,CYP,Third Party Payments,EGA,16/11/2015,10-15079,4526.26,Watnall Pre-School Playgroup,,,,,,,,
Nottinghamshire County Council,1111/1001,Children and Young People,CYP,Third Party Payments,EGA,16/11/2015,10-15080,17988.20,Treetops Nurseries Ltd,,,,,,,,
Nottinghamshire County Council,1111/1001,Children and Young People,CYP,Third Party Payments,EGA,16/11/2015,10-15081,6663.09,Walesby School Playgroup,,,,,,,,
Nottinghamshire County Council,1111/1001,Children and Young People,CYP,Third Party Payments,EGA,16/11/2015,10-15082,20694.42,Village Day Nursery,,,,,,,,
Nottinghamshire County Council,1111/1001,Children and Young People,CYP,Third Party Payments,EGA,16/11/2015,10-15083,11223.45,Zoes Childcare Ltd,,,,,,,,
Nottinghamshire County Council,1111/1001,Children and Young People,CYP,Third Party Payments,EGA,16/11/2015,10-15084,6954.36,Zoe's Childcare Ltd,,,,,,,,
Nottinghamshire County Council,1111/1001,Children and Young People,CYP,Third Party Payments,EGA,16/11/2015,10-15085,1025.22,[Redacted],,,,,,,,
Nottinghamshire County Council,1111/1001,Children and Young People,CYP,Third Party Payments,EGA,16/11/2015,10-15086,2800.45,Upton Crickets Day Nursery,,,,,,,,
Nottinghamshire County Council,1111/1001,Children and Young People,CYP,Third Party Payments,EGA,16/11/2015,10-15087,26910.00,Worksop College,,,,,,,,
Nottinghamshire County Council,1111/1001,Children and Young People,CYP,Third Party Payments,EGA,16/11/2015,10-15088,2327.64,Windmills Pre-School Playgroup,,,,,,,,
Nottinghamshire County Council,1111/1001,Children and Young People,CYP,Third Party Payments,EGA,16/11/2015,10-15089,606.48,Jammie Dodgers Childminding Group,,,,,,,,
Nottinghamshire County Council,1111/1001,Children and Young People,CYP,Third Party Payments,EGA,16/11/2015,10-15090,641.34,Kylees Childmining Services,,,,,,,,
Nottinghamshire County Council,1111/1001,Children and Young People,CYP,Third Party Payments,EGA,16/11/2015,10-15091,12089.67,Willow Pre-School Playgroup,,,,,,,,
Nottinghamshire County Council,1111/1001,Children and Young People,CYP,Third Party Payments,EGA,16/11/2015,10-15092,11254.95,Toddlers University (Bee),,,,,,,,
Nottinghamshire County Council,1111/1001,Children and Young People,CYP,Third Party Payments,EGA,16/11/2015,10-15093,4262.00,Willoughby On The Wolds Playgroup,,,,,,,,
Nottinghamshire County Council,1111/1001,Children and Young People,CYP,Third Party Payments,EGA,16/11/2015,10-15094,25756.80,Tiny World Mansfield,,,,,,,,
Nottinghamshire County Council,1111/1001,Children and Young People,CYP,Third Party Payments,EGA,16/11/2015,10-15095,892.29,Sues Childminding Services,,,,,,,,
Nottinghamshire County Council,1111/1001,Children and Young People,CYP,Third Party Payments,EGA,16/11/2015,10-15096,6801.69,Tiny Tots Playgroup,,,,,,,,
Nottinghamshire County Council,1111/1001,Children and Young People,CYP,Third Party Payments,EGA,16/11/2015,10-15097,623.91,Tiny Teddies @ Roko,,,,,,,,
Nottinghamshire County Council,1111/1001,Children and Young People,CYP,Third Party Payments,EGA,16/11/2015,10-15098,1976.73,Tiny Teddies Day Nursery,,,,,,,,
Nottinghamshire County Council,1111/1001,Children and Young People,CYP,Third Party Payments,EGA,16/11/2015,10-15099,6335.03,Thrumpton Kids Clubs,,,,,,,,
Nottinghamshire County Council,1111/1001,Children and Young People,CYP,Third Party Payments,EGA,16/11/2015,10-15100,3802.36,The West Bridgford Day Nursery,,,,,,,,
Nottinghamshire County Council,1111/1001,Children and Young People,CYP,Third Party Payments,EGA,16/11/2015,10-15101,9290.93,Tollerton Playgroup,,,,,,,,
Nottinghamshire County Council,1111/1001,Children and Young People,CYP,Third Party Payments,EGA,16/11/2015,10-15102,2791.66,Allsorts Playgroup,,,,,,,,
Nottinghamshire County Council,1111/1001,Children and Young People,CYP,Third Party Payments,EGA,16/11/2015,10-15103,6077.33,Alphabet House Day Nursery,,,,,,,,
Nottinghamshire County Council,1111/1001,Children and Young People,CYP,Third Party Payments,EGA,16/11/2015,10-15105,8415.32,Treetops Nursery,,,,,,,,
Nottinghamshire County Council,1111/1001,Children and Young People,CYP,Third Party Payments,EGA,16/11/2015,10-15106,11636.81,Treetops Nursery (Clipstone),,,,,,,,
Nottinghamshire County Council,1111/1001,Children and Young People,CYP,Third Party Payments,EGA,16/11/2015,10-15107,4428.27,Lilliput Day Nursery (The Canch),,,,,,,,
Nottinghamshire County Council,1111/1001,Children and Young People,CYP,Third Party Payments,EGA,16/11/2015,10-15108,3129.25,Trowell Pre School,,,,,,,,
Nottinghamshire County Council,1111/1001,Children and Young People,CYP,Third Party Payments,EGA,16/11/2015,10-15109,4298.34,Tiny Talkers Day Nursery,,,,,,,,
Nottinghamshire County Council,1111/1001,Children and Young People,CYP,Third Party Payments,EGA,16/11/2015,10-15110,5710.74,Breedon House Nurseries Ltd,,,,,,,,
Nottinghamshire County Council,1111/1001,Children and Young People,CYP,Third Party Payments,EGA,16/11/2015,10-15111,3370.46,Chetwynd Barracks Pre-School,,,,,,,,
Nottinghamshire County Council,1111/1001,Children and Young People,CYP,Third Party Payments,EGA,16/11/2015,10-15112,534.45,[Redacted],,,,,,,,
Nottinghamshire County Council,1111/1001,Children and Young People,CYP,Third Party Payments,EGA,16/11/2015,10-15113,927.15,Mapperley Day Nursery,,,,,,,,
Nottinghamshire County Council,1111/1001,Children and Young People,CYP,Third Party Payments,EGA,16/11/2015,10-15114,11489.80,Prebend Pre-School Playgroup,,,,,,,,
Nottinghamshire County Council,1111/1001,Children and Young People,CYP,Third Party Payments,EGA,16/11/2015,10-15115,12790.68,Papermoon Day Nursery,,,,,,,,
Nottinghamshire County Council,1111/1001,Children and Young People,CYP,Third Party Payments,EGA,16/11/2015,10-15118,3924.20,Orchard School Nursery,,,,,,,,
Nottinghamshire County Council,1111/1001,Children and Young People,CYP,Third Party Payments,EGA,16/11/2015,10-15119,2519.79,Old Cooperative Day Nursery,,,,,,,,
Nottinghamshire County Council,1111/1001,Children and Young People,CYP,Third Party Payments,EGA,16/11/2015,10-15120,3742.97,Longdale Nursery School,,,,,,,,
Nottinghamshire County Council,1111/1001,Children and Young People,CYP,Third Party Payments,EGA,16/11/2015,10-15121,14587.27,Little Nippers Pre-School,,,,,,,,
Nottinghamshire County Council,1111/1001,Children and Young People,CYP,Third Party Payments,EGA,16/11/2015,10-15122,10410.83,Little Millers Day Nursery,,,,,,,,
Nottinghamshire County Council,1111/1001,Children and Young People,CYP,Third Party Payments,EGA,16/11/2015,10-15123,3436.94,Little Friends Day Nursery,,,,,,,,
Nottinghamshire County Council,1111/1001,Children and Young People,CYP,Third Party Payments,EGA,16/11/2015,10-15124,10262.10,Little Acorns Shireoaks,,,,,,,,
Nottinghamshire County Council,1111/1001,Children and Young People,CYP,Third Party Payments,EGA,16/11/2015,10-15125,3633.74,Gotham Pre-School Playgroup,,,,,,,,
Nottinghamshire County Council,1111/1001,Children and Young People,CYP,Third Party Payments,EGA,16/11/2015,10-15126,840.00,Little Tots,,,,,,,,
Nottinghamshire County Council,1111/1001,Children and Young People,CYP,Third Party Payments,EGA,16/11/2015,10-15127,641.34,[Redacted],,,,,,,,
Nottinghamshire County Council,1111/1001,Children and Young People,CYP,Third Party Payments,EGA,16/11/2015,10-15128,6890.62,Galaxies Day Nursery,,,,,,,,
Nottinghamshire County Council,1111/1001,Children and Young People,CYP,Third Party Payments,EGA,16/11/2015,10-15129,4044.25,North Muskham Playgroup,,,,,,,,
Nottinghamshire County Council,1111/1001,Children and Young People,CYP,Third Party Payments,EGA,16/11/2015,10-15130,971.75,Lyndsay's Childminding,,,,,,,,
Nottinghamshire County Council,1111/1001,Children and Young People,CYP,Third Party Payments,EGA,16/11/2015,10-15131,2061.30,Nurseryworld & Friends Nursery & Pr,,,,,,,,
Nottinghamshire County Council,1111/1001,Children and Young People,CYP,Third Party Payments,EGA,16/11/2015,10-15132,4136.16,[Redacted],,,,,,,,
Nottinghamshire County Council,1111/1001,Children and Young People,CYP,Third Party Payments,EGA,16/11/2015,10-15135,962.01,[Redacted],,,,,,,,
Nottinghamshire County Council,1111/1001,Children and Young People,CYP,Third Party Payments,EGA,16/11/2015,10-16086,21103.21,Team Fostering,,,,,,,,
Nottinghamshire County Council,1111/1001,Children and Young People,CYP,Third Party Payments,EGA,16/11/2015,10-16130,10450.00,Fostering People Ltd,,,,,,,,
Nottinghamshire County Council,1111/1001,Children and Young People,CYP,Third Party Payments,EGA,16/11/2015,10-16131,40963.69,Total Care Matters Ltd,,,,,,,,
Nottinghamshire County Council,1111/1001,Children and Young People,CYP,Third Party Payments,EGA,16/11/2015,10-16133,7061.34,Acorn Fostering Services Ltd,,,,,,,,
Nottinghamshire County Council,1111/1001,Children and Young People,CYP,Third Party Payments,EGA,16/11/2015,10-16137,4059.39,Acorn Fostering Services Ltd,,,,,,,,
Nottinghamshire County Council,1111/1001,Children and Young People,CYP,Third Party Payments,EGA,16/11/2015,10-16141,9631.65,East Midlands Care Matters,,,,,,,,
Nottinghamshire County Council,1111/1001,Children and Young People,CYP,Third Party Payments,EGA,16/11/2015,10-16155,6465.71,Safe Haven Accommodation Ltd,,,,,,,,
Nottinghamshire County Council,1111/1001,Children and Young People,CYP,Third Party Payments,EGA,16/11/2015,10-16168,105271.45,Esland North Ltd,,,,,,,,
Nottinghamshire County Council,1111/1001,Children and Young People,CYP,Third Party Payments,EGA,17/11/2015,10-15276,15032.47,Carnarvon Pre-School,,,,,,,,
Nottinghamshire County Council,1111/1001,Children and Young People,CYP,Third Party Payments,EGA,17/11/2015,10-15287,13496.33,Fun Farm Day Nursery,,,,,,,,
Nottinghamshire County Council,1111/1001,Children and Young People,CYP,Third Party Payments,EGA,17/11/2015,10-15288,6773.26,North Leverton Pre-School Playgroup,,,,,,,,
Nottinghamshire County Council,1111/1001,Children and Young People,CYP,Third Party Payments,EGA,17/11/2015,10-15290,15289.47,Leos Childrens Nurseries Ltd,,,,,,,,
Nottinghamshire County Council,1111/1001,Children and Young People,CYP,Third Party Payments,EGA,17/11/2015,10-15291,13537.81,Leen Mills Pre School Playgroup,,,,,,,,
Nottinghamshire County Council,1111/1001,Children and Young People,CYP,Third Party Payments,EGA,17/11/2015,10-15292,14386.93,Learning Ladder Childcare Ltd,,,,,,,,
Nottinghamshire County Council,1111/1001,Children and Young People,CYP,Third Party Payments,EGA,17/11/2015,10-15293,8572.48,Lambley Day Nursery Ltd,,,,,,,,
Nottinghamshire County Council,1111/1001,Children and Young People,CYP,Third Party Payments,EGA,17/11/2015,10-15294,3979.61,Kneesall Pre School & Playgroup,,,,,,,,
Nottinghamshire County Council,1111/1001,Children and Young People,CYP,Third Party Payments,EGA,17/11/2015,10-15295,1631.85,Kingfisher Day Nursery,,,,,,,,
Nottinghamshire County Council,1111/1001,Children and Young People,CYP,Third Party Payments,EGA,17/11/2015,10-15296,16612.51,Killisick Pre-School,,,,,,,,
Nottinghamshire County Council,1111/1001,Children and Young People,CYP,Third Party Payments,EGA,17/11/2015,10-15297,8924.46,Kidzgrove,,,,,,,,
Nottinghamshire County Council,1111/1001,Children and Young People,CYP,Third Party Payments,EGA,17/11/2015,10-15298,1407.00,Jubilee House Christian School,,,,,,,,
Nottinghamshire County Council,1111/1001,Children and Young People,CYP,Third Party Payments,EGA,17/11/2015,10-15299,2458.47,[Redacted],,,,,,,,
Nottinghamshire County Council,1111/1001,Children and Young People,CYP,Third Party Payments,EGA,17/11/2015,10-15300,5331.48,Jesters Childcare Ltd,,,,,,,,
Nottinghamshire County Council,1111/1001,Children and Young People,CYP,Third Party Payments,EGA,17/11/2015,10-15301,1871.73,Jelly Totz Day Nursery,,,,,,,,
Nottinghamshire County Council,1111/1001,Children and Young People,CYP,Third Party Payments,EGA,17/11/2015,10-15302,10339.82,Hucknall Pre-School Playgroup,,,,,,,,
Nottinghamshire County Council,1111/1001,Children and Young People,CYP,Third Party Payments,EGA,17/11/2015,10-15303,12528.74,Hucknall Day Nursery,,,,,,,,
Nottinghamshire County Council,1111/1001,Children and Young People,CYP,Third Party Payments,EGA,17/11/2015,10-15304,2615.90,Horsendale Playgroup,,,,,,,,
Nottinghamshire County Council,1111/1001,Children and Young People,CYP,Third Party Payments,EGA,17/11/2015,10-15305,6686.31,Quinton Day Nurseries T/A Honey Bee,,,,,,,,
Nottinghamshire County Council,1111/1001,Children and Young People,CYP,Third Party Payments,EGA,17/11/2015,10-15306,3656.38,SPBC Day Care Ltd,,,,,,,,
Nottinghamshire County Council,1111/1001,Children and Young People,CYP,Third Party Payments,EGA,17/11/2015,10-15307,18385.92,Highfields School & Nursery,,,,,,,,
Nottinghamshire County Council,1111/1001,Children and Young People,CYP,Third Party Payments,EGA,17/11/2015,10-15308,4100.81,Hickory House Day Nursery,,,,,,,,
Nottinghamshire County Council,1111/1001,Children and Young People,CYP,Third Party Payments,EGA,17/11/2015,10-15309,1267.93,Hermitage Pre-School,,,,,,,,
Nottinghamshire County Council,1111/1001,Children and Young People,CYP,Third Party Payments,EGA,17/11/2015,10-15310,687.15,Happy Munchkin Childcare,,,,,,,,
Nottinghamshire County Council,1111/1001,Children and Young People,CYP,Third Party Payments,EGA,17/11/2015,10-15311,2756.23,Yew Tree Childcare,,,,,,,,
Nottinghamshire County Council,1111/1001,Children and Young People,CYP,Third Party Payments,EGA,17/11/2015,10-15312,890.75,Jelly Beans Childcare,,,,,,,,
Nottinghamshire County Council,1111/1001,Children and Young People,CYP,Third Party Payments,EGA,17/11/2015,10-15313,5356.83,Kimberley Pre-School Playgroup,,,,,,,,
Nottinghamshire County Council,1111/1001,Children and Young People,CYP,Third Party Payments,EGA,17/11/2015,10-15314,11463.55,Discovery Day Nursery,,,,,,,,
Nottinghamshire County Council,1111/1001,Children and Young People,CYP,Third Party Payments,EGA,17/11/2015,10-15315,8634.78,Balderton Village Day Nursery,,,,,,,,
Nottinghamshire County Council,1111/1001,Children and Young People,CYP,Third Party Payments,EGA,17/11/2015,10-15316,2241.57,Blyth Pre-School Playgroup,,,,,,,,
Nottinghamshire County Council,1111/1001,Children and Young People,CYP,Third Party Payments,EGA,17/11/2015,10-15317,4851.69,Rushcliffe Pre-School (Nottingham),,,,,,,,
Nottinghamshire County Council,1111/1001,Children and Young People,CYP,Third Party Payments,EGA,17/11/2015,10-15318,18556.40,Oceans Day Nursery,,,,,,,,
Nottinghamshire County Council,1111/1001,Children and Young People,CYP,Third Party Payments,EGA,17/11/2015,10-15319,2165.29,Luan's Little People,,,,,,,,
Nottinghamshire County Council,1111/1001,Children and Young People,CYP,Third Party Payments,EGA,17/11/2015,10-15320,4018.34,Leahurst Road Pre-School,,,,,,,,
Nottinghamshire County Council,1111/1001,Children and Young People,CYP,Third Party Payments,EGA,17/11/2015,10-15321,5303.69,Granby House Nursery,,,,,,,,
Nottinghamshire County Council,1111/1001,Children and Young People,CYP,Third Party Payments,EGA,17/11/2015,10-15322,24215.10,Cranmer Pre-School,,,,,,,,
Nottinghamshire County Council,1111/1001,Children and Young People,CYP,Third Party Payments,EGA,17/11/2015,10-15323,13623.00,Cherubs Day Nursery,,,,,,,,
Nottinghamshire County Council,1111/1001,Children and Young People,CYP,Third Party Payments,EGA,17/11/2015,10-15324,3144.88,Carousel Under 5'S Playgroup,,,,,,,,
Nottinghamshire County Council,1111/1001,Children and Young People,CYP,Third Party Payments,EGA,17/11/2015,10-15325,25855.56,Wollaton Village Day Nurseries Ltd.,,,,,,,,
Nottinghamshire County Council,1111/1001,Children and Young People,CYP,Third Party Payments,EGA,17/11/2015,10-15326,32914.70,Buttercross Pre School,,,,,,,,
Nottinghamshire County Council,1111/1001,Children and Young People,CYP,Third Party Payments,EGA,17/11/2015,10-15327,2573.79,Crossdale Busy Bees Pre-School,,,,,,,,
Nottinghamshire County Council,1111/1001,Children and Young People,CYP,Third Party Payments,EGA,17/11/2015,10-15328,3775.52,Brooklyn Day Nursery,,,,,,,,
Nottinghamshire County Council,1111/1001,Children and Young People,CYP,Third Party Payments,EGA,17/11/2015,10-15329,2576.22,Pretty Windows Ltd,,,,,,,,
Nottinghamshire County Council,1111/1001,Children and Young People,CYP,Third Party Payments,EGA,17/11/2015,10-15330,6734.66,Bingham Day Nursery & Pre School,,,,,,,,
Nottinghamshire County Council,1111/1001,Children and Young People,CYP,Third Party Payments,EGA,17/11/2015,10-15331,5232.93,Beeston Nursery,,,,,,,,
Nottinghamshire County Council,1111/1001,Children and Young People,CYP,Third Party Payments,EGA,17/11/2015,10-15332,12249.30,All Aboard Day Nursery,,,,,,,,
Nottinghamshire County Council,1111/1001,Children and Young People,CYP,Third Party Payments,EGA,17/11/2015,10-16176,13500.00,Jani Homes Ltd,,,,,,,,
Nottinghamshire County Council,1111/1001,Children and Young People,CYP,Third Party Payments,EGA,17/11/2015,10-16177,598.97,Nottinghamshire Womens Aid Ltd,,,,,,,,
Nottinghamshire County Council,1111/1001,Children and Young People,CYP,Third Party Payments,EGA,18/11/2015,10-16190,760.00,Teen Support Services Ltd,,,,,,,,
Nottinghamshire County Council,1111/1001,Children and Young People,CYP,Third Party Payments,EGA,18/11/2015,10-16191,960.00,Teen Support Services Ltd,,,,,,,,
Nottinghamshire County Council,1111/1001,Children and Young People,CYP,Third Party Payments,EGA,18/11/2015,10-16193,9448.18,Regional Foster Placements Ltd,,,,,,,,
Nottinghamshire County Council,1111/1001,Children and Young People,CYP,Third Party Payments,EGA,18/11/2015,10-16194,3652.48,Regional Foster Placements Ltd,,,,,,,,
Nottinghamshire County Council,1111/1001,Children and Young People,CYP,Third Party Payments,EGA,18/11/2015,10-16230,3503.00,Parallel Parents,,,,,,,,
Nottinghamshire County Council,1111/1001,Children and Young People,CYP,Third Party Payments,EGA,19/11/2015,10-15455,6211.26,Young Rascals Day Nursery,,,,,,,,
Nottinghamshire County Council,1111/1001,Children and Young People,CYP,Third Party Payments,EGA,19/11/2015,10-15456,13534.84,Woodthorpe Day Nursery Ltd,,,,,,,,
Nottinghamshire County Council,1111/1001,Children and Young People,CYP,Third Party Payments,EGA,19/11/2015,10-15457,5283.51,Woodborough Village Pre School,,,,,,,,
Nottinghamshire County Council,1111/1001,Children and Young People,CYP,Third Party Payments,EGA,19/11/2015,10-15458,4194.75,Wollaton Village Day Nurseries,,,,,,,,
Nottinghamshire County Council,1111/1001,Children and Young People,CYP,Third Party Payments,EGA,19/11/2015,10-15459,4069.06,Rushcliffe Pre-School (Nottingham),,,,,,,,
Nottinghamshire County Council,1111/1001,Children and Young People,CYP,Third Party Payments,EGA,19/11/2015,10-15460,10506.27,Wishing Well Day Nursery,,,,,,,,
Nottinghamshire County Council,1111/1001,Children and Young People,CYP,Third Party Payments,EGA,19/11/2015,10-15461,5011.46,Windmill Kindergarten Playgroup,,,,,,,,
Nottinghamshire County Council,1111/1001,Children and Young People,CYP,Third Party Payments,EGA,19/11/2015,10-15462,511.42,Willow Brook Pre-School,,,,,,,,
Nottinghamshire County Council,1111/1001,Children and Young People,CYP,Third Party Payments,EGA,19/11/2015,10-15463,4853.52,Mulberry Bush Day Nursery,,,,,,,,
Nottinghamshire County Council,1111/1001,Children and Young People,CYP,Third Party Payments,EGA,19/11/2015,10-15464,12969.18,Whitehouse Day Nursery,,,,,,,,
Nottinghamshire County Council,1111/1001,Children and Young People,CYP,Third Party Payments,EGA,19/11/2015,10-15465,11012.50,Westdale Pre-School,,,,,,,,
Nottinghamshire County Council,1111/1001,Children and Young People,CYP,Third Party Payments,EGA,19/11/2015,10-15466,13950.78,Weaverthorpe Pre-School Playgroup,,,,,,,,
Nottinghamshire County Council,1111/1001,Children and Young People,CYP,Third Party Payments,EGA,19/11/2015,10-15467,4505.34,Wolds Childcare Ltd,,,,,,,,
Nottinghamshire County Council,1111/1001,Children and Young People,CYP,Third Party Payments,EGA,19/11/2015,10-15469,5366.30,The Lime Trees,,,,,,,,
Nottinghamshire County Council,1111/1001,Children and Young People,CYP,Third Party Payments,EGA,19/11/2015,10-15470,6580.60,The Lime Trees,,,,,,,,
Nottinghamshire County Council,1111/1001,Children and Young People,CYP,Third Party Payments,EGA,19/11/2015,10-15471,8551.20,The Lime Trees,,,,,,,,
Nottinghamshire County Council,1111/1001,Children and Young People,CYP,Third Party Payments,EGA,19/11/2015,10-15472,19197.73,The Learning Tree Day Nursery 2,,,,,,,,
Nottinghamshire County Council,1111/1001,Children and Young People,CYP,Third Party Payments,EGA,19/11/2015,10-15473,34702.23,The Learning Tree Nursery,,,,,,,,
Nottinghamshire County Council,1111/1001,Children and Young People,CYP,Third Party Payments,EGA,19/11/2015,10-15474,3920.71,Shaping Futures Day Nursery,,,,,,,,
Nottinghamshire County Council,1111/1001,Children and Young People,CYP,Third Party Payments,EGA,19/11/2015,10-15475,12568.20,Serendipity's Day Nursery,,,,,,,,
Nottinghamshire County Council,1111/1001,Children and Young People,CYP,Third Party Payments,EGA,19/11/2015,10-15476,7222.74,Rainbow Day Nursery,,,,,,,,
Nottinghamshire County Council,1111/1001,Children and Young People,CYP,Third Party Payments,EGA,19/11/2015,10-15477,6712.65,Radcliffe On Trent Pre School Playg,,,,,,,,
Nottinghamshire County Council,1111/1001,Children and Young People,CYP,Third Party Payments,EGA,19/11/2015,10-15478,12423.80,Radcliffe On Trent Day Nursery,,,,,,,,
Nottinghamshire County Council,1111/1001,Children and Young People,CYP,Third Party Payments,EGA,19/11/2015,10-15480,9887.86,Papplewick Pre-School Playgroup,,,,,,,,
Nottinghamshire County Council,1111/1001,Children and Young People,CYP,Third Party Payments,EGA,19/11/2015,10-15481,5888.40,Papermoon Day Nursery,,,,,,,,
Nottinghamshire County Council,1111/1001,Children and Young People,CYP,Third Party Payments,EGA,19/11/2015,10-15482,5620.29,Ordsall Pre-School,,,,,,,,
Nottinghamshire County Council,1111/1001,Children and Young People,CYP,Third Party Payments,EGA,19/11/2015,10-15483,10647.17,Homestead Day Nursery Ltd,,,,,,,,
Nottinghamshire County Council,1111/1001,Children and Young People,CYP,Third Party Payments,EGA,19/11/2015,10-15484,2962.70,Honey Pot Day Private Day Nursery L,,,,,,,,
Nottinghamshire County Council,1111/1001,Children and Young People,CYP,Third Party Payments,EGA,19/11/2015,10-15485,803.20,Jo's Childminding Services,,,,,,,,
Nottinghamshire County Council,1111/1001,Children and Young People,CYP,Third Party Payments,EGA,19/11/2015,10-15486,6199.07,Lady Bay Pre School Playgroup,,,,,,,,
Nottinghamshire County Council,1111/1001,Children and Young People,CYP,Third Party Payments,EGA,19/11/2015,10-15487,7900.50,Leo's Childrens Nurseries Ltd,,,,,,,,
Nottinghamshire County Council,1111/1001,Children and Young People,CYP,Third Party Payments,EGA,19/11/2015,10-15488,9963.06,Little Acorns Pre-School,,,,,,,,
Nottinghamshire County Council,1111/1001,Children and Young People,CYP,Third Party Payments,EGA,19/11/2015,10-15489,19632.40,Little Bears Day Nursery,,,,,,,,
Nottinghamshire County Council,1111/1001,Children and Young People,CYP,Third Party Payments,EGA,19/11/2015,10-15490,3928.18,Little Kites Playgroup,,,,,,,,
Nottinghamshire County Council,1111/1001,Children and Young People,CYP,Third Party Payments,EGA,19/11/2015,10-15491,12318.12,Little Oaks Nursery,,,,,,,,
Nottinghamshire County Council,1111/1001,Children and Young People,CYP,Third Party Payments,EGA,19/11/2015,10-15492,6311.22,Lowater Street Playgroup,,,,,,,,
Nottinghamshire County Council,1111/1001,Children and Young People,CYP,Third Party Payments,EGA,19/11/2015,10-15493,9418.72,Lowdham & Epperstone Pre-School,,,,,,,,
Nottinghamshire County Council,1111/1001,Children and Young People,CYP,Third Party Payments,EGA,19/11/2015,10-15494,1387.16,PSLA Newstead Childcare,,,,,,,,
Nottinghamshire County Council,1111/1001,Children and Young People,CYP,Third Party Payments,EGA,19/11/2015,10-15495,4458.84,PSLA Newstead Childcare,,,,,,,,
Nottinghamshire County Council,1111/1001,Children and Young People,CYP,Third Party Payments,EGA,19/11/2015,10-15496,13363.50,PSLA Newstead Childcare,,,,,,,,
Nottinghamshire County Council,1111/1001,Children and Young People,CYP,Third Party Payments,EGA,19/11/2015,10-15497,34989.36,Shaping Futures Day Nursery,,,,,,,,
Nottinghamshire County Council,1111/1001,Children and Young People,CYP,Third Party Payments,EGA,19/11/2015,10-15498,9183.34,Staunton Montessori Nursery School,,,,,,,,
Nottinghamshire County Council,1111/1001,Children and Young People,CYP,Third Party Payments,EGA,19/11/2015,10-15499,5184.98,St Giles Pre-school,,,,,,,,
Nottinghamshire County Council,1111/1001,Children and Young People,CYP,Third Party Payments,EGA,19/11/2015,10-15500,4482.96,Sutton Bonington Playgroup,,,,,,,,
Nottinghamshire County Council,1111/1001,Children and Young People,CYP,Third Party Payments,EGA,19/11/2015,10-15501,28227.15,Sutton Centre Under 5'S Playgroup,,,,,,,,
Nottinghamshire County Council,1111/1001,Children and Young People,CYP,Third Party Payments,EGA,19/11/2015,10-15502,6464.01,The Enchanted Garden Day Nursery,,,,,,,,
Nottinghamshire County Council,1111/1001,Children and Young People,CYP,Third Party Payments,EGA,19/11/2015,10-15503,10702.95,Church House Day Nursery,,,,,,,,
Nottinghamshire County Council,1111/1001,Children and Young People,CYP,Third Party Payments,EGA,19/11/2015,10-15504,6304.69,Duncroft Day Nursery,,,,,,,,
Nottinghamshire County Council,1111/1001,Children and Young People,CYP,Third Party Payments,EGA,19/11/2015,10-15505,7514.12,East Leake Day Nursery & Pre-School,,,,,,,,
Nottinghamshire County Council,1111/1001,Children and Young People,CYP,Third Party Payments,EGA,19/11/2015,10-15506,6313.19,Farnsfield Pre-School,,,,,,,,
Nottinghamshire County Council,1111/1001,Children and Young People,CYP,Third Party Payments,EGA,19/11/2015,10-15507,12096.59,Good Foundations Day Nursery,,,,,,,,
Nottinghamshire County Council,1111/1001,Children and Young People,CYP,Third Party Payments,EGA,19/11/2015,10-15508,6548.74,Good Shepherd Pre-School,,,,,,,,
Nottinghamshire County Council,1111/1001,Children and Young People,CYP,Third Party Payments,EGA,19/11/2015,10-15509,7460.51,Haywood Road Pre-School Playgroup,,,,,,,,
Nottinghamshire County Council,1111/1001,Children and Young People,CYP,Third Party Payments,EGA,19/11/2015,10-15510,7138.87,Hazel Hurst School,,,,,,,,
Nottinghamshire County Council,1111/1001,Children and Young People,CYP,Third Party Payments,EGA,19/11/2015,10-15511,5800.57,Hollies Day Nurseries Limited,,,,,,,,
Nottinghamshire County Council,1111/1001,Children and Young People,CYP,Third Party Payments,EGA,19/11/2015,10-15512,3435.20,Hollies Day Nurseries,,,,,,,,
Nottinghamshire County Council,1111/1001,Children and Young People,CYP,Third Party Payments,EGA,19/11/2015,10-15513,18511.92,Alphabet House Nursery,,,,,,,,
Nottinghamshire County Council,1111/1001,Children and Young People,CYP,Third Party Payments,EGA,19/11/2015,10-15514,20654.65,Applegarth Day Nurseries Ltd,,,,,,,,
Nottinghamshire County Council,1111/1001,Children and Young People,CYP,Third Party Payments,EGA,19/11/2015,10-15515,10198.02,Arnold View Pre-School,,,,,,,,
Nottinghamshire County Council,1111/1001,Children and Young People,CYP,Third Party Payments,EGA,19/11/2015,10-15516,13835.37,Balderton Pre-School,,,,,,,,
Nottinghamshire County Council,1111/1001,Children and Young People,CYP,Third Party Payments,EGA,19/11/2015,10-15517,7323.96,Bramcote Pre-School Playgroup,,,,,,,,
Nottinghamshire County Council,1111/1001,Children and Young People,CYP,Third Party Payments,EGA,19/11/2015,10-15518,6460.71,Childrens Corner Day Nursery,,,,,,,,
Nottinghamshire County Council,1111/1001,Children and Young People,CYP,Third Party Payments,EGA,19/11/2015,10-15519,6838.65,Children 1st @ Newark Centre,,,,,,,,
Nottinghamshire County Council,1111/1001,Children and Young People,CYP,Third Party Payments,EGA,19/11/2015,10-15520,9826.81,Children 1st @ Breedon House,,,,,,,,
Nottinghamshire County Council,1111/1001,Children and Young People,CYP,Third Party Payments,EGA,19/11/2015,10-15521,11634.27,Cared 4 Ltd T/A Brookhill House Day,,,,,,,,
Nottinghamshire County Council,1111/1001,Children and Young People,CYP,Third Party Payments,EGA,19/11/2015,10-15522,16932.67,Breedon House Nurseries Ltd,,,,,,,,
Nottinghamshire County Council,1111/1001,Children and Young People,CYP,Third Party Payments,EGA,19/11/2015,10-16281,20885.28,Anglia Fostering Agency Ltd,,,,,,,,
Nottinghamshire County Council,1111/1001,Children and Young People,CYP,Third Party Payments,EGA,19/11/2015,10-16282,30501.83,Compass Fostering Central Ltd,,,,,,,,
Nottinghamshire County Council,1111/1001,Children and Young People,CYP,Third Party Payments,EGA,19/11/2015,10-16301,3100.00,Piers (UK) Ltd,,,,,,,,
Nottinghamshire County Council,1111/1001,Children and Young People,CYP,Third Party Payments,EGA,19/11/2015,10-16302,3100.00,Piers (UK) Ltd,,,,,,,,
Nottinghamshire County Council,1111/1001,Children and Young People,CYP,Third Party Payments,EGA,19/11/2015,10-16308,136580.57,Fostering People Ltd,,,,,,,,
Nottinghamshire County Council,1111/1001,Children and Young People,CYP,Third Party Payments,EGA,20/11/2015,10-15543,5036.64,PSLA Newstead Childcare,,,,,,,,
Nottinghamshire County Council,1111/1001,Children and Young People,CYP,Third Party Payments,EGA,20/11/2015,10-15544,568.37,[Redacted],,,,,,,,
Nottinghamshire County Council,1111/1001,Children and Young People,CYP,Third Party Payments,EGA,20/11/2015,10-15545,18753.77,The Orchard Day Nursery,,,,,,,,
Nottinghamshire County Council,1111/1001,Children and Young People,CYP,Third Party Payments,EGA,20/11/2015,10-16355,9178.52,Sunbeam Fostering Agency Ltd,,,,,,,,
Nottinghamshire County Council,1111/1001,Children and Young People,CYP,Third Party Payments,EGA,20/11/2015,10-16356,8694.13,Sunbeam Fostering Agency Ltd,,,,,,,,
Nottinghamshire County Council,1111/1001,Children and Young People,CYP,Third Party Payments,EGA,23/11/2015,10-15104,7482.30,Townrow Tiny Tots Ltd,,,,,,,,
Nottinghamshire County Council,1111/1001,Children and Young People,CYP,Third Party Payments,EGA,23/11/2015,10-15468,4336.68,Townrow Tiny Tots Ltd,,,,,,,,
Nottinghamshire County Council,1111/1001,Children and Young People,CYP,Third Party Payments,EGA,23/11/2015,10-16383,43348.45,Fostering Solutions Ltd,,,,,,,,
Nottinghamshire County Council,1111/1001,Children and Young People,CYP,Third Party Payments,EGA,23/11/2015,10-16384,39402.17,Fostering Solutions Ltd,,,,,,,,
Nottinghamshire County Council,1111/1001,Children and Young People,CYP,Third Party Payments,EGA,24/11/2015,10-16402,3169.53,Capstone Foster Care Ltd,,,,,,,,
Nottinghamshire County Council,1111/1001,Children and Young People,CYP,Third Party Payments,EGA,25/11/2015,10-16414,4694.40,Sankofa Care Ltd,,,,,,,,
Nottinghamshire County Council,1111/1001,Children and Young People,CYP,Third Party Payments,EGA,25/11/2015,10-16456,1621.75,Sensory Learning & Play CIC,,,,,,,,
Nottinghamshire County Council,1111/1001,Children and Young People,CYP,Third Party Payments,EGA,25/11/2015,10-16458,1506.00,A Place To Call Our Own Ltd,,,,,,,,
Nottinghamshire County Council,1111/1001,Children and Young People,CYP,Third Party Payments,EGA,25/11/2015,10-16462,585.00,A Place To Call Our Own Ltd,,,,,,,,
Nottinghamshire County Council,1111/1001,Children and Young People,CYP,Third Party Payments,EGA,25/11/2015,10-16464,1986.00,A Place To Call Our Own Ltd,,,,,,,,
Nottinghamshire County Council,1111/1001,Children and Young People,CYP,Third Party Payments,EGA,25/11/2015,10-16476,1453.48,Sensory Learning & Play CIC,,,,,,,,
Nottinghamshire County Council,1111/1001,Children and Young People,CYP,Third Party Payments,EGA,26/11/2015,10-16507,15500.00,Independent Childcare Group Of Schs,,,,,,,,
Nottinghamshire County Council,1111/1001,Children and Young People,CYP,Third Party Payments,EGA,26/11/2015,10-16508,19418.44,Independent Childcare Group Of Schs,,,,,,,,
Nottinghamshire County Council,1111/1001,Children and Young People,CYP,Third Party Payments,EGA,26/11/2015,10-16509,8058.00,Progressive Care,,,,,,,,
Nottinghamshire County Council,1111/1001,Children and Young People,CYP,Third Party Payments,EGA,27/11/2015,10-16389,3275.18,Capstone Foster Care Ltd,,,,,,,,
Nottinghamshire County Council,1111/1001,Children and Young People,CYP,Third Party Payments,EGA,27/11/2015,10-16390,15354.71,Capstone Foster Care Ltd,,,,,,,,
Nottinghamshire County Council,1111/1001,Children and Young People,CYP,Third Party Payments,EGA,27/11/2015,10-16398,13597.57,Barnardos Family Placement Unit,,,,,,,,
Nottinghamshire County Council,1111/1001,Children and Young People,CYP,Third Party Payments,EGA,27/11/2015,10-16461,7040.00,Safe Haven Accommodation Ltd,,,,,,,,
Nottinghamshire County Council,1111/1001,Children and Young People,CYP,Third Party Payments,EGA,27/11/2015,10-16496,2048.00,Newark Emmaus Trust,,,,,,,,
Nottinghamshire County Council,1111/1001,Children and Young People,CYP,Third Party Payments,EGA,27/11/2015,10-16501,30193.80,Fosterplus Ltd,,,,,,,,
Nottinghamshire County Council,1111/1001,Children and Young People,CYP,Third Party Payments,EGA,27/11/2015,10-16502,3481.92,The National Fostering Agency,,,,,,,,
Nottinghamshire County Council,1111/1001,Children and Young People,CYP,Third Party Payments,EGA,27/11/2015,10-16503,3369.60,The National Fostering Agency,,,,,,,,
Nottinghamshire County Council,1111/1001,Children and Young People,CYP,Third Party Payments,EGA,27/11/2015,10-16504,15290.75,Carefirst Services,,,,,,,,
Nottinghamshire County Council,1111/1001,Children and Young People,CYP,Third Party Payments,EGA,27/11/2015,10-16505,15250.00,Carefirst Services,,,,,,,,
Nottinghamshire County Council,1111/1001,Children and Young People,CYP,Third Party Payments,EGA,27/11/2015,10-16510,1212.96,Framework Housing Association,,,,,,,,
Nottinghamshire County Council,1111/1001,Children and Young People,CYP,Third Party Payments,EGA,27/11/2015,10-16511,2368.16,Framework Housing Association,,,,,,,,
Nottinghamshire County Council,1111/1001,Children and Young People,CYP,Third Party Payments,EGA,27/11/2015,10-16518,6906.71,Progressive Care,,,,,,,,
Nottinghamshire County Council,1111/1001,Children and Young People,CYP,Third Party Payments,EGA,27/11/2015,10-16521,1550.00,Carefirst Services,,,,,,,,
Nottinghamshire County Council,1111/1001,Children and Young People,CYP,Third Party Payments,EGA,27/11/2015,10-16523,1492.68,Framework Housing Association,,,,,,,,
Nottinghamshire County Council,1111/1001,Children and Young People,CYP,Third Party Payments,EGA,27/11/2015,10-16524,995.15,Framework Housing Association,,,,,,,,
Nottinghamshire County Council,1111/1001,Children and Young People,CYP,Third Party Payments,EGA,27/11/2015,10-16525,1294.80,Framework Housing Association,,,,,,,,
Nottinghamshire County Council,1111/1001,Children and Young People,CYP,Third Party Payments,EGA,27/11/2015,10-16528,575.56,Progressive Care,,,,,,,,
Nottinghamshire County Council,1111/1001,Children and Young People,CYP,Third Party Payments,EGA,27/11/2015,10-16534,1393.56,Framework Housing Association,,,,,,,,
Nottinghamshire County Council,1111/1001,Children and Young People,CYP,Third Party Payments,EGA,27/11/2015,10-16535,44643.01,Teen Support Services Ltd,,,,,,,,
Nottinghamshire County Council,1111/1001,Children and Young People,CYP,Third Party Payments,EGA,27/11/2015,10-16563,7500.00,Piers (UK) Ltd,,,,,,,,
Nottinghamshire County Council,1111/1001,Children and Young People,CYP,Third Party Payments,EGA,30/11/2015,10-16153,39812.68,Absolute Children�s Services Ltd,,,,,,,,
Nottinghamshire County Council,1111/1001,Children and Young People,CYP,Third Party Payments,EGA,30/11/2015,10-16160,5316.50,TACT,,,,,,,,
Nottinghamshire County Council,1111/1001,Children and Young People,CYP,Third Party Payments,EGA,30/11/2015,10-16378,12377.79,Sunbeam Fostering Agency Ltd,,,,,,,,
Nottinghamshire County Council,1111/1001,Children and Young People,CYP,Third Party Payments,EGA,30/11/2015,10-16388,1090.63,Nottingham Mencap,,,,,,,,
Nottinghamshire County Council,1111/1001,Children and Young People,CYP,Third Party Payments,EGA,30/11/2015,10-16396,1068.38,Nottingham Mencap,,,,,,,,
Nottinghamshire County Council,1111/1001,Children and Young People,CYP,Third Party Payments,EGA,30/11/2015,10-16399,2914.00,Keys 16Plus Independent Living Serv,,,,,,,,
Nottinghamshire County Council,1111/1001,Children and Young People,CYP,Third Party Payments,EGA,30/11/2015,10-16400,1551.38,Nottingham Mencap,,,,,,,,
Nottinghamshire County Council,1111/1001,Children and Young People,CYP,Third Party Payments,EHA,18/11/2015,10-16246,2250.00,Coram Adoption East Midlands,,,,,,,,
Nottinghamshire County Council,1111/1001,Children and Young People,CYP,Third Party Payments,EHA,18/11/2015,10-16252,9000.00,St Francis' Children's Society,,,,,,,,
Nottinghamshire County Council,1111/1001,Children and Young People,CYP,Support Services,HAA,05/11/2015,10-13341,1965.03,Arnold Acorn Travel,,,,,,,,
Nottinghamshire County Council,1111/1001,Children and Young People,CYP,Support Services,HAA,05/11/2015,10-13351,1326.51,F & J Marriott T/A Unity Coaches,,,,,,,,
Nottinghamshire County Council,1111/1001,Children and Young People,CYP,Support Services,HAA,05/11/2015,10-13352,2064.00,F & J Marriott T/A Unity Coaches,,,,,,,,
Nottinghamshire County Council,1111/1001,Children and Young People,CYP,Support Services,HAA,05/11/2015,10-13353,1366.50,F & J Marriott T/A Unity Coaches,,,,,,,,
Nottinghamshire County Council,1111/1001,Children and Young People,CYP,Support Services,HAA,05/11/2015,10-13360,1598.68,F & J Marriott T/A Unity Coaches,,,,,,,,
Nottinghamshire County Council,1111/1001,Children and Young People,CYP,Support Services,HAA,05/11/2015,10-13376,2720.00,AOT Coaches,,,,,,,,
Nottinghamshire County Council,1111/1001,Children and Young People,CYP,Support Services,HAA,05/11/2015,10-13377,2720.00,AOT Coaches,,,,,,,,
Nottinghamshire County Council,1111/1001,Children and Young People,CYP,Support Services,HAA,05/11/2015,10-13378,2227.00,AOT Coaches,,,,,,,,
Nottinghamshire County Council,1111/1001,Children and Young People,CYP,Support Services,HAA,05/11/2015,10-13379,2261.00,AOT Coaches,,,,,,,,
Nottinghamshire County Council,1111/1001,Children and Young People,CYP,Support Services,HAA,05/11/2015,10-13380,1928.00,AOT Coaches,,,,,,,,
Nottinghamshire County Council,1111/1001,Children and Young People,CYP,Support Services,HAA,05/11/2015,10-13381,1020.00,K & R Cars,,,,,,,,
Nottinghamshire County Council,1111/1001,Children and Young People,CYP,Support Services,HAA,05/11/2015,10-13387,2550.00,Nottingham Minibuses & Coaches,,,,,,,,
Nottinghamshire County Council,1111/1001,Children and Young People,CYP,Support Services,HAA,05/11/2015,10-13390,1645.60,Nottingham Minibuses & Coaches,,,,,,,,
Nottinghamshire County Council,1111/1001,Children and Young People,CYP,Support Services,HAA,05/11/2015,10-13391,11140.10,Travel Wright Ltd,,,,,,,,
Nottinghamshire County Council,1111/1001,Children and Young People,CYP,Support Services,HAA,05/11/2015,10-13393,3031.84,Travel Wright Ltd,,,,,,,,
Nottinghamshire County Council,1111/1001,Children and Young People,CYP,Support Services,HAA,05/11/2015,10-13395,3042.15,Travel Wright Ltd,,,,,,,,
Nottinghamshire County Council,1111/1001,Children and Young People,CYP,Support Services,HAA,05/11/2015,10-13396,4935.93,Travel Wright Ltd,,,,,,,,
Nottinghamshire County Council,1111/1001,Children and Young People,CYP,Support Services,HAA,05/11/2015,10-13398,1555.49,Travel Wright Ltd,,,,,,,,
Nottinghamshire County Council,1111/1001,Children and Young People,CYP,Support Services,HAA,05/11/2015,10-13400,2661.59,Travel Wright Ltd,,,,,,,,
Nottinghamshire County Council,1111/1001,Children and Young People,CYP,Support Services,HAA,05/11/2015,10-13402,2559.20,Travel Wright Ltd,,,,,,,,
Nottinghamshire County Council,1111/1001,Children and Young People,CYP,Support Services,HAA,05/11/2015,10-13403,2005.89,Travel Wright Ltd,,,,,,,,
Nottinghamshire County Council,1111/1001,Children and Young People,CYP,Support Services,HAA,05/11/2015,10-13407,6741.80,Freeway Coaches Ltd,,,,,,,,
Nottinghamshire County Council,1111/1001,Children and Young People,CYP,Support Services,HAA,05/11/2015,10-13408,2483.06,Freeway Coaches Ltd,,,,,,,,
Nottinghamshire County Council,1111/1001,Children and Young People,CYP,Support Services,HAA,05/11/2015,10-13409,2080.80,Freeway Coaches Ltd,,,,,,,,
Nottinghamshire County Council,1111/1001,Children and Young People,CYP,Support Services,HAA,05/11/2015,10-13410,1351.90,Freeway Coaches Ltd,,,,,,,,
Nottinghamshire County Council,1111/1001,Children and Young People,CYP,Support Services,HAA,05/11/2015,10-13411,2000.00,Freeway Coaches Ltd,,,,,,,,
Nottinghamshire County Council,1111/1001,Children and Young People,CYP,Support Services,HAA,05/11/2015,10-13414,2014.50,Kettlewell Retford Ltd,,,,,,,,
Nottinghamshire County Council,1111/1001,Children and Young People,CYP,Support Services,HAA,05/11/2015,10-13415,2550.00,Kettlewell Retford Ltd,,,,,,,,
Nottinghamshire County Council,1111/1001,Children and Young People,CYP,Support Services,HAA,05/11/2015,10-13416,2082.50,Kettlewell Retford Ltd,,,,,,,,
Nottinghamshire County Council,1111/1001,Children and Young People,CYP,Support Services,HAA,05/11/2015,10-13417,1861.50,Kettlewell Retford Ltd,,,,,,,,
Nottinghamshire County Council,1111/1001,Children and Young People,CYP,Support Services,HAA,05/11/2015,10-13418,2711.50,Kettlewell Retford Ltd,,,,,,,,
Nottinghamshire County Council,1111/1001,Children and Young People,CYP,Support Services,HAA,05/11/2015,10-13419,2184.50,Kettlewell Retford Ltd,,,,,,,,
Nottinghamshire County Council,1111/1001,Children and Young People,CYP,Support Services,HAA,05/11/2015,10-13420,2184.50,Kettlewell Retford Ltd,,,,,,,,
Nottinghamshire County Council,1111/1001,Children and Young People,CYP,Support Services,HAA,05/11/2015,10-13421,2710.00,C W Moxon Ltd,,,,,,,,
Nottinghamshire County Council,1111/1001,Children and Young People,CYP,Support Services,HAA,05/11/2015,10-13422,5445.00,C W Moxon Ltd,,,,,,,,
Nottinghamshire County Council,1111/1001,Children and Young People,CYP,Support Services,HAA,05/11/2015,10-13423,2854.00,C W Moxon Ltd,,,,,,,,
Nottinghamshire County Council,1111/1001,Children and Young People,CYP,Support Services,HAA,05/11/2015,10-13424,2321.00,C W Moxon Ltd,,,,,,,,
Nottinghamshire County Council,1111/1001,Children and Young People,CYP,Support Services,HAA,05/11/2015,10-13425,2696.00,C W Moxon Ltd,,,,,,,,
Nottinghamshire County Council,1111/1001,Children and Young People,CYP,Support Services,HAA,05/11/2015,10-13426,1842.00,C W Moxon Ltd,,,,,,,,
Nottinghamshire County Council,1111/1001,Children and Young People,CYP,Support Services,HAA,05/11/2015,10-13449,935.00,Broadsword Cars,,,,,,,,
Nottinghamshire County Council,1111/1001,Children and Young People,CYP,Support Services,HAA,05/11/2015,10-13450,1680.00,Travel Liner,,,,,,,,
Nottinghamshire County Council,1111/1001,Children and Young People,CYP,Support Services,HAA,05/11/2015,10-13452,2363.00,Nottingham Coaches,,,,,,,,
Nottinghamshire County Council,1111/1001,Children and Young People,CYP,Support Services,HAA,05/11/2015,10-13453,1879.00,Nottingham Coaches,,,,,,,,
Nottinghamshire County Council,1111/1001,Children and Young People,CYP,Support Services,HAA,05/11/2015,10-13454,2564.00,Nottingham Coaches,,,,,,,,
Nottinghamshire County Council,1111/1001,Children and Young People,CYP,Support Services,HAA,05/11/2015,10-13455,2533.00,Nottingham Coaches,,,,,,,,
Nottinghamshire County Council,1111/1001,Children and Young People,CYP,Support Services,HAA,06/11/2015,10-13565,1445.00,All Wayz Travel,,,,,,,,
Nottinghamshire County Council,1111/1001,Children and Young People,CYP,Support Services,HAA,06/11/2015,10-13566,1190.00,All Wayz Travel,,,,,,,,
Nottinghamshire County Council,1111/1001,Children and Young People,CYP,Support Services,HAA,06/11/2015,10-13568,3939.00,Glenn Ryder Coaches,,,,,,,,
Nottinghamshire County Council,1111/1001,Children and Young People,CYP,Support Services,HAA,06/11/2015,10-13569,3548.60,Johnson Bros Tours Ltd,,,,,,,,
Nottinghamshire County Council,1111/1001,Children and Young People,CYP,Support Services,HAA,06/11/2015,10-13570,2610.65,Johnson Bros Tours Ltd,,,,,,,,
Nottinghamshire County Council,1111/1001,Children and Young People,CYP,Support Services,HAA,06/11/2015,10-13571,2958.90,Johnson Bros Tours Ltd,,,,,,,,
Nottinghamshire County Council,1111/1001,Children and Young People,CYP,Support Services,HAA,06/11/2015,10-13572,2380.00,Johnson Bros Tours Ltd,,,,,,,,
Nottinghamshire County Council,1111/1001,Children and Young People,CYP,Support Services,HAA,06/11/2015,10-13574,14450.00,Johnson Bros Tours Ltd,,,,,,,,
Nottinghamshire County Council,1111/1001,Children and Young People,CYP,Support Services,HAA,06/11/2015,10-13575,10116.95,Johnson Bros Tours Ltd,,,,,,,,
Nottinghamshire County Council,1111/1001,Children and Young People,CYP,Support Services,HAA,06/11/2015,10-13576,4798.95,Johnson Bros Tours Ltd,,,,,,,,
Nottinghamshire County Council,1111/1001,Children and Young People,CYP,Support Services,HAA,06/11/2015,10-13577,16422.90,Johnson Bros Tours Ltd,,,,,,,,
Nottinghamshire County Council,1111/1001,Children and Young People,CYP,Support Services,HAA,06/11/2015,10-13578,1200.00,Wrights Coaches,,,,,,,,
Nottinghamshire County Council,1111/1001,Children and Young People,CYP,Support Services,HAA,06/11/2015,10-13704,1142.40,Fozcabs Newark Taxis,,,,,,,,
Nottinghamshire County Council,1111/1001,Children and Young People,CYP,Support Services,HAA,06/11/2015,10-13734,1445.00,Sprays Transport Ltd,,,,,,,,
Nottinghamshire County Council,1111/1001,Children and Young People,CYP,Support Services,HAA,06/11/2015,10-13756,1020.00,Abacus Cars,,,,,,,,
Nottinghamshire County Council,1111/1001,Children and Young People,CYP,Support Services,HAA,06/11/2015,10-13763,774.00,Abacus Cars,,,,,,,,
Nottinghamshire County Council,1111/1001,Children and Young People,CYP,Support Services,HAA,06/11/2015,10-13768,1831.50,Silverdale Tours Nottm Ltd,,,,,,,,
Nottinghamshire County Council,1111/1001,Children and Young People,CYP,Support Services,HAA,06/11/2015,10-13769,2771.50,Silverdale Tours Nottm Ltd,,,,,,,,
Nottinghamshire County Council,1111/1001,Children and Young People,CYP,Support Services,HAA,06/11/2015,10-13770,2374.50,Silverdale Tours Nottm Ltd,,,,,,,,
Nottinghamshire County Council,1111/1001,Children and Young People,CYP,Support Services,HAA,06/11/2015,10-13771,2531.00,Silverdale Tours Nottm Ltd,,,,,,,,
Nottinghamshire County Council,1111/1001,Children and Young People,CYP,Support Services,HAA,06/11/2015,10-13772,2250.50,Silverdale Tours Nottm Ltd,,,,,,,,
Nottinghamshire County Council,1111/1001,Children and Young People,CYP,Support Services,HAA,06/11/2015,10-13773,2293.00,Silverdale Tours Nottm Ltd,,,,,,,,
Nottinghamshire County Council,1111/1001,Children and Young People,CYP,Support Services,HAA,06/11/2015,10-13774,2442.50,Silverdale Tours Nottm Ltd,,,,,,,,
Nottinghamshire County Council,1111/1001,Children and Young People,CYP,Support Services,HAA,06/11/2015,10-13775,2541.50,Silverdale Tours Nottm Ltd,,,,,,,,
Nottinghamshire County Council,1111/1001,Children and Young People,CYP,Support Services,HAA,06/11/2015,10-13776,1867.50,Silverdale Tours Nottm Ltd,,,,,,,,
Nottinghamshire County Council,1111/1001,Children and Young People,CYP,Support Services,HAA,06/11/2015,10-13777,2397.00,Tiger European Uk Ltd,,,,,,,,
Nottinghamshire County Council,1111/1001,Children and Young People,CYP,Support Services,HAA,06/11/2015,10-13778,850.00,Tiger European Uk Ltd,,,,,,,,
Nottinghamshire County Council,1111/1001,Children and Young People,CYP,Support Services,HAA,06/11/2015,10-13779,2544.06,Tiger European Uk Ltd,,,,,,,,
Nottinghamshire County Council,1111/1001,Children and Young People,CYP,Support Services,HAA,06/11/2015,10-13780,2635.50,Tiger European Uk Ltd,,,,,,,,
Nottinghamshire County Council,1111/1001,Children and Young People,CYP,Support Services,HAA,06/11/2015,10-13781,2286.00,Tiger European Uk Ltd,,,,,,,,
Nottinghamshire County Council,1111/1001,Children and Young People,CYP,Support Services,HAA,06/11/2015,10-13782,2195.45,Tiger European Uk Ltd,,,,,,,,
Nottinghamshire County Council,1111/1001,Children and Young People,CYP,Support Services,HAA,06/11/2015,10-13783,2200.50,Tiger European Uk Ltd,,,,,,,,
Nottinghamshire County Council,1111/1001,Children and Young People,CYP,Support Services,HAA,06/11/2015,10-13784,2113.00,Tiger European Uk Ltd,,,,,,,,
Nottinghamshire County Council,1111/1001,Children and Young People,CYP,Support Services,HAA,06/11/2015,10-13785,2987.00,Tiger European Uk Ltd,,,,,,,,
Nottinghamshire County Council,1111/1001,Children and Young People,CYP,Support Services,HAA,06/11/2015,10-13786,3145.00,Tiger European Uk Ltd,,,,,,,,
Nottinghamshire County Council,1111/1001,Children and Young People,CYP,Support Services,HAA,06/11/2015,10-13787,2669.00,Tiger European Uk Ltd,,,,,,,,
Nottinghamshire County Council,1111/1001,Children and Young People,CYP,Support Services,HAA,06/11/2015,10-13788,2431.00,Tiger European Uk Ltd,,,,,,,,
Nottinghamshire County Council,1111/1001,Children and Young People,CYP,Support Services,HAA,06/11/2015,10-13797,1078.74,Cotswold CVS Trading Ltd,,,,,,,,
Nottinghamshire County Council,1111/1001,Children and Young People,CYP,Support Services,HAA,10/11/2015,10-14437,1090.85,Ace Of Mansfield Ltd,,,,,,,,
Nottinghamshire County Council,1111/1001,Children and Young People,CYP,Support Services,HAA,10/11/2015,10-14448,520.00,Ng11 Cars,,,,,,,,
Nottinghamshire County Council,1111/1001,Children and Young People,CYP,Support Services,HAA,10/11/2015,10-14464,2937.50,Gem Mini Travel Ltd,,,,,,,,
Nottinghamshire County Council,1111/1001,Children and Young People,CYP,Support Services,HAA,10/11/2015,10-14465,2685.00,Gem Mini Travel Ltd,,,,,,,,
Nottinghamshire County Council,1111/1001,Children and Young People,CYP,Support Services,HAA,10/11/2015,10-14466,1773.00,Gem Mini Travel Ltd,,,,,,,,
Nottinghamshire County Council,1111/1001,Children and Young People,CYP,Support Services,HAA,10/11/2015,10-14467,2535.50,Gem Mini Travel Ltd,,,,,,,,
Nottinghamshire County Council,1111/1001,Children and Young People,CYP,Support Services,HAA,10/11/2015,10-14468,2070.55,Jb Tours Watnall Ltd,,,,,,,,
Nottinghamshire County Council,1111/1001,Children and Young People,CYP,Support Services,HAA,10/11/2015,10-14469,2030.00,Jb Tours Watnall Ltd,,,,,,,,
Nottinghamshire County Council,1111/1001,Children and Young People,CYP,Support Services,HAA,10/11/2015,10-14470,2200.65,Jb Tours Watnall Ltd,,,,,,,,
Nottinghamshire County Council,1111/1001,Children and Young People,CYP,Support Services,HAA,10/11/2015,10-14471,1768.51,Marshalls Of Sutton On Trent Ltd,,,,,,,,
Nottinghamshire County Council,1111/1001,Children and Young People,CYP,Support Services,HAA,10/11/2015,10-14480,2805.00,Marshalls Of Sutton On Trent Ltd,,,,,,,,
Nottinghamshire County Council,1111/1001,Children and Young People,CYP,Support Services,HAA,10/11/2015,10-14482,1584.00,Marshalls Of Sutton On Trent Ltd,,,,,,,,
Nottinghamshire County Council,1111/1001,Children and Young People,CYP,Support Services,HAA,10/11/2015,10-14483,2805.00,Marshalls Of Sutton On Trent Ltd,,,,,,,,
Nottinghamshire County Council,1111/1001,Children and Young People,CYP,Support Services,HAA,10/11/2015,10-14484,2022.57,Marshalls Of Sutton On Trent Ltd,,,,,,,,
Nottinghamshire County Council,1111/1001,Children and Young People,CYP,Support Services,HAA,10/11/2015,10-14486,1071.00,Meden Travel,,,,,,,,
Nottinghamshire County Council,1111/1001,Children and Young People,CYP,Support Services,HAA,10/11/2015,10-14490,1360.00,P & P Taxis,,,,,,,,
Nottinghamshire County Council,1111/1001,Children and Young People,CYP,Support Services,HAA,10/11/2015,10-14493,1666.00,Wilfreda Beehive,,,,,,,,
Nottinghamshire County Council,1111/1001,Children and Young People,CYP,Support Services,HAA,10/11/2015,10-14494,1264.00,Paul S Winson Coaches,,,,,,,,
Nottinghamshire County Council,1111/1001,Children and Young People,CYP,Support Services,HAA,10/11/2015,10-14498,1480.36,Wallis Coachways,,,,,,,,
Nottinghamshire County Council,1111/1001,Children and Young People,CYP,Support Services,HAA,10/11/2015,10-14499,3979.53,Isle Coaches,,,,,,,,
Nottinghamshire County Council,1111/1001,Children and Young People,CYP,Support Services,HAA,11/11/2015,10-14567,2162.50,Sharpes Of Nottingham,,,,,,,,
Nottinghamshire County Council,1111/1001,Children and Young People,CYP,Support Services,HAA,11/11/2015,10-14568,2427.90,Sharpes Of Nottingham,,,,,,,,
Nottinghamshire County Council,1111/1001,Children and Young People,CYP,Support Services,HAA,11/11/2015,10-14569,2604.40,Sharpes Of Nottingham,,,,,,,,
Nottinghamshire County Council,1111/1001,Children and Young People,CYP,Support Services,HAA,11/11/2015,10-14570,2053.90,Sharpes Of Nottingham,,,,,,,,
Nottinghamshire County Council,1111/1001,Children and Young People,CYP,Support Services,HAA,11/11/2015,10-14571,2351.40,Sharpes Of Nottingham,,,,,,,,
Nottinghamshire County Council,1111/1001,Children and Young People,CYP,Support Services,HAA,11/11/2015,10-14572,2604.40,Sharpes Of Nottingham,,,,,,,,
Nottinghamshire County Council,1111/1001,Children and Young People,CYP,Support Services,HAA,11/11/2015,10-14573,4068.60,Sharpes Of Nottingham,,,,,,,,
Nottinghamshire County Council,1111/1001,Children and Young People,CYP,Support Services,HAA,11/11/2015,10-14574,2604.40,Sharpes Of Nottingham,,,,,,,,
Nottinghamshire County Council,1111/1001,Children and Young People,CYP,Support Services,HAA,11/11/2015,10-14575,2515.50,Sharpes Of Nottingham,,,,,,,,
Nottinghamshire County Council,1111/1001,Children and Young People,CYP,Support Services,HAA,11/11/2015,10-14576,1929.50,Sharpes Of Nottingham,,,,,,,,
Nottinghamshire County Council,1111/1001,Children and Young People,CYP,Support Services,HAA,11/11/2015,10-14577,2512.50,Sharpes Of Nottingham,,,,,,,,
Nottinghamshire County Council,1111/1001,Children and Young People,CYP,Support Services,HAA,11/11/2015,10-14598,2166.55,Wrights Coaches,,,,,,,,
Nottinghamshire County Council,1111/1001,Children and Young People,CYP,Support Services,HAA,11/11/2015,10-14600,5096.10,Butler Brothers Ltd,,,,,,,,
Nottinghamshire County Council,1111/1001,Children and Young People,CYP,Support Services,HAA,11/11/2015,10-14632,1663.20,Bassetlaw Action Centre,,,,,,,,
Nottinghamshire County Council,1111/1001,Children and Young People,CYP,Support Services,HAA,11/11/2015,10-14639,952.00,Eurocab 2000 Ltd,,,,,,,,
Nottinghamshire County Council,1111/1001,Children and Young People,CYP,Support Services,HAA,13/11/2015,10-14767,3300.00,Johnson Bros Tours Ltd,,,,,,,,
Nottinghamshire County Council,1111/1001,Children and Young People,CYP,Support Services,HAA,13/11/2015,10-14768,2461.50,Johnson Bros Tours Ltd,,,,,,,,
Nottinghamshire County Council,1111/1001,Children and Young People,CYP,Support Services,HAA,13/11/2015,10-14789,4259.70,Stagecoach Services Ltd,,,,,,,,
Nottinghamshire County Council,1111/1001,Children and Young People,CYP,Support Services,HAA,13/11/2015,10-14793,4727.46,Stagecoach Services Ltd,,,,,,,,
Nottinghamshire County Council,1111/1001,Children and Young People,CYP,Support Services,HAA,13/11/2015,10-14797,1353.20,Stagecoach Services Ltd,,,,,,,,
Nottinghamshire County Council,1111/1001,Children and Young People,CYP,Support Services,HAA,13/11/2015,10-14799,2365.21,Stagecoach Services Ltd,,,,,,,,
Nottinghamshire County Council,1111/1001,Children and Young People,CYP,Support Services,HAA,13/11/2015,10-14803,3848.97,Stagecoach Services Ltd,,,,,,,,
Nottinghamshire County Council,1111/1001,Children and Young People,CYP,Support Services,HAA,13/11/2015,10-14804,5892.58,Stagecoach Services Ltd,,,,,,,,
Nottinghamshire County Council,1111/1001,Children and Young People,CYP,Support Services,HAA,13/11/2015,10-14811,4570.10,Stagecoach Services Ltd,,,,,,,,
Nottinghamshire County Council,1111/1001,Children and Young People,CYP,Support Services,HAA,13/11/2015,10-14816,2775.51,Stagecoach Services Ltd,,,,,,,,
Nottinghamshire County Council,1111/1001,Children and Young People,CYP,Support Services,HAA,13/11/2015,10-14821,1353.20,Stagecoach Services Ltd,,,,,,,,
Nottinghamshire County Council,1111/1001,Children and Young People,CYP,Support Services,HAA,13/11/2015,10-14829,2948.50,Tiger European Uk Ltd,,,,,,,,
Nottinghamshire County Council,1111/1001,Children and Young People,CYP,Support Services,HAA,18/11/2015,10-15407,652.50,SJW (Muskham) Ltd T/A Z Cars,,,,,,,,
Nottinghamshire County Council,1111/1001,Children and Young People,CYP,Support Services,HAA,18/11/2015,10-15414,2094.50,Lowes Coaches Ltd,,,,,,,,
Nottinghamshire County Council,1111/1001,Children and Young People,CYP,Support Services,HAA,18/11/2015,10-15415,2228.50,Lowes Coaches Ltd,,,,,,,,
Nottinghamshire County Council,1111/1001,Children and Young People,CYP,Support Services,HAA,18/11/2015,10-15416,2202.00,Lowes Coaches Ltd,,,,,,,,
Nottinghamshire County Council,1111/1001,Children and Young People,CYP,Support Services,HAA,18/11/2015,10-15418,672.00,Shelleys Taxis Ltd,,,,,,,,
Nottinghamshire County Council,1111/1001,Children and Young People,CYP,Support Services,HAA,18/11/2015,10-15421,640.00,D G Private Hire Ltd,,,,,,,,
Nottinghamshire County Council,1111/1001,Children and Young People,CYP,Support Services,HAA,18/11/2015,10-15425,850.00,D G Private Hire Ltd,,,,,,,,
